{"text_format":"1","workbook":"xlsx","n_sheets":3,"sheets":["Habilitation et validité","Habilitation Agent","Feuil5"],"not_rendered":{"charts":0,"images":0,"macros":1,"external_links":0,"defined_names":1,"comments":0,"pivot_tables":0},"unopened":[],"bounds":{"document_bytes":16777216,"sheet_cells":100000,"rows_first":2000,"rows_last":500,"rows_between":2000,"halvings":0,"cell_chars":16384,"cell_head_chars":4096},"cells_cut":0,"cells_raw":0,"read":"whole","date_system":"1900"}

{"sheet":"Habilitation et validité","index":0,"n_rows":68,"n_cols":6,"rows_kept":68,"cut":false,"hidden":true,"merged":[]}
["Code habilitation","Habilitation","Validité\n(Année)","Validité2","Validité3","Code recyclage"]
["HAB0","Habilitation électrique personnel non électricien B0/H0/H0V",3,{"$f":"Tableau1[[#This Row],[Validité\n(Année)]]","v":3},{"$f":"D2:D68","v":3},"HAB0R"]
["HAB1","Habilitation électrique personnel exécutant électricien basse et haute tension B1(V)/H1(V)/M1",3,{"$f":"Tableau1[[#This Row],[Validité\n(Année)]]","v":3},3,"HAB1R"]
["HAB2","Habilitation électrique et mécanique de personnel électricien basse et haute tension B2(V)/H2(V)/BR/BC/HC M2/MC/MR",3,{"$f":"Tableau1[[#This Row],[Validité\n(Année)]]","v":3},3,"HAB2R"]
["HAB0R","Habilitation électrique : recyclage du personnel non électricien exécutant et chargé de chantier (H0/H0/H0v)",3,{"$f":"Tableau1[[#This Row],[Validité\n(Année)]]","v":3},3,"-"]
["HAB1R","Habilitation électrique : recyclage du personnel électricien habilité B1(V)/H1(V)/M1",3,{"$f":"Tableau1[[#This Row],[Validité\n(Année)]]","v":3},3,"-"]
["HAB2R","Habilitation électrique : recyclage du personnel électricien habilité B2(V)/H2(V)/BR/BC/HC M2/MC/MR",3,{"$f":"Tableau1[[#This Row],[Validité\n(Année)]]","v":3},3,"-"]
["HABHCHTB","Préparation ou recyclage de l'habilitation électrique HC-HTB",3,{"$f":"Tableau1[[#This Row],[Validité\n(Année)]]","v":3},3,"-"]
["HAB2M2","Habilitation électrique M2/B2",3,{"$f":"Tableau1[[#This Row],[Validité\n(Année)]]","v":3},3,"HAB2M2R"]
["HAB2M2R","Recyclage de l'habilitation électrique M2/B2",3,{"$f":"Tableau1[[#This Row],[Validité\n(Année)]]","v":3},3,"-"]
["BATCONDEC","Habilitation spéciale \"connexion et déconnexion de batterie d'accumulateurs",3,{"$f":"Tableau1[[#This Row],[Validité\n(Année)]]","v":3},3,"BATCONDECR"]
["BATCONDECR","Recyclage habilitation spéciale \"connexion et déconnexio de batterie d'accumulateurs",3,{"$f":"Tableau1[[#This Row],[Validité\n(Année)]]","v":3},3,"-"]
["BATENTRE","Entretien batteries : formation initiale et/ou recyclage",3,{"$f":"Tableau1[[#This Row],[Validité\n(Année)]]","v":3},3,"-"]
["CHARC1","Conduite de chariots automoteurs à conducteur porté / catégorie 1",5,{"$f":"Tableau1[[#This Row],[Validité\n(Année)]]","v":5},5,"CHARC1R"]
["CHARC3","Conduite de chariots automoteurs à conducteur porté / catégorie 3",5,{"$f":"Tableau1[[#This Row],[Validité\n(Année)]]","v":5},5,"CHARC3R"]
["CHARC1C3","Conduite de chariots automoteurs à conducteur porté / catégorie 1 et 3",5,{"$f":"Tableau1[[#This Row],[Validité\n(Année)]]","v":5},5,"CHARC1C3R"]
["CHARC1R","Recyclage conduite de chariots automoteurs à conducteur porté / catégorie 1",5,{"$f":"Tableau1[[#This Row],[Validité\n(Année)]]","v":5},5,"-"]
["CHARC3R","Recyclage conduite de chariots automoteurs à conducteur porté / catégorie 3",5,{"$f":"Tableau1[[#This Row],[Validité\n(Année)]]","v":5},5,"-"]
["CHARC1C3R","Recyclage conduite de chariots automoteurs à conducteur porté / catégorie 1 et 3",5,{"$f":"Tableau1[[#This Row],[Validité\n(Année)]]","v":5},5,"-"]
["CAMIGRUINI","Conduite grue auxiliaire de camion",5,{"$f":"Tableau1[[#This Row],[Validité\n(Année)]]","v":5},5,"CAMIGRUREC"]
["CAMIGRUREC","Recyclage conduite grue auxiliaire de camion",5,{"$f":"Tableau1[[#This Row],[Validité\n(Année)]]","v":5},5,"-"]
["PEMP1A","Plate-forme élévatrice mobile de personne / catégorie 1A",5,{"$f":"Tableau1[[#This Row],[Validité\n(Année)]]","v":5},5,"PEMP1AR"]
["PEMP3A","Plate-forme élévatrice mobile de personne / catégorie 3A",5,{"$f":"Tableau1[[#This Row],[Validité\n(Année)]]","v":5},5,"PEMP3AR"]
["PEMP1A3A","Plate-forme élévatrice mobile de personne / catégorie 1A et 3A",5,{"$f":"Tableau1[[#This Row],[Validité\n(Année)]]","v":5},5,"PEMP1A3AR"]
["PEMP1B","Plate-forme élévatrice mobile de personne / catégorie 1B",5,{"$f":"Tableau1[[#This Row],[Validité\n(Année)]]","v":5},5,"PEMP1BR"]
["PEMP3B","Plate-forme élévatrice mobile de personne / catégorie 3B",5,{"$f":"Tableau1[[#This Row],[Validité\n(Année)]]","v":5},5,"PEMP3BR"]
["PEMP1B3B","Plate-forme élévatrice mobile de personne / catégorie 1B et 3B",5,{"$f":"Tableau1[[#This Row],[Validité\n(Année)]]","v":5},5,"PEMP1B3BR"]
["PEMP3A3B","Plate-forme élévatrice mobile de personne / catégorie 3A et 3B",5,{"$f":"Tableau1[[#This Row],[Validité\n(Année)]]","v":5},5,"PEMP3A3BR"]
["PEMP1AR","Recyclage Plate-forme élévatrice mobile de personne / catégorie 1A",5,{"$f":"Tableau1[[#This Row],[Validité\n(Année)]]","v":5},5,"-"]
["PEMP3AR","Recyclage Plate-forme élévatrice mobile de personne / catégorie 3A",5,{"$f":"Tableau1[[#This Row],[Validité\n(Année)]]","v":5},5,"-"]
["PEMP1A3AR","Recyclage Plate-forme élévatrice mobile de personne / catégorie 1A et 3A",5,{"$f":"Tableau1[[#This Row],[Validité\n(Année)]]","v":5},5,"-"]
["PEMP1BR","Recyclage Plate-forme élévatrice mobile de personne / catégorie 1B",5,{"$f":"Tableau1[[#This Row],[Validité\n(Année)]]","v":5},5,"-"]
["PEMP3BR","Recyclage Plate-forme élévatrice mobile de personne / catégorie 3B",5,{"$f":"Tableau1[[#This Row],[Validité\n(Année)]]","v":5},5,"-"]
["PEMP1B3BR","Recyclage Plate-forme élévatrice mobile de personne / catégorie 1B et 3B",5,{"$f":"Tableau1[[#This Row],[Validité\n(Année)]]","v":5},{"$f":"D34:D100","v":5},"-"]
["PEMP3A3BR","Recyclage Plate-forme élévatrice mobile de personne / catégorie 3A et 3B",5,{"$f":"Tableau1[[#This Row],[Validité\n(Année)]]","v":5},5,"-"]
["PONTIER","Pont roulant commande au sol et cabine",5,{"$f":"Tableau1[[#This Row],[Validité\n(Année)]]","v":5},5,"PONTIEREC"]
["PONTIEREC","Recyclage Pont roulant commande au sol et cabine",5,{"$f":"Tableau1[[#This Row],[Validité\n(Année)]]","v":5},5,"-"]
["ELINGAGE","Elingueur",5,{"$f":"Tableau1[[#This Row],[Validité\n(Année)]]","v":5},5,"ELINGAGER"]
["ELINGAGER","Recyclage Elingueur",5,{"$f":"Tableau1[[#This Row],[Validité\n(Année)]]","v":5},5,"-"]
["ECHAFAU1","Utilisation échafaudage fixe ou roulant",5,{"$f":"Tableau1[[#This Row],[Validité\n(Année)]]","v":5},5,"ECHAFAU1R"]
["ECHAUFAU2","Montage, utilisation échafaudage fixe",5,{"$f":"Tableau1[[#This Row],[Validité\n(Année)]]","v":5},5,"ECHAFAU2R"]
["ECHAFAU3","Réception échafaudage fixe",5,{"$f":"Tableau1[[#This Row],[Validité\n(Année)]]","v":5},5,"ECHAFAU3R"]
["ECHAFAU4","Recyclage Montage, utilisation et réception échafaudage roulant",5,{"$f":"Tableau1[[#This Row],[Validité\n(Année)]]","v":5},5,"ECHAFAU4R"]
["ECHAUFAU5","Recyclage Montage, utilisation et réception échafaudage fixe",5,{"$f":"Tableau1[[#This Row],[Validité\n(Année)]]","v":5},5,"ECHAFAU5R"]
["ECHAFAU1R","Recyclage Utilisation échafaudage fixe ou roulant",5,{"$f":"Tableau1[[#This Row],[Validité\n(Année)]]","v":5},5,"-"]
["ECHAUFAU2R","Recyclage Montage, utilisation échafaudage fixe",5,{"$f":"Tableau1[[#This Row],[Validité\n(Année)]]","v":5},5,"-"]
["ECHAFAU3R","Recyclage Réception échafaudage fixe",5,{"$f":"Tableau1[[#This Row],[Validité\n(Année)]]","v":5},5,"-"]
["ECHAFAU4R","Recyclage Montage, utilisation et réception échafaudage roulant",5,{"$f":"Tableau1[[#This Row],[Validité\n(Année)]]","v":5},5,"-"]
["ECHAUFAU5R","Recyclage Montage, utilisation et réception échafaudage fixe",5,{"$f":"Tableau1[[#This Row],[Validité\n(Année)]]","v":5},5,"-"]
["PERMISEB","Permis EB (Remorque)",5,{"$f":"Tableau1[[#This Row],[Validité\n(Année)]]","v":5},5,"Visite Médicale Obligatoire"]
["PERMISPL","Permis C (Poids Lourd)",5,{"$f":"Tableau1[[#This Row],[Validité\n(Année)]]","v":5},5,"Visite Médicale Obligatoire"]
["RISAMIAOCI","Gestion du risque amiante - Opérateur de chantier",3,{"$f":"Tableau1[[#This Row],[Validité\n(Année)]]","v":3},3,"RISAMRECOC"]
["RISAMRECOC","Recyclage Gestion des risques amiante - Opérateur de chantier",3,{"$f":"Tableau1[[#This Row],[Validité\n(Année)]]","v":3},3,"-"]
["RISQAMIATC","Gestion du risque amiante - Encadrement technique et de chantier",3,{"$f":"Tableau1[[#This Row],[Validité\n(Année)]]","v":3},3,"RISQAMITCR"]
["RISQAMITCR","Recyclage Gestion du risque amiante - Encadrement technique et de chantier",3,{"$f":"Tableau1[[#This Row],[Validité\n(Année)]]","v":3},3,"-"]
["RISAMIAEPI","Gestion du risque amiante - Port des EPI",3,{"$f":"Tableau1[[#This Row],[Validité\n(Année)]]","v":3},3,"RISAMIEPIR"]
["RISAMIEPIR","Recyclage Gestion du risque amiante - Port des EPI",3,{"$f":"Tableau1[[#This Row],[Validité\n(Année)]]","v":3},3,"-"]
["TRONCONNE","Tronçonnage : Formation initiale et/ou recyclage",5,{"$f":"Tableau1[[#This Row],[Validité\n(Année)]]","v":5},5,"-"]
["PRVSANSECU","Formation à la prévention Santé et Sécurité",0,{"$f":"Tableau1[[#This Row],[Validité\n(Année)]]","v":0},0,"-"]
["PRVSANSECS","Formation à la prévention Santé et Sécurité (adapté à certains services du siège)",0,{"$f":"Tableau1[[#This Row],[Validité\n(Année)]]","v":0},0,"-"]
["GARARBCAUS","Garant de la méthode de l'arbre des causes",0,{"$f":"Tableau1[[#This Row],[Validité\n(Année)]]","v":0},0,"-"]
["VSVHS","VS (Visite Sécurité) et VHS (Visite Hiérarchique de Sécurité)",0,{"$f":"Tableau1[[#This Row],[Validité\n(Année)]]","v":0},0,"-"]
["MONITSECOU","Formateur de secourisme : Initiale",3,{"$f":"Tableau1[[#This Row],[Validité\n(Année)]]","v":3},3,"RECYMONSE"]
["RECYMONSE","Formateur de secourisme : Maintien et actualisation des compétences",3,{"$f":"Tableau1[[#This Row],[Validité\n(Année)]]","v":3},3,"-"]
["SECOUINIT","Secourisme : Initiale",1.8,{"$f":"Tableau1[[#This Row],[Validité\n(Année)]]","v":1.8},1.8,"RECYCSECOU"]
["RECYCSECOU","Secourisme : Recyclage",1.8,{"$f":"Tableau1[[#This Row],[Validité\n(Année)]]","v":1.8},{"$f":"D66:D132","v":1.8},"-"]
["SICOBA","SICOBA",2,{"$f":"Tableau1[[#This Row],[Validité\n(Année)]]","v":2},2,"SICOBAREC"]
["SICOBAREC","Recyclage SICOBA",2,{"$f":"Tableau1[[#This Row],[Validité\n(Année)]]","v":2},2,"-"]

{"sheet":"Habilitation Agent","index":1,"n_rows":19,"n_cols":58,"rows_kept":19,"cut":false,"hidden":false,"merged":[]}
["Code","NOM","Prénom","Habilitation_1","Validité","Initiale","Dernier Recyclage","R1","R2","R3","v1","Habilitation_2","Validité_2","Initiale_2","Dernier Recyclage_2","R1_2","R2_2","R3_2","v2","Habilitation_3","Validité_3","Initiale_3","Dernier Recyclage_3","R1_3","R2_3","R3_3","v3","Habilitation_4","Validité_4","Initiale_4","Dernier Recyclage_4","R1_4","R2_4","R3_4","v4","Habilitation_5","Validité_5","Initiale_5","Dernier Recyclage_5","R1_5","R2_5","R3_5","v5","Habilitation_6","Validité_6","Initiale_6","Dernier Recyclage_6","R1_6","R2_6","R3_6","v6","Habilitation_7","Validité_7","Initiale_7","Dernier Recyclage_7","R1_7","R2_7","R3_7"]
["Aaa","AA","aaa","HAB0",{"$f":"+IF(ISERROR(VLOOKUP(Tableau2[[#This Row],[Habilitation_1]],Tableau1[],Tableau1[Validité2],0)),\"\",VLOOKUP(Tableau2[[#This Row],[Habilitation_1]],Tableau1[],Tableau1[Validité2],0))","v":3},"2010-06-10","2013-06-25",{"$f":"IF(ISERROR(+DATE(YEAR(Tableau2[Dernier Recyclage])+Tableau2[[#This Row],[Validité]],MONTH(Tableau2[Dernier Recyclage]),DAY(Tableau2[Dernier Recyclage]))),\"\",(+DATE(YEAR(Tableau2[Dernier Recyclage])+Tableau2[[#This Row],[Validité]],MONTH(Tableau2[Dernier Recyclage]),DAY(Tableau2[Dernier Recyclage]))))","v":"2016-06-25"},{"$f":"IF(ISERROR(+DATE(YEAR(Tableau2[[#This Row],[R1]])+Tableau2[[#This Row],[Validité]],MONTH(Tableau2[[#This Row],[R1]]),DAY(Tableau2[[#This Row],[R1]]))),\"\",(+DATE(YEAR(Tableau2[[#This Row],[R1]])+Tableau2[[#This Row],[Validité]],MONTH(Tableau2[[#This Row],[R1]]),DAY(Tableau2[[#This Row],[R1]]))))","v":"2019-06-25"},{"$f":"IF(ISERROR(+DATE(YEAR(Tableau2[[#This Row],[R2]])+Tableau2[[#This Row],[Validité]],MONTH(Tableau2[[#This Row],[R2]]),DAY(Tableau2[[#This Row],[R2]]))),\"\",(+DATE(YEAR(Tableau2[[#This Row],[R2]])+Tableau2[[#This Row],[Validité]],MONTH(Tableau2[[#This Row],[R2]]),DAY(Tableau2[[#This Row],[R2]]))))","v":"2022-06-25"},"","",{"$f":"IF(ISERROR(VLOOKUP(Tableau2[Habilitation_2],Tableau1[],Tableau1[Validité2],0)),\"\",VLOOKUP(Tableau2[Habilitation_2],Tableau1[],Tableau1[Validité2],0))","v":""},"",null,{"$f":"IF(ISERROR(+DATE(YEAR(Tableau2[Dernier Recyclage_2])+Tableau2[Validité_2],MONTH(Tableau2[Dernier Recyclage_2]),DAY(Tableau2[Dernier Recyclage_2]))),\"\",(+DATE(YEAR(Tableau2[Dernier Recyclage_2])+Tableau2[Validité_2],MONTH(Tableau2[Dernier Recyclage_2]),DAY(Tableau2[Dernier Recyclage_2]))))","v":""},{"$f":"IF(ISERROR(+DATE(YEAR(Tableau2[R1_2])+Tableau2[Validité_2],MONTH(Tableau2[R1_2]),DAY(Tableau2[R1_2]))),\"\",(+DATE(YEAR(Tableau2[R1_2])+Tableau2[Validité_2],MONTH(Tableau2[R1_2]),DAY(Tableau2[R1_2]))))","v":""},{"$f":"IF(ISERROR(+DATE(YEAR(Tableau2[R2_2])+Tableau2[Validité_2],MONTH(Tableau2[R2_2]),DAY(Tableau2[R2_2]))),\"\",(+DATE(YEAR(Tableau2[R2_2])+Tableau2[Validité_2],MONTH(Tableau2[R2_2]),DAY(Tableau2[R2_2]))))","v":""},"","","","","","","",{"$f":"IF(ISERROR(+DATE(YEAR(Tableau2[R2_3])+Tableau2[Validité_3],MONTH(Tableau2[R2_3]),DAY(Tableau2[R2_3]))),\"\",(+DATE(YEAR(Tableau2[R2_3])+Tableau2[Validité_3],MONTH(Tableau2[R2_3]),DAY(Tableau2[R2_3]))))","v":""},null,null,{"$f":"IF(ISERROR(VLOOKUP(Tableau2[Habilitation_4],Tableau1[],Tableau1[Validité2],0)),\"\",VLOOKUP(Tableau2[Habilitation_4],Tableau1[],Tableau1[Validité2],0))","v":""},null,null,{"$f":"IF(ISERROR(+DATE(YEAR(Tableau2[Dernier Recyclage_4])+Tableau2[Validité_4],MONTH(Tableau2[Dernier Recyclage_4]),DAY(Tableau2[Dernier Recyclage_4]))),\"\",(+DATE(YEAR(Tableau2[Dernier Recyclage_4])+Tableau2[Validité_4],MONTH(Tableau2[Dernier Recyclage_4]),DAY(Tableau2[Dernier Recyclage_4]))))","v":""},{"$f":"IF(ISERROR(+DATE(YEAR(Tableau2[R1_4])+Tableau2[Validité_4],MONTH(Tableau2[R1_4]),DAY(Tableau2[R1_4]))),\"\",(+DATE(YEAR(Tableau2[R1_4])+Tableau2[Validité_4],MONTH(Tableau2[R1_4]),DAY(Tableau2[R1_4]))))","v":""},{"$f":"IF(ISERROR(+DATE(YEAR(Tableau2[R2_4])+Tableau2[Validité_4],MONTH(Tableau2[R2_4]),DAY(Tableau2[R2_4]))),\"\",(+DATE(YEAR(Tableau2[R2_4])+Tableau2[Validité_4],MONTH(Tableau2[R2_4]),DAY(Tableau2[R2_4]))))","v":""},null,null,{"$f":"IF(ISERROR(VLOOKUP(Tableau2[Habilitation_5],Tableau1[],Tableau1[Validité2],0)),\"\",VLOOKUP(Tableau2[Habilitation_5],Tableau1[],Tableau1[Validité2],0))","v":""},null,null,{"$f":"IF(ISERROR(+DATE(YEAR(Tableau2[Dernier Recyclage_5])+Tableau2[Validité_5],MONTH(Tableau2[Dernier Recyclage_5]),DAY(Tableau2[Dernier Recyclage_5]))),\"\",(+DATE(YEAR(Tableau2[Dernier Recyclage_5])+Tableau2[Validité_5],MONTH(Tableau2[Dernier Recyclage_5]),DAY(Tableau2[Dernier Recyclage_5]))))","v":""},{"$f":"IF(ISERROR(+DATE(YEAR(Tableau2[R1_5])+Tableau2[Validité_5],MONTH(Tableau2[R1_5]),DAY(Tableau2[R1_5]))),\"\",(+DATE(YEAR(Tableau2[R1_5])+Tableau2[Validité_5],MONTH(Tableau2[R1_5]),DAY(Tableau2[R1_5]))))","v":""},{"$f":"IF(ISERROR(+DATE(YEAR(Tableau2[R2_5])+Tableau2[Validité_5],MONTH(Tableau2[R2_5]),DAY(Tableau2[R2_5]))),\"\",(+DATE(YEAR(Tableau2[R2_5])+Tableau2[Validité_5],MONTH(Tableau2[R2_5]),DAY(Tableau2[R2_5]))))","v":""},null,null,{"$f":"IF(ISERROR(VLOOKUP(Tableau2[Habilitation_6],Tableau1[],Tableau1[Validité2],0)),\"\",VLOOKUP(Tableau2[Habilitation_6],Tableau1[],Tableau1[Validité2],0))","v":""},null,null,{"$f":"IF(ISERROR(+DATE(YEAR(Tableau2[Dernier Recyclage_6])+Tableau2[Validité_6],MONTH(Tableau2[Dernier Recyclage_6]),DAY(Tableau2[Dernier Recyclage_6]))),\"\",(+DATE(YEAR(Tableau2[Dernier Recyclage_6])+Tableau2[Validité_6],MONTH(Tableau2[Dernier Recyclage_6]),DAY(Tableau2[Dernier Recyclage_6]))))","v":""},{"$f":"IF(ISERROR(+DATE(YEAR(Tableau2[R1_6])+Tableau2[Validité_6],MONTH(Tableau2[R1_6]),DAY(Tableau2[R1_6]))),\"\",(+DATE(YEAR(Tableau2[R1_6])+Tableau2[Validité_6],MONTH(Tableau2[R1_6]),DAY(Tableau2[R1_6]))))","v":""},{"$f":"IF(ISERROR(+DATE(YEAR(Tableau2[R2_6])+Tableau2[Validité_6],MONTH(Tableau2[R2_6]),DAY(Tableau2[R2_6]))),\"\",(+DATE(YEAR(Tableau2[R2_6])+Tableau2[Validité_6],MONTH(Tableau2[R2_6]),DAY(Tableau2[R2_6]))))","v":""},null,null,{"$f":"IF(ISERROR(VLOOKUP(Tableau2[Habilitation_7],Tableau1[],Tableau1[Validité2],0)),\"\",VLOOKUP(Tableau2[Habilitation_7],Tableau1[],Tableau1[Validité2],0))","v":""},null,null,{"$f":"IF(ISERROR(+DATE(YEAR(Tableau2[Dernier Recyclage_7])+Tableau2[Validité_7],MONTH(Tableau2[Dernier Recyclage_7]),DAY(Tableau2[Dernier Recyclage_7]))),\"\",(+DATE(YEAR(Tableau2[Dernier Recyclage_7])+Tableau2[Validité_7],MONTH(Tableau2[Dernier Recyclage_7]),DAY(Tableau2[Dernier Recyclage_7]))))","v":""},{"$f":"IF(ISERROR(+DATE(YEAR(Tableau2[R1_7])+Tableau2[Validité_7],MONTH(Tableau2[R1_7]),DAY(Tableau2[R1_7]))),\"\",(+DATE(YEAR(Tableau2[R1_7])+Tableau2[Validité_7],MONTH(Tableau2[R1_7]),DAY(Tableau2[R1_7]))))","v":""},{"$f":"IF(ISERROR(+DATE(YEAR(Tableau2[R2_7])+Tableau2[Validité_7],MONTH(Tableau2[R2_7]),DAY(Tableau2[R2_7]))),\"\",(+DATE(YEAR(Tableau2[R2_7])+Tableau2[Validité_7],MONTH(Tableau2[R2_7]),DAY(Tableau2[R2_7]))))","v":""}]
["Bbb","BB","bbb","HAB2R",{"$f":"+IF(ISERROR(VLOOKUP(Tableau2[[#This Row],[Habilitation_1]],Tableau1[],Tableau1[Validité2],0)),\"\",VLOOKUP(Tableau2[[#This Row],[Habilitation_1]],Tableau1[],Tableau1[Validité2],0))","v":3},"2012-03-07","2012-03-07",{"$f":"IF(ISERROR(+DATE(YEAR(Tableau2[Dernier Recyclage])+Tableau2[[#This Row],[Validité]],MONTH(Tableau2[Dernier Recyclage]),DAY(Tableau2[Dernier Recyclage]))),\"\",(+DATE(YEAR(Tableau2[Dernier Recyclage])+Tableau2[[#This Row],[Validité]],MONTH(Tableau2[Dernier Recyclage]),DAY(Tableau2[Dernier Recyclage]))))","v":"2015-03-07"},{"$f":"IF(ISERROR(+DATE(YEAR(Tableau2[[#This Row],[R1]])+Tableau2[[#This Row],[Validité]],MONTH(Tableau2[[#This Row],[R1]]),DAY(Tableau2[[#This Row],[R1]]))),\"\",(+DATE(YEAR(Tableau2[[#This Row],[R1]])+Tableau2[[#This Row],[Validité]],MONTH(Tableau2[[#This Row],[R1]]),DAY(Tableau2[[#This Row],[R1]]))))","v":"2018-03-07"},{"$f":"IF(ISERROR(+DATE(YEAR(Tableau2[[#This Row],[R2]])+Tableau2[[#This Row],[Validité]],MONTH(Tableau2[[#This Row],[R2]]),DAY(Tableau2[[#This Row],[R2]]))),\"\",(+DATE(YEAR(Tableau2[[#This Row],[R2]])+Tableau2[[#This Row],[Validité]],MONTH(Tableau2[[#This Row],[R2]]),DAY(Tableau2[[#This Row],[R2]]))))","v":"2021-03-07"},null,null,{"$f":"IF(ISERROR(VLOOKUP(Tableau2[Habilitation_2],Tableau1[],Tableau1[Validité2],0)),\"\",VLOOKUP(Tableau2[Habilitation_2],Tableau1[],Tableau1[Validité2],0))","v":""},null,null,{"$f":"IF(ISERROR(+DATE(YEAR(Tableau2[Dernier Recyclage_2])+Tableau2[Validité_2],MONTH(Tableau2[Dernier Recyclage_2]),DAY(Tableau2[Dernier Recyclage_2]))),\"\",(+DATE(YEAR(Tableau2[Dernier Recyclage_2])+Tableau2[Validité_2],MONTH(Tableau2[Dernier Recyclage_2]),DAY(Tableau2[Dernier Recyclage_2]))))","v":""},{"$f":"IF(ISERROR(+DATE(YEAR(Tableau2[R1_2])+Tableau2[Validité_2],MONTH(Tableau2[R1_2]),DAY(Tableau2[R1_2]))),\"\",(+DATE(YEAR(Tableau2[R1_2])+Tableau2[Validité_2],MONTH(Tableau2[R1_2]),DAY(Tableau2[R1_2]))))","v":""},{"$f":"IF(ISERROR(+DATE(YEAR(Tableau2[R2_2])+Tableau2[Validité_2],MONTH(Tableau2[R2_2]),DAY(Tableau2[R2_2]))),\"\",(+DATE(YEAR(Tableau2[R2_2])+Tableau2[Validité_2],MONTH(Tableau2[R2_2]),DAY(Tableau2[R2_2]))))","v":""},null,null,{"$f":"IF(ISERROR(VLOOKUP(Tableau2[Habilitation_3],Tableau1[],Tableau1[Validité2],0)),\"\",VLOOKUP(Tableau2[Habilitation_3],Tableau1[],Tableau1[Validité2],0))","v":""},null,null,{"$f":"IF(ISERROR(+DATE(YEAR(Tableau2[Dernier Recyclage_3])+Tableau2[Validité_3],MONTH(Tableau2[Dernier Recyclage_3]),DAY(Tableau2[Dernier Recyclage_3]))),\"\",(+DATE(YEAR(Tableau2[Dernier Recyclage_3])+Tableau2[Validité_3],MONTH(Tableau2[Dernier Recyclage_3]),DAY(Tableau2[Dernier Recyclage_3]))))","v":""},{"$f":"IF(ISERROR(+DATE(YEAR(Tableau2[R1_3])+Tableau2[Validité_3],MONTH(Tableau2[R1_3]),DAY(Tableau2[R1_3]))),\"\",(+DATE(YEAR(Tableau2[R1_3])+Tableau2[Validité_3],MONTH(Tableau2[R1_3]),DAY(Tableau2[R1_3]))))","v":""},{"$f":"IF(ISERROR(+DATE(YEAR(Tableau2[R2_3])+Tableau2[Validité_3],MONTH(Tableau2[R2_3]),DAY(Tableau2[R2_3]))),\"\",(+DATE(YEAR(Tableau2[R2_3])+Tableau2[Validité_3],MONTH(Tableau2[R2_3]),DAY(Tableau2[R2_3]))))","v":""},null,null,{"$f":"IF(ISERROR(VLOOKUP(Tableau2[Habilitation_4],Tableau1[],Tableau1[Validité2],0)),\"\",VLOOKUP(Tableau2[Habilitation_4],Tableau1[],Tableau1[Validité2],0))","v":""},null,null,{"$f":"IF(ISERROR(+DATE(YEAR(Tableau2[Dernier Recyclage_4])+Tableau2[Validité_4],MONTH(Tableau2[Dernier Recyclage_4]),DAY(Tableau2[Dernier Recyclage_4]))),\"\",(+DATE(YEAR(Tableau2[Dernier Recyclage_4])+Tableau2[Validité_4],MONTH(Tableau2[Dernier Recyclage_4]),DAY(Tableau2[Dernier Recyclage_4]))))","v":""},{"$f":"IF(ISERROR(+DATE(YEAR(Tableau2[R1_4])+Tableau2[Validité_4],MONTH(Tableau2[R1_4]),DAY(Tableau2[R1_4]))),\"\",(+DATE(YEAR(Tableau2[R1_4])+Tableau2[Validité_4],MONTH(Tableau2[R1_4]),DAY(Tableau2[R1_4]))))","v":""},{"$f":"IF(ISERROR(+DATE(YEAR(Tableau2[R2_4])+Tableau2[Validité_4],MONTH(Tableau2[R2_4]),DAY(Tableau2[R2_4]))),\"\",(+DATE(YEAR(Tableau2[R2_4])+Tableau2[Validité_4],MONTH(Tableau2[R2_4]),DAY(Tableau2[R2_4]))))","v":""},null,null,{"$f":"IF(ISERROR(VLOOKUP(Tableau2[Habilitation_5],Tableau1[],Tableau1[Validité2],0)),\"\",VLOOKUP(Tableau2[Habilitation_5],Tableau1[],Tableau1[Validité2],0))","v":""},null,null,{"$f":"IF(ISERROR(+DATE(YEAR(Tableau2[Dernier Recyclage_5])+Tableau2[Validité_5],MONTH(Tableau2[Dernier Recyclage_5]),DAY(Tableau2[Dernier Recyclage_5]))),\"\",(+DATE(YEAR(Tableau2[Dernier Recyclage_5])+Tableau2[Validité_5],MONTH(Tableau2[Dernier Recyclage_5]),DAY(Tableau2[Dernier Recyclage_5]))))","v":""},{"$f":"IF(ISERROR(+DATE(YEAR(Tableau2[R1_5])+Tableau2[Validité_5],MONTH(Tableau2[R1_5]),DAY(Tableau2[R1_5]))),\"\",(+DATE(YEAR(Tableau2[R1_5])+Tableau2[Validité_5],MONTH(Tableau2[R1_5]),DAY(Tableau2[R1_5]))))","v":""},{"$f":"IF(ISERROR(+DATE(YEAR(Tableau2[R2_5])+Tableau2[Validité_5],MONTH(Tableau2[R2_5]),DAY(Tableau2[R2_5]))),\"\",(+DATE(YEAR(Tableau2[R2_5])+Tableau2[Validité_5],MONTH(Tableau2[R2_5]),DAY(Tableau2[R2_5]))))","v":""},null,null,{"$f":"IF(ISERROR(VLOOKUP(Tableau2[Habilitation_6],Tableau1[],Tableau1[Validité2],0)),\"\",VLOOKUP(Tableau2[Habilitation_6],Tableau1[],Tableau1[Validité2],0))","v":""},null,null,{"$f":"IF(ISERROR(+DATE(YEAR(Tableau2[Dernier Recyclage_6])+Tableau2[Validité_6],MONTH(Tableau2[Dernier Recyclage_6]),DAY(Tableau2[Dernier Recyclage_6]))),\"\",(+DATE(YEAR(Tableau2[Dernier Recyclage_6])+Tableau2[Validité_6],MONTH(Tableau2[Dernier Recyclage_6]),DAY(Tableau2[Dernier Recyclage_6]))))","v":""},{"$f":"IF(ISERROR(+DATE(YEAR(Tableau2[R1_6])+Tableau2[Validité_6],MONTH(Tableau2[R1_6]),DAY(Tableau2[R1_6]))),\"\",(+DATE(YEAR(Tableau2[R1_6])+Tableau2[Validité_6],MONTH(Tableau2[R1_6]),DAY(Tableau2[R1_6]))))","v":""},{"$f":"IF(ISERROR(+DATE(YEAR(Tableau2[R2_6])+Tableau2[Validité_6],MONTH(Tableau2[R2_6]),DAY(Tableau2[R2_6]))),\"\",(+DATE(YEAR(Tableau2[R2_6])+Tableau2[Validité_6],MONTH(Tableau2[R2_6]),DAY(Tableau2[R2_6]))))","v":""},null,null,{"$f":"IF(ISERROR(VLOOKUP(Tableau2[Habilitation_7],Tableau1[],Tableau1[Validité2],0)),\"\",VLOOKUP(Tableau2[Habilitation_7],Tableau1[],Tableau1[Validité2],0))","v":""},null,null,{"$f":"IF(ISERROR(+DATE(YEAR(Tableau2[Dernier Recyclage_7])+Tableau2[Validité_7],MONTH(Tableau2[Dernier Recyclage_7]),DAY(Tableau2[Dernier Recyclage_7]))),\"\",(+DATE(YEAR(Tableau2[Dernier Recyclage_7])+Tableau2[Validité_7],MONTH(Tableau2[Dernier Recyclage_7]),DAY(Tableau2[Dernier Recyclage_7]))))","v":""},{"$f":"IF(ISERROR(+DATE(YEAR(Tableau2[R1_7])+Tableau2[Validité_7],MONTH(Tableau2[R1_7]),DAY(Tableau2[R1_7]))),\"\",(+DATE(YEAR(Tableau2[R1_7])+Tableau2[Validité_7],MONTH(Tableau2[R1_7]),DAY(Tableau2[R1_7]))))","v":""},{"$f":"IF(ISERROR(+DATE(YEAR(Tableau2[R2_7])+Tableau2[Validité_7],MONTH(Tableau2[R2_7]),DAY(Tableau2[R2_7]))),\"\",(+DATE(YEAR(Tableau2[R2_7])+Tableau2[Validité_7],MONTH(Tableau2[R2_7]),DAY(Tableau2[R2_7]))))","v":""}]
["Ccc","CC","ccc",null,{"$f":"+IF(ISERROR(VLOOKUP(Tableau2[[#This Row],[Habilitation_1]],Tableau1[],Tableau1[Validité2],0)),\"\",VLOOKUP(Tableau2[[#This Row],[Habilitation_1]],Tableau1[],Tableau1[Validité2],0))","v":""},null,null,{"$f":"IF(ISERROR(+DATE(YEAR(Tableau2[Dernier Recyclage])+Tableau2[[#This Row],[Validité]],MONTH(Tableau2[Dernier Recyclage]),DAY(Tableau2[Dernier Recyclage]))),\"\",(+DATE(YEAR(Tableau2[Dernier Recyclage])+Tableau2[[#This Row],[Validité]],MONTH(Tableau2[Dernier Recyclage]),DAY(Tableau2[Dernier Recyclage]))))","v":""},{"$f":"IF(ISERROR(+DATE(YEAR(Tableau2[[#This Row],[R1]])+Tableau2[[#This Row],[Validité]],MONTH(Tableau2[[#This Row],[R1]]),DAY(Tableau2[[#This Row],[R1]]))),\"\",(+DATE(YEAR(Tableau2[[#This Row],[R1]])+Tableau2[[#This Row],[Validité]],MONTH(Tableau2[[#This Row],[R1]]),DAY(Tableau2[[#This Row],[R1]]))))","v":""},{"$f":"IF(ISERROR(+DATE(YEAR(Tableau2[[#This Row],[R2]])+Tableau2[[#This Row],[Validité]],MONTH(Tableau2[[#This Row],[R2]]),DAY(Tableau2[[#This Row],[R2]]))),\"\",(+DATE(YEAR(Tableau2[[#This Row],[R2]])+Tableau2[[#This Row],[Validité]],MONTH(Tableau2[[#This Row],[R2]]),DAY(Tableau2[[#This Row],[R2]]))))","v":""},null,null,{"$f":"IF(ISERROR(VLOOKUP(Tableau2[Habilitation_2],Tableau1[],Tableau1[Validité2],0)),\"\",VLOOKUP(Tableau2[Habilitation_2],Tableau1[],Tableau1[Validité2],0))","v":""},null,null,{"$f":"IF(ISERROR(+DATE(YEAR(Tableau2[Dernier Recyclage_2])+Tableau2[Validité_2],MONTH(Tableau2[Dernier Recyclage_2]),DAY(Tableau2[Dernier Recyclage_2]))),\"\",(+DATE(YEAR(Tableau2[Dernier Recyclage_2])+Tableau2[Validité_2],MONTH(Tableau2[Dernier Recyclage_2]),DAY(Tableau2[Dernier Recyclage_2]))))","v":""},{"$f":"IF(ISERROR(+DATE(YEAR(Tableau2[R1_2])+Tableau2[Validité_2],MONTH(Tableau2[R1_2]),DAY(Tableau2[R1_2]))),\"\",(+DATE(YEAR(Tableau2[R1_2])+Tableau2[Validité_2],MONTH(Tableau2[R1_2]),DAY(Tableau2[R1_2]))))","v":""},{"$f":"IF(ISERROR(+DATE(YEAR(Tableau2[R2_2])+Tableau2[Validité_2],MONTH(Tableau2[R2_2]),DAY(Tableau2[R2_2]))),\"\",(+DATE(YEAR(Tableau2[R2_2])+Tableau2[Validité_2],MONTH(Tableau2[R2_2]),DAY(Tableau2[R2_2]))))","v":""},null,null,{"$f":"IF(ISERROR(VLOOKUP(Tableau2[Habilitation_3],Tableau1[],Tableau1[Validité2],0)),\"\",VLOOKUP(Tableau2[Habilitation_3],Tableau1[],Tableau1[Validité2],0))","v":""},null,null,{"$f":"IF(ISERROR(+DATE(YEAR(Tableau2[Dernier Recyclage_3])+Tableau2[Validité_3],MONTH(Tableau2[Dernier Recyclage_3]),DAY(Tableau2[Dernier Recyclage_3]))),\"\",(+DATE(YEAR(Tableau2[Dernier Recyclage_3])+Tableau2[Validité_3],MONTH(Tableau2[Dernier Recyclage_3]),DAY(Tableau2[Dernier Recyclage_3]))))","v":""},{"$f":"IF(ISERROR(+DATE(YEAR(Tableau2[R1_3])+Tableau2[Validité_3],MONTH(Tableau2[R1_3]),DAY(Tableau2[R1_3]))),\"\",(+DATE(YEAR(Tableau2[R1_3])+Tableau2[Validité_3],MONTH(Tableau2[R1_3]),DAY(Tableau2[R1_3]))))","v":""},{"$f":"IF(ISERROR(+DATE(YEAR(Tableau2[R2_3])+Tableau2[Validité_3],MONTH(Tableau2[R2_3]),DAY(Tableau2[R2_3]))),\"\",(+DATE(YEAR(Tableau2[R2_3])+Tableau2[Validité_3],MONTH(Tableau2[R2_3]),DAY(Tableau2[R2_3]))))","v":""},null,null,{"$f":"IF(ISERROR(VLOOKUP(Tableau2[Habilitation_4],Tableau1[],Tableau1[Validité2],0)),\"\",VLOOKUP(Tableau2[Habilitation_4],Tableau1[],Tableau1[Validité2],0))","v":""},null,null,{"$f":"IF(ISERROR(+DATE(YEAR(Tableau2[Dernier Recyclage_4])+Tableau2[Validité_4],MONTH(Tableau2[Dernier Recyclage_4]),DAY(Tableau2[Dernier Recyclage_4]))),\"\",(+DATE(YEAR(Tableau2[Dernier Recyclage_4])+Tableau2[Validité_4],MONTH(Tableau2[Dernier Recyclage_4]),DAY(Tableau2[Dernier Recyclage_4]))))","v":""},{"$f":"IF(ISERROR(+DATE(YEAR(Tableau2[R1_4])+Tableau2[Validité_4],MONTH(Tableau2[R1_4]),DAY(Tableau2[R1_4]))),\"\",(+DATE(YEAR(Tableau2[R1_4])+Tableau2[Validité_4],MONTH(Tableau2[R1_4]),DAY(Tableau2[R1_4]))))","v":""},{"$f":"IF(ISERROR(+DATE(YEAR(Tableau2[R2_4])+Tableau2[Validité_4],MONTH(Tableau2[R2_4]),DAY(Tableau2[R2_4]))),\"\",(+DATE(YEAR(Tableau2[R2_4])+Tableau2[Validité_4],MONTH(Tableau2[R2_4]),DAY(Tableau2[R2_4]))))","v":""},null,null,{"$f":"IF(ISERROR(VLOOKUP(Tableau2[Habilitation_5],Tableau1[],Tableau1[Validité2],0)),\"\",VLOOKUP(Tableau2[Habilitation_5],Tableau1[],Tableau1[Validité2],0))","v":""},null,null,{"$f":"IF(ISERROR(+DATE(YEAR(Tableau2[Dernier Recyclage_5])+Tableau2[Validité_5],MONTH(Tableau2[Dernier Recyclage_5]),DAY(Tableau2[Dernier Recyclage_5]))),\"\",(+DATE(YEAR(Tableau2[Dernier Recyclage_5])+Tableau2[Validité_5],MONTH(Tableau2[Dernier Recyclage_5]),DAY(Tableau2[Dernier Recyclage_5]))))","v":""},{"$f":"IF(ISERROR(+DATE(YEAR(Tableau2[R1_5])+Tableau2[Validité_5],MONTH(Tableau2[R1_5]),DAY(Tableau2[R1_5]))),\"\",(+DATE(YEAR(Tableau2[R1_5])+Tableau2[Validité_5],MONTH(Tableau2[R1_5]),DAY(Tableau2[R1_5]))))","v":""},{"$f":"IF(ISERROR(+DATE(YEAR(Tableau2[R2_5])+Tableau2[Validité_5],MONTH(Tableau2[R2_5]),DAY(Tableau2[R2_5]))),\"\",(+DATE(YEAR(Tableau2[R2_5])+Tableau2[Validité_5],MONTH(Tableau2[R2_5]),DAY(Tableau2[R2_5]))))","v":""},null,null,{"$f":"IF(ISERROR(VLOOKUP(Tableau2[Habilitation_6],Tableau1[],Tableau1[Validité2],0)),\"\",VLOOKUP(Tableau2[Habilitation_6],Tableau1[],Tableau1[Validité2],0))","v":""},null,null,{"$f":"IF(ISERROR(+DATE(YEAR(Tableau2[Dernier Recyclage_6])+Tableau2[Validité_6],MONTH(Tableau2[Dernier Recyclage_6]),DAY(Tableau2[Dernier Recyclage_6]))),\"\",(+DATE(YEAR(Tableau2[Dernier Recyclage_6])+Tableau2[Validité_6],MONTH(Tableau2[Dernier Recyclage_6]),DAY(Tableau2[Dernier Recyclage_6]))))","v":""},{"$f":"IF(ISERROR(+DATE(YEAR(Tableau2[R1_6])+Tableau2[Validité_6],MONTH(Tableau2[R1_6]),DAY(Tableau2[R1_6]))),\"\",(+DATE(YEAR(Tableau2[R1_6])+Tableau2[Validité_6],MONTH(Tableau2[R1_6]),DAY(Tableau2[R1_6]))))","v":""},{"$f":"IF(ISERROR(+DATE(YEAR(Tableau2[R2_6])+Tableau2[Validité_6],MONTH(Tableau2[R2_6]),DAY(Tableau2[R2_6]))),\"\",(+DATE(YEAR(Tableau2[R2_6])+Tableau2[Validité_6],MONTH(Tableau2[R2_6]),DAY(Tableau2[R2_6]))))","v":""},null,null,{"$f":"IF(ISERROR(VLOOKUP(Tableau2[Habilitation_7],Tableau1[],Tableau1[Validité2],0)),\"\",VLOOKUP(Tableau2[Habilitation_7],Tableau1[],Tableau1[Validité2],0))","v":""},null,null,{"$f":"IF(ISERROR(+DATE(YEAR(Tableau2[Dernier Recyclage_7])+Tableau2[Validité_7],MONTH(Tableau2[Dernier Recyclage_7]),DAY(Tableau2[Dernier Recyclage_7]))),\"\",(+DATE(YEAR(Tableau2[Dernier Recyclage_7])+Tableau2[Validité_7],MONTH(Tableau2[Dernier Recyclage_7]),DAY(Tableau2[Dernier Recyclage_7]))))","v":""},{"$f":"IF(ISERROR(+DATE(YEAR(Tableau2[R1_7])+Tableau2[Validité_7],MONTH(Tableau2[R1_7]),DAY(Tableau2[R1_7]))),\"\",(+DATE(YEAR(Tableau2[R1_7])+Tableau2[Validité_7],MONTH(Tableau2[R1_7]),DAY(Tableau2[R1_7]))))","v":""},{"$f":"IF(ISERROR(+DATE(YEAR(Tableau2[R2_7])+Tableau2[Validité_7],MONTH(Tableau2[R2_7]),DAY(Tableau2[R2_7]))),\"\",(+DATE(YEAR(Tableau2[R2_7])+Tableau2[Validité_7],MONTH(Tableau2[R2_7]),DAY(Tableau2[R2_7]))))","v":""}]
["Ddd","DD","ddd",null,{"$f":"+IF(ISERROR(VLOOKUP(Tableau2[[#This Row],[Habilitation_1]],Tableau1[],Tableau1[Validité2],0)),\"\",VLOOKUP(Tableau2[[#This Row],[Habilitation_1]],Tableau1[],Tableau1[Validité2],0))","v":""},null,null,{"$f":"IF(ISERROR(+DATE(YEAR(Tableau2[Dernier Recyclage])+Tableau2[[#This Row],[Validité]],MONTH(Tableau2[Dernier Recyclage]),DAY(Tableau2[Dernier Recyclage]))),\"\",(+DATE(YEAR(Tableau2[Dernier Recyclage])+Tableau2[[#This Row],[Validité]],MONTH(Tableau2[Dernier Recyclage]),DAY(Tableau2[Dernier Recyclage]))))","v":""},{"$f":"IF(ISERROR(+DATE(YEAR(Tableau2[[#This Row],[R1]])+Tableau2[[#This Row],[Validité]],MONTH(Tableau2[[#This Row],[R1]]),DAY(Tableau2[[#This Row],[R1]]))),\"\",(+DATE(YEAR(Tableau2[[#This Row],[R1]])+Tableau2[[#This Row],[Validité]],MONTH(Tableau2[[#This Row],[R1]]),DAY(Tableau2[[#This Row],[R1]]))))","v":""},{"$f":"IF(ISERROR(+DATE(YEAR(Tableau2[[#This Row],[R2]])+Tableau2[[#This Row],[Validité]],MONTH(Tableau2[[#This Row],[R2]]),DAY(Tableau2[[#This Row],[R2]]))),\"\",(+DATE(YEAR(Tableau2[[#This Row],[R2]])+Tableau2[[#This Row],[Validité]],MONTH(Tableau2[[#This Row],[R2]]),DAY(Tableau2[[#This Row],[R2]]))))","v":""},null,null,{"$f":"IF(ISERROR(VLOOKUP(Tableau2[Habilitation_2],Tableau1[],Tableau1[Validité2],0)),\"\",VLOOKUP(Tableau2[Habilitation_2],Tableau1[],Tableau1[Validité2],0))","v":""},null,null,{"$f":"IF(ISERROR(+DATE(YEAR(Tableau2[Dernier Recyclage_2])+Tableau2[Validité_2],MONTH(Tableau2[Dernier Recyclage_2]),DAY(Tableau2[Dernier Recyclage_2]))),\"\",(+DATE(YEAR(Tableau2[Dernier Recyclage_2])+Tableau2[Validité_2],MONTH(Tableau2[Dernier Recyclage_2]),DAY(Tableau2[Dernier Recyclage_2]))))","v":""},{"$f":"IF(ISERROR(+DATE(YEAR(Tableau2[R1_2])+Tableau2[Validité_2],MONTH(Tableau2[R1_2]),DAY(Tableau2[R1_2]))),\"\",(+DATE(YEAR(Tableau2[R1_2])+Tableau2[Validité_2],MONTH(Tableau2[R1_2]),DAY(Tableau2[R1_2]))))","v":""},{"$f":"IF(ISERROR(+DATE(YEAR(Tableau2[R2_2])+Tableau2[Validité_2],MONTH(Tableau2[R2_2]),DAY(Tableau2[R2_2]))),\"\",(+DATE(YEAR(Tableau2[R2_2])+Tableau2[Validité_2],MONTH(Tableau2[R2_2]),DAY(Tableau2[R2_2]))))","v":""},null,null,{"$f":"IF(ISERROR(VLOOKUP(Tableau2[Habilitation_3],Tableau1[],Tableau1[Validité2],0)),\"\",VLOOKUP(Tableau2[Habilitation_3],Tableau1[],Tableau1[Validité2],0))","v":""},null,null,{"$f":"IF(ISERROR(+DATE(YEAR(Tableau2[Dernier Recyclage_3])+Tableau2[Validité_3],MONTH(Tableau2[Dernier Recyclage_3]),DAY(Tableau2[Dernier Recyclage_3]))),\"\",(+DATE(YEAR(Tableau2[Dernier Recyclage_3])+Tableau2[Validité_3],MONTH(Tableau2[Dernier Recyclage_3]),DAY(Tableau2[Dernier Recyclage_3]))))","v":""},{"$f":"IF(ISERROR(+DATE(YEAR(Tableau2[R1_3])+Tableau2[Validité_3],MONTH(Tableau2[R1_3]),DAY(Tableau2[R1_3]))),\"\",(+DATE(YEAR(Tableau2[R1_3])+Tableau2[Validité_3],MONTH(Tableau2[R1_3]),DAY(Tableau2[R1_3]))))","v":""},{"$f":"IF(ISERROR(+DATE(YEAR(Tableau2[R2_3])+Tableau2[Validité_3],MONTH(Tableau2[R2_3]),DAY(Tableau2[R2_3]))),\"\",(+DATE(YEAR(Tableau2[R2_3])+Tableau2[Validité_3],MONTH(Tableau2[R2_3]),DAY(Tableau2[R2_3]))))","v":""},null,null,{"$f":"IF(ISERROR(VLOOKUP(Tableau2[Habilitation_4],Tableau1[],Tableau1[Validité2],0)),\"\",VLOOKUP(Tableau2[Habilitation_4],Tableau1[],Tableau1[Validité2],0))","v":""},null,null,{"$f":"IF(ISERROR(+DATE(YEAR(Tableau2[Dernier Recyclage_4])+Tableau2[Validité_4],MONTH(Tableau2[Dernier Recyclage_4]),DAY(Tableau2[Dernier Recyclage_4]))),\"\",(+DATE(YEAR(Tableau2[Dernier Recyclage_4])+Tableau2[Validité_4],MONTH(Tableau2[Dernier Recyclage_4]),DAY(Tableau2[Dernier Recyclage_4]))))","v":""},{"$f":"IF(ISERROR(+DATE(YEAR(Tableau2[R1_4])+Tableau2[Validité_4],MONTH(Tableau2[R1_4]),DAY(Tableau2[R1_4]))),\"\",(+DATE(YEAR(Tableau2[R1_4])+Tableau2[Validité_4],MONTH(Tableau2[R1_4]),DAY(Tableau2[R1_4]))))","v":""},{"$f":"IF(ISERROR(+DATE(YEAR(Tableau2[R2_4])+Tableau2[Validité_4],MONTH(Tableau2[R2_4]),DAY(Tableau2[R2_4]))),\"\",(+DATE(YEAR(Tableau2[R2_4])+Tableau2[Validité_4],MONTH(Tableau2[R2_4]),DAY(Tableau2[R2_4]))))","v":""},null,null,{"$f":"IF(ISERROR(VLOOKUP(Tableau2[Habilitation_5],Tableau1[],Tableau1[Validité2],0)),\"\",VLOOKUP(Tableau2[Habilitation_5],Tableau1[],Tableau1[Validité2],0))","v":""},null,null,{"$f":"IF(ISERROR(+DATE(YEAR(Tableau2[Dernier Recyclage_5])+Tableau2[Validité_5],MONTH(Tableau2[Dernier Recyclage_5]),DAY(Tableau2[Dernier Recyclage_5]))),\"\",(+DATE(YEAR(Tableau2[Dernier Recyclage_5])+Tableau2[Validité_5],MONTH(Tableau2[Dernier Recyclage_5]),DAY(Tableau2[Dernier Recyclage_5]))))","v":""},{"$f":"IF(ISERROR(+DATE(YEAR(Tableau2[R1_5])+Tableau2[Validité_5],MONTH(Tableau2[R1_5]),DAY(Tableau2[R1_5]))),\"\",(+DATE(YEAR(Tableau2[R1_5])+Tableau2[Validité_5],MONTH(Tableau2[R1_5]),DAY(Tableau2[R1_5]))))","v":""},{"$f":"IF(ISERROR(+DATE(YEAR(Tableau2[R2_5])+Tableau2[Validité_5],MONTH(Tableau2[R2_5]),DAY(Tableau2[R2_5]))),\"\",(+DATE(YEAR(Tableau2[R2_5])+Tableau2[Validité_5],MONTH(Tableau2[R2_5]),DAY(Tableau2[R2_5]))))","v":""},null,null,{"$f":"IF(ISERROR(VLOOKUP(Tableau2[Habilitation_6],Tableau1[],Tableau1[Validité2],0)),\"\",VLOOKUP(Tableau2[Habilitation_6],Tableau1[],Tableau1[Validité2],0))","v":""},null,null,{"$f":"IF(ISERROR(+DATE(YEAR(Tableau2[Dernier Recyclage_6])+Tableau2[Validité_6],MONTH(Tableau2[Dernier Recyclage_6]),DAY(Tableau2[Dernier Recyclage_6]))),\"\",(+DATE(YEAR(Tableau2[Dernier Recyclage_6])+Tableau2[Validité_6],MONTH(Tableau2[Dernier Recyclage_6]),DAY(Tableau2[Dernier Recyclage_6]))))","v":""},{"$f":"IF(ISERROR(+DATE(YEAR(Tableau2[R1_6])+Tableau2[Validité_6],MONTH(Tableau2[R1_6]),DAY(Tableau2[R1_6]))),\"\",(+DATE(YEAR(Tableau2[R1_6])+Tableau2[Validité_6],MONTH(Tableau2[R1_6]),DAY(Tableau2[R1_6]))))","v":""},{"$f":"IF(ISERROR(+DATE(YEAR(Tableau2[R2_6])+Tableau2[Validité_6],MONTH(Tableau2[R2_6]),DAY(Tableau2[R2_6]))),\"\",(+DATE(YEAR(Tableau2[R2_6])+Tableau2[Validité_6],MONTH(Tableau2[R2_6]),DAY(Tableau2[R2_6]))))","v":""},null,null,{"$f":"IF(ISERROR(VLOOKUP(Tableau2[Habilitation_7],Tableau1[],Tableau1[Validité2],0)),\"\",VLOOKUP(Tableau2[Habilitation_7],Tableau1[],Tableau1[Validité2],0))","v":""},null,null,{"$f":"IF(ISERROR(+DATE(YEAR(Tableau2[Dernier Recyclage_7])+Tableau2[Validité_7],MONTH(Tableau2[Dernier Recyclage_7]),DAY(Tableau2[Dernier Recyclage_7]))),\"\",(+DATE(YEAR(Tableau2[Dernier Recyclage_7])+Tableau2[Validité_7],MONTH(Tableau2[Dernier Recyclage_7]),DAY(Tableau2[Dernier Recyclage_7]))))","v":""},{"$f":"IF(ISERROR(+DATE(YEAR(Tableau2[R1_7])+Tableau2[Validité_7],MONTH(Tableau2[R1_7]),DAY(Tableau2[R1_7]))),\"\",(+DATE(YEAR(Tableau2[R1_7])+Tableau2[Validité_7],MONTH(Tableau2[R1_7]),DAY(Tableau2[R1_7]))))","v":""},{"$f":"IF(ISERROR(+DATE(YEAR(Tableau2[R2_7])+Tableau2[Validité_7],MONTH(Tableau2[R2_7]),DAY(Tableau2[R2_7]))),\"\",(+DATE(YEAR(Tableau2[R2_7])+Tableau2[Validité_7],MONTH(Tableau2[R2_7]),DAY(Tableau2[R2_7]))))","v":""}]
["Eee","EE","eee",null,{"$f":"+IF(ISERROR(VLOOKUP(Tableau2[[#This Row],[Habilitation_1]],Tableau1[],Tableau1[Validité2],0)),\"\",VLOOKUP(Tableau2[[#This Row],[Habilitation_1]],Tableau1[],Tableau1[Validité2],0))","v":""},null,null,{"$f":"IF(ISERROR(+DATE(YEAR(Tableau2[Dernier Recyclage])+Tableau2[[#This Row],[Validité]],MONTH(Tableau2[Dernier Recyclage]),DAY(Tableau2[Dernier Recyclage]))),\"\",(+DATE(YEAR(Tableau2[Dernier Recyclage])+Tableau2[[#This Row],[Validité]],MONTH(Tableau2[Dernier Recyclage]),DAY(Tableau2[Dernier Recyclage]))))","v":""},{"$f":"IF(ISERROR(+DATE(YEAR(Tableau2[[#This Row],[R1]])+Tableau2[[#This Row],[Validité]],MONTH(Tableau2[[#This Row],[R1]]),DAY(Tableau2[[#This Row],[R1]]))),\"\",(+DATE(YEAR(Tableau2[[#This Row],[R1]])+Tableau2[[#This Row],[Validité]],MONTH(Tableau2[[#This Row],[R1]]),DAY(Tableau2[[#This Row],[R1]]))))","v":""},{"$f":"IF(ISERROR(+DATE(YEAR(Tableau2[[#This Row],[R2]])+Tableau2[[#This Row],[Validité]],MONTH(Tableau2[[#This Row],[R2]]),DAY(Tableau2[[#This Row],[R2]]))),\"\",(+DATE(YEAR(Tableau2[[#This Row],[R2]])+Tableau2[[#This Row],[Validité]],MONTH(Tableau2[[#This Row],[R2]]),DAY(Tableau2[[#This Row],[R2]]))))","v":""},null,null,{"$f":"IF(ISERROR(VLOOKUP(Tableau2[Habilitation_2],Tableau1[],Tableau1[Validité2],0)),\"\",VLOOKUP(Tableau2[Habilitation_2],Tableau1[],Tableau1[Validité2],0))","v":""},null,null,{"$f":"IF(ISERROR(+DATE(YEAR(Tableau2[Dernier Recyclage_2])+Tableau2[Validité_2],MONTH(Tableau2[Dernier Recyclage_2]),DAY(Tableau2[Dernier Recyclage_2]))),\"\",(+DATE(YEAR(Tableau2[Dernier Recyclage_2])+Tableau2[Validité_2],MONTH(Tableau2[Dernier Recyclage_2]),DAY(Tableau2[Dernier Recyclage_2]))))","v":""},{"$f":"IF(ISERROR(+DATE(YEAR(Tableau2[R1_2])+Tableau2[Validité_2],MONTH(Tableau2[R1_2]),DAY(Tableau2[R1_2]))),\"\",(+DATE(YEAR(Tableau2[R1_2])+Tableau2[Validité_2],MONTH(Tableau2[R1_2]),DAY(Tableau2[R1_2]))))","v":""},{"$f":"IF(ISERROR(+DATE(YEAR(Tableau2[R2_2])+Tableau2[Validité_2],MONTH(Tableau2[R2_2]),DAY(Tableau2[R2_2]))),\"\",(+DATE(YEAR(Tableau2[R2_2])+Tableau2[Validité_2],MONTH(Tableau2[R2_2]),DAY(Tableau2[R2_2]))))","v":""},null,null,{"$f":"IF(ISERROR(VLOOKUP(Tableau2[Habilitation_3],Tableau1[],Tableau1[Validité2],0)),\"\",VLOOKUP(Tableau2[Habilitation_3],Tableau1[],Tableau1[Validité2],0))","v":""},null,null,{"$f":"IF(ISERROR(+DATE(YEAR(Tableau2[Dernier Recyclage_3])+Tableau2[Validité_3],MONTH(Tableau2[Dernier Recyclage_3]),DAY(Tableau2[Dernier Recyclage_3]))),\"\",(+DATE(YEAR(Tableau2[Dernier Recyclage_3])+Tableau2[Validité_3],MONTH(Tableau2[Dernier Recyclage_3]),DAY(Tableau2[Dernier Recyclage_3]))))","v":""},{"$f":"IF(ISERROR(+DATE(YEAR(Tableau2[R1_3])+Tableau2[Validité_3],MONTH(Tableau2[R1_3]),DAY(Tableau2[R1_3]))),\"\",(+DATE(YEAR(Tableau2[R1_3])+Tableau2[Validité_3],MONTH(Tableau2[R1_3]),DAY(Tableau2[R1_3]))))","v":""},{"$f":"IF(ISERROR(+DATE(YEAR(Tableau2[R2_3])+Tableau2[Validité_3],MONTH(Tableau2[R2_3]),DAY(Tableau2[R2_3]))),\"\",(+DATE(YEAR(Tableau2[R2_3])+Tableau2[Validité_3],MONTH(Tableau2[R2_3]),DAY(Tableau2[R2_3]))))","v":""},null,null,{"$f":"IF(ISERROR(VLOOKUP(Tableau2[Habilitation_4],Tableau1[],Tableau1[Validité2],0)),\"\",VLOOKUP(Tableau2[Habilitation_4],Tableau1[],Tableau1[Validité2],0))","v":""},null,null,{"$f":"IF(ISERROR(+DATE(YEAR(Tableau2[Dernier Recyclage_4])+Tableau2[Validité_4],MONTH(Tableau2[Dernier Recyclage_4]),DAY(Tableau2[Dernier Recyclage_4]))),\"\",(+DATE(YEAR(Tableau2[Dernier Recyclage_4])+Tableau2[Validité_4],MONTH(Tableau2[Dernier Recyclage_4]),DAY(Tableau2[Dernier Recyclage_4]))))","v":""},{"$f":"IF(ISERROR(+DATE(YEAR(Tableau2[R1_4])+Tableau2[Validité_4],MONTH(Tableau2[R1_4]),DAY(Tableau2[R1_4]))),\"\",(+DATE(YEAR(Tableau2[R1_4])+Tableau2[Validité_4],MONTH(Tableau2[R1_4]),DAY(Tableau2[R1_4]))))","v":""},{"$f":"IF(ISERROR(+DATE(YEAR(Tableau2[R2_4])+Tableau2[Validité_4],MONTH(Tableau2[R2_4]),DAY(Tableau2[R2_4]))),\"\",(+DATE(YEAR(Tableau2[R2_4])+Tableau2[Validité_4],MONTH(Tableau2[R2_4]),DAY(Tableau2[R2_4]))))","v":""},null,null,{"$f":"IF(ISERROR(VLOOKUP(Tableau2[Habilitation_5],Tableau1[],Tableau1[Validité2],0)),\"\",VLOOKUP(Tableau2[Habilitation_5],Tableau1[],Tableau1[Validité2],0))","v":""},null,null,{"$f":"IF(ISERROR(+DATE(YEAR(Tableau2[Dernier Recyclage_5])+Tableau2[Validité_5],MONTH(Tableau2[Dernier Recyclage_5]),DAY(Tableau2[Dernier Recyclage_5]))),\"\",(+DATE(YEAR(Tableau2[Dernier Recyclage_5])+Tableau2[Validité_5],MONTH(Tableau2[Dernier Recyclage_5]),DAY(Tableau2[Dernier Recyclage_5]))))","v":""},{"$f":"IF(ISERROR(+DATE(YEAR(Tableau2[R1_5])+Tableau2[Validité_5],MONTH(Tableau2[R1_5]),DAY(Tableau2[R1_5]))),\"\",(+DATE(YEAR(Tableau2[R1_5])+Tableau2[Validité_5],MONTH(Tableau2[R1_5]),DAY(Tableau2[R1_5]))))","v":""},{"$f":"IF(ISERROR(+DATE(YEAR(Tableau2[R2_5])+Tableau2[Validité_5],MONTH(Tableau2[R2_5]),DAY(Tableau2[R2_5]))),\"\",(+DATE(YEAR(Tableau2[R2_5])+Tableau2[Validité_5],MONTH(Tableau2[R2_5]),DAY(Tableau2[R2_5]))))","v":""},null,null,{"$f":"IF(ISERROR(VLOOKUP(Tableau2[Habilitation_6],Tableau1[],Tableau1[Validité2],0)),\"\",VLOOKUP(Tableau2[Habilitation_6],Tableau1[],Tableau1[Validité2],0))","v":""},null,null,{"$f":"IF(ISERROR(+DATE(YEAR(Tableau2[Dernier Recyclage_6])+Tableau2[Validité_6],MONTH(Tableau2[Dernier Recyclage_6]),DAY(Tableau2[Dernier Recyclage_6]))),\"\",(+DATE(YEAR(Tableau2[Dernier Recyclage_6])+Tableau2[Validité_6],MONTH(Tableau2[Dernier Recyclage_6]),DAY(Tableau2[Dernier Recyclage_6]))))","v":""},{"$f":"IF(ISERROR(+DATE(YEAR(Tableau2[R1_6])+Tableau2[Validité_6],MONTH(Tableau2[R1_6]),DAY(Tableau2[R1_6]))),\"\",(+DATE(YEAR(Tableau2[R1_6])+Tableau2[Validité_6],MONTH(Tableau2[R1_6]),DAY(Tableau2[R1_6]))))","v":""},{"$f":"IF(ISERROR(+DATE(YEAR(Tableau2[R2_6])+Tableau2[Validité_6],MONTH(Tableau2[R2_6]),DAY(Tableau2[R2_6]))),\"\",(+DATE(YEAR(Tableau2[R2_6])+Tableau2[Validité_6],MONTH(Tableau2[R2_6]),DAY(Tableau2[R2_6]))))","v":""},null,null,{"$f":"IF(ISERROR(VLOOKUP(Tableau2[Habilitation_7],Tableau1[],Tableau1[Validité2],0)),\"\",VLOOKUP(Tableau2[Habilitation_7],Tableau1[],Tableau1[Validité2],0))","v":""},null,null,{"$f":"IF(ISERROR(+DATE(YEAR(Tableau2[Dernier Recyclage_7])+Tableau2[Validité_7],MONTH(Tableau2[Dernier Recyclage_7]),DAY(Tableau2[Dernier Recyclage_7]))),\"\",(+DATE(YEAR(Tableau2[Dernier Recyclage_7])+Tableau2[Validité_7],MONTH(Tableau2[Dernier Recyclage_7]),DAY(Tableau2[Dernier Recyclage_7]))))","v":""},{"$f":"IF(ISERROR(+DATE(YEAR(Tableau2[R1_7])+Tableau2[Validité_7],MONTH(Tableau2[R1_7]),DAY(Tableau2[R1_7]))),\"\",(+DATE(YEAR(Tableau2[R1_7])+Tableau2[Validité_7],MONTH(Tableau2[R1_7]),DAY(Tableau2[R1_7]))))","v":""},{"$f":"IF(ISERROR(+DATE(YEAR(Tableau2[R2_7])+Tableau2[Validité_7],MONTH(Tableau2[R2_7]),DAY(Tableau2[R2_7]))),\"\",(+DATE(YEAR(Tableau2[R2_7])+Tableau2[Validité_7],MONTH(Tableau2[R2_7]),DAY(Tableau2[R2_7]))))","v":""}]
["Fff","FF","fff",null,{"$f":"+IF(ISERROR(VLOOKUP(Tableau2[[#This Row],[Habilitation_1]],Tableau1[],Tableau1[Validité2],0)),\"\",VLOOKUP(Tableau2[[#This Row],[Habilitation_1]],Tableau1[],Tableau1[Validité2],0))","v":""},null,null,{"$f":"IF(ISERROR(+DATE(YEAR(Tableau2[Dernier Recyclage])+Tableau2[[#This Row],[Validité]],MONTH(Tableau2[Dernier Recyclage]),DAY(Tableau2[Dernier Recyclage]))),\"\",(+DATE(YEAR(Tableau2[Dernier Recyclage])+Tableau2[[#This Row],[Validité]],MONTH(Tableau2[Dernier Recyclage]),DAY(Tableau2[Dernier Recyclage]))))","v":""},{"$f":"IF(ISERROR(+DATE(YEAR(Tableau2[[#This Row],[R1]])+Tableau2[[#This Row],[Validité]],MONTH(Tableau2[[#This Row],[R1]]),DAY(Tableau2[[#This Row],[R1]]))),\"\",(+DATE(YEAR(Tableau2[[#This Row],[R1]])+Tableau2[[#This Row],[Validité]],MONTH(Tableau2[[#This Row],[R1]]),DAY(Tableau2[[#This Row],[R1]]))))","v":""},{"$f":"IF(ISERROR(+DATE(YEAR(Tableau2[[#This Row],[R2]])+Tableau2[[#This Row],[Validité]],MONTH(Tableau2[[#This Row],[R2]]),DAY(Tableau2[[#This Row],[R2]]))),\"\",(+DATE(YEAR(Tableau2[[#This Row],[R2]])+Tableau2[[#This Row],[Validité]],MONTH(Tableau2[[#This Row],[R2]]),DAY(Tableau2[[#This Row],[R2]]))))","v":""},null,null,{"$f":"IF(ISERROR(VLOOKUP(Tableau2[Habilitation_2],Tableau1[],Tableau1[Validité2],0)),\"\",VLOOKUP(Tableau2[Habilitation_2],Tableau1[],Tableau1[Validité2],0))","v":""},null,null,{"$f":"IF(ISERROR(+DATE(YEAR(Tableau2[Dernier Recyclage_2])+Tableau2[Validité_2],MONTH(Tableau2[Dernier Recyclage_2]),DAY(Tableau2[Dernier Recyclage_2]))),\"\",(+DATE(YEAR(Tableau2[Dernier Recyclage_2])+Tableau2[Validité_2],MONTH(Tableau2[Dernier Recyclage_2]),DAY(Tableau2[Dernier Recyclage_2]))))","v":""},{"$f":"IF(ISERROR(+DATE(YEAR(Tableau2[R1_2])+Tableau2[Validité_2],MONTH(Tableau2[R1_2]),DAY(Tableau2[R1_2]))),\"\",(+DATE(YEAR(Tableau2[R1_2])+Tableau2[Validité_2],MONTH(Tableau2[R1_2]),DAY(Tableau2[R1_2]))))","v":""},{"$f":"IF(ISERROR(+DATE(YEAR(Tableau2[R2_2])+Tableau2[Validité_2],MONTH(Tableau2[R2_2]),DAY(Tableau2[R2_2]))),\"\",(+DATE(YEAR(Tableau2[R2_2])+Tableau2[Validité_2],MONTH(Tableau2[R2_2]),DAY(Tableau2[R2_2]))))","v":""},null,null,{"$f":"IF(ISERROR(VLOOKUP(Tableau2[Habilitation_3],Tableau1[],Tableau1[Validité2],0)),\"\",VLOOKUP(Tableau2[Habilitation_3],Tableau1[],Tableau1[Validité2],0))","v":""},null,null,{"$f":"IF(ISERROR(+DATE(YEAR(Tableau2[Dernier Recyclage_3])+Tableau2[Validité_3],MONTH(Tableau2[Dernier Recyclage_3]),DAY(Tableau2[Dernier Recyclage_3]))),\"\",(+DATE(YEAR(Tableau2[Dernier Recyclage_3])+Tableau2[Validité_3],MONTH(Tableau2[Dernier Recyclage_3]),DAY(Tableau2[Dernier Recyclage_3]))))","v":""},{"$f":"IF(ISERROR(+DATE(YEAR(Tableau2[R1_3])+Tableau2[Validité_3],MONTH(Tableau2[R1_3]),DAY(Tableau2[R1_3]))),\"\",(+DATE(YEAR(Tableau2[R1_3])+Tableau2[Validité_3],MONTH(Tableau2[R1_3]),DAY(Tableau2[R1_3]))))","v":""},{"$f":"IF(ISERROR(+DATE(YEAR(Tableau2[R2_3])+Tableau2[Validité_3],MONTH(Tableau2[R2_3]),DAY(Tableau2[R2_3]))),\"\",(+DATE(YEAR(Tableau2[R2_3])+Tableau2[Validité_3],MONTH(Tableau2[R2_3]),DAY(Tableau2[R2_3]))))","v":""},null,null,{"$f":"IF(ISERROR(VLOOKUP(Tableau2[Habilitation_4],Tableau1[],Tableau1[Validité2],0)),\"\",VLOOKUP(Tableau2[Habilitation_4],Tableau1[],Tableau1[Validité2],0))","v":""},null,null,{"$f":"IF(ISERROR(+DATE(YEAR(Tableau2[Dernier Recyclage_4])+Tableau2[Validité_4],MONTH(Tableau2[Dernier Recyclage_4]),DAY(Tableau2[Dernier Recyclage_4]))),\"\",(+DATE(YEAR(Tableau2[Dernier Recyclage_4])+Tableau2[Validité_4],MONTH(Tableau2[Dernier Recyclage_4]),DAY(Tableau2[Dernier Recyclage_4]))))","v":""},{"$f":"IF(ISERROR(+DATE(YEAR(Tableau2[R1_4])+Tableau2[Validité_4],MONTH(Tableau2[R1_4]),DAY(Tableau2[R1_4]))),\"\",(+DATE(YEAR(Tableau2[R1_4])+Tableau2[Validité_4],MONTH(Tableau2[R1_4]),DAY(Tableau2[R1_4]))))","v":""},{"$f":"IF(ISERROR(+DATE(YEAR(Tableau2[R2_4])+Tableau2[Validité_4],MONTH(Tableau2[R2_4]),DAY(Tableau2[R2_4]))),\"\",(+DATE(YEAR(Tableau2[R2_4])+Tableau2[Validité_4],MONTH(Tableau2[R2_4]),DAY(Tableau2[R2_4]))))","v":""},null,null,{"$f":"IF(ISERROR(VLOOKUP(Tableau2[Habilitation_5],Tableau1[],Tableau1[Validité2],0)),\"\",VLOOKUP(Tableau2[Habilitation_5],Tableau1[],Tableau1[Validité2],0))","v":""},null,null,{"$f":"IF(ISERROR(+DATE(YEAR(Tableau2[Dernier Recyclage_5])+Tableau2[Validité_5],MONTH(Tableau2[Dernier Recyclage_5]),DAY(Tableau2[Dernier Recyclage_5]))),\"\",(+DATE(YEAR(Tableau2[Dernier Recyclage_5])+Tableau2[Validité_5],MONTH(Tableau2[Dernier Recyclage_5]),DAY(Tableau2[Dernier Recyclage_5]))))","v":""},{"$f":"IF(ISERROR(+DATE(YEAR(Tableau2[R1_5])+Tableau2[Validité_5],MONTH(Tableau2[R1_5]),DAY(Tableau2[R1_5]))),\"\",(+DATE(YEAR(Tableau2[R1_5])+Tableau2[Validité_5],MONTH(Tableau2[R1_5]),DAY(Tableau2[R1_5]))))","v":""},{"$f":"IF(ISERROR(+DATE(YEAR(Tableau2[R2_5])+Tableau2[Validité_5],MONTH(Tableau2[R2_5]),DAY(Tableau2[R2_5]))),\"\",(+DATE(YEAR(Tableau2[R2_5])+Tableau2[Validité_5],MONTH(Tableau2[R2_5]),DAY(Tableau2[R2_5]))))","v":""},null,null,{"$f":"IF(ISERROR(VLOOKUP(Tableau2[Habilitation_6],Tableau1[],Tableau1[Validité2],0)),\"\",VLOOKUP(Tableau2[Habilitation_6],Tableau1[],Tableau1[Validité2],0))","v":""},null,null,{"$f":"IF(ISERROR(+DATE(YEAR(Tableau2[Dernier Recyclage_6])+Tableau2[Validité_6],MONTH(Tableau2[Dernier Recyclage_6]),DAY(Tableau2[Dernier Recyclage_6]))),\"\",(+DATE(YEAR(Tableau2[Dernier Recyclage_6])+Tableau2[Validité_6],MONTH(Tableau2[Dernier Recyclage_6]),DAY(Tableau2[Dernier Recyclage_6]))))","v":""},{"$f":"IF(ISERROR(+DATE(YEAR(Tableau2[R1_6])+Tableau2[Validité_6],MONTH(Tableau2[R1_6]),DAY(Tableau2[R1_6]))),\"\",(+DATE(YEAR(Tableau2[R1_6])+Tableau2[Validité_6],MONTH(Tableau2[R1_6]),DAY(Tableau2[R1_6]))))","v":""},{"$f":"IF(ISERROR(+DATE(YEAR(Tableau2[R2_6])+Tableau2[Validité_6],MONTH(Tableau2[R2_6]),DAY(Tableau2[R2_6]))),\"\",(+DATE(YEAR(Tableau2[R2_6])+Tableau2[Validité_6],MONTH(Tableau2[R2_6]),DAY(Tableau2[R2_6]))))","v":""},null,null,{"$f":"IF(ISERROR(VLOOKUP(Tableau2[Habilitation_7],Tableau1[],Tableau1[Validité2],0)),\"\",VLOOKUP(Tableau2[Habilitation_7],Tableau1[],Tableau1[Validité2],0))","v":""},null,null,{"$f":"IF(ISERROR(+DATE(YEAR(Tableau2[Dernier Recyclage_7])+Tableau2[Validité_7],MONTH(Tableau2[Dernier Recyclage_7]),DAY(Tableau2[Dernier Recyclage_7]))),\"\",(+DATE(YEAR(Tableau2[Dernier Recyclage_7])+Tableau2[Validité_7],MONTH(Tableau2[Dernier Recyclage_7]),DAY(Tableau2[Dernier Recyclage_7]))))","v":""},{"$f":"IF(ISERROR(+DATE(YEAR(Tableau2[R1_7])+Tableau2[Validité_7],MONTH(Tableau2[R1_7]),DAY(Tableau2[R1_7]))),\"\",(+DATE(YEAR(Tableau2[R1_7])+Tableau2[Validité_7],MONTH(Tableau2[R1_7]),DAY(Tableau2[R1_7]))))","v":""},{"$f":"IF(ISERROR(+DATE(YEAR(Tableau2[R2_7])+Tableau2[Validité_7],MONTH(Tableau2[R2_7]),DAY(Tableau2[R2_7]))),\"\",(+DATE(YEAR(Tableau2[R2_7])+Tableau2[Validité_7],MONTH(Tableau2[R2_7]),DAY(Tableau2[R2_7]))))","v":""}]
["Ggg","GG","ggg",null,{"$f":"+IF(ISERROR(VLOOKUP(Tableau2[[#This Row],[Habilitation_1]],Tableau1[],Tableau1[Validité2],0)),\"\",VLOOKUP(Tableau2[[#This Row],[Habilitation_1]],Tableau1[],Tableau1[Validité2],0))","v":""},null,null,{"$f":"IF(ISERROR(+DATE(YEAR(Tableau2[Dernier Recyclage])+Tableau2[[#This Row],[Validité]],MONTH(Tableau2[Dernier Recyclage]),DAY(Tableau2[Dernier Recyclage]))),\"\",(+DATE(YEAR(Tableau2[Dernier Recyclage])+Tableau2[[#This Row],[Validité]],MONTH(Tableau2[Dernier Recyclage]),DAY(Tableau2[Dernier Recyclage]))))","v":""},{"$f":"IF(ISERROR(+DATE(YEAR(Tableau2[[#This Row],[R1]])+Tableau2[[#This Row],[Validité]],MONTH(Tableau2[[#This Row],[R1]]),DAY(Tableau2[[#This Row],[R1]]))),\"\",(+DATE(YEAR(Tableau2[[#This Row],[R1]])+Tableau2[[#This Row],[Validité]],MONTH(Tableau2[[#This Row],[R1]]),DAY(Tableau2[[#This Row],[R1]]))))","v":""},{"$f":"IF(ISERROR(+DATE(YEAR(Tableau2[[#This Row],[R2]])+Tableau2[[#This Row],[Validité]],MONTH(Tableau2[[#This Row],[R2]]),DAY(Tableau2[[#This Row],[R2]]))),\"\",(+DATE(YEAR(Tableau2[[#This Row],[R2]])+Tableau2[[#This Row],[Validité]],MONTH(Tableau2[[#This Row],[R2]]),DAY(Tableau2[[#This Row],[R2]]))))","v":""},null,null,{"$f":"IF(ISERROR(VLOOKUP(Tableau2[Habilitation_2],Tableau1[],Tableau1[Validité2],0)),\"\",VLOOKUP(Tableau2[Habilitation_2],Tableau1[],Tableau1[Validité2],0))","v":""},null,null,{"$f":"IF(ISERROR(+DATE(YEAR(Tableau2[Dernier Recyclage_2])+Tableau2[Validité_2],MONTH(Tableau2[Dernier Recyclage_2]),DAY(Tableau2[Dernier Recyclage_2]))),\"\",(+DATE(YEAR(Tableau2[Dernier Recyclage_2])+Tableau2[Validité_2],MONTH(Tableau2[Dernier Recyclage_2]),DAY(Tableau2[Dernier Recyclage_2]))))","v":""},{"$f":"IF(ISERROR(+DATE(YEAR(Tableau2[R1_2])+Tableau2[Validité_2],MONTH(Tableau2[R1_2]),DAY(Tableau2[R1_2]))),\"\",(+DATE(YEAR(Tableau2[R1_2])+Tableau2[Validité_2],MONTH(Tableau2[R1_2]),DAY(Tableau2[R1_2]))))","v":""},{"$f":"IF(ISERROR(+DATE(YEAR(Tableau2[R2_2])+Tableau2[Validité_2],MONTH(Tableau2[R2_2]),DAY(Tableau2[R2_2]))),\"\",(+DATE(YEAR(Tableau2[R2_2])+Tableau2[Validité_2],MONTH(Tableau2[R2_2]),DAY(Tableau2[R2_2]))))","v":""},null,null,{"$f":"IF(ISERROR(VLOOKUP(Tableau2[Habilitation_3],Tableau1[],Tableau1[Validité2],0)),\"\",VLOOKUP(Tableau2[Habilitation_3],Tableau1[],Tableau1[Validité2],0))","v":""},null,null,{"$f":"IF(ISERROR(+DATE(YEAR(Tableau2[Dernier Recyclage_3])+Tableau2[Validité_3],MONTH(Tableau2[Dernier Recyclage_3]),DAY(Tableau2[Dernier Recyclage_3]))),\"\",(+DATE(YEAR(Tableau2[Dernier Recyclage_3])+Tableau2[Validité_3],MONTH(Tableau2[Dernier Recyclage_3]),DAY(Tableau2[Dernier Recyclage_3]))))","v":""},{"$f":"IF(ISERROR(+DATE(YEAR(Tableau2[R1_3])+Tableau2[Validité_3],MONTH(Tableau2[R1_3]),DAY(Tableau2[R1_3]))),\"\",(+DATE(YEAR(Tableau2[R1_3])+Tableau2[Validité_3],MONTH(Tableau2[R1_3]),DAY(Tableau2[R1_3]))))","v":""},{"$f":"IF(ISERROR(+DATE(YEAR(Tableau2[R2_3])+Tableau2[Validité_3],MONTH(Tableau2[R2_3]),DAY(Tableau2[R2_3]))),\"\",(+DATE(YEAR(Tableau2[R2_3])+Tableau2[Validité_3],MONTH(Tableau2[R2_3]),DAY(Tableau2[R2_3]))))","v":""},null,null,{"$f":"IF(ISERROR(VLOOKUP(Tableau2[Habilitation_4],Tableau1[],Tableau1[Validité2],0)),\"\",VLOOKUP(Tableau2[Habilitation_4],Tableau1[],Tableau1[Validité2],0))","v":""},null,null,{"$f":"IF(ISERROR(+DATE(YEAR(Tableau2[Dernier Recyclage_4])+Tableau2[Validité_4],MONTH(Tableau2[Dernier Recyclage_4]),DAY(Tableau2[Dernier Recyclage_4]))),\"\",(+DATE(YEAR(Tableau2[Dernier Recyclage_4])+Tableau2[Validité_4],MONTH(Tableau2[Dernier Recyclage_4]),DAY(Tableau2[Dernier Recyclage_4]))))","v":""},{"$f":"IF(ISERROR(+DATE(YEAR(Tableau2[R1_4])+Tableau2[Validité_4],MONTH(Tableau2[R1_4]),DAY(Tableau2[R1_4]))),\"\",(+DATE(YEAR(Tableau2[R1_4])+Tableau2[Validité_4],MONTH(Tableau2[R1_4]),DAY(Tableau2[R1_4]))))","v":""},{"$f":"IF(ISERROR(+DATE(YEAR(Tableau2[R2_4])+Tableau2[Validité_4],MONTH(Tableau2[R2_4]),DAY(Tableau2[R2_4]))),\"\",(+DATE(YEAR(Tableau2[R2_4])+Tableau2[Validité_4],MONTH(Tableau2[R2_4]),DAY(Tableau2[R2_4]))))","v":""},null,null,{"$f":"IF(ISERROR(VLOOKUP(Tableau2[Habilitation_5],Tableau1[],Tableau1[Validité2],0)),\"\",VLOOKUP(Tableau2[Habilitation_5],Tableau1[],Tableau1[Validité2],0))","v":""},null,null,{"$f":"IF(ISERROR(+DATE(YEAR(Tableau2[Dernier Recyclage_5])+Tableau2[Validité_5],MONTH(Tableau2[Dernier Recyclage_5]),DAY(Tableau2[Dernier Recyclage_5]))),\"\",(+DATE(YEAR(Tableau2[Dernier Recyclage_5])+Tableau2[Validité_5],MONTH(Tableau2[Dernier Recyclage_5]),DAY(Tableau2[Dernier Recyclage_5]))))","v":""},{"$f":"IF(ISERROR(+DATE(YEAR(Tableau2[R1_5])+Tableau2[Validité_5],MONTH(Tableau2[R1_5]),DAY(Tableau2[R1_5]))),\"\",(+DATE(YEAR(Tableau2[R1_5])+Tableau2[Validité_5],MONTH(Tableau2[R1_5]),DAY(Tableau2[R1_5]))))","v":""},{"$f":"IF(ISERROR(+DATE(YEAR(Tableau2[R2_5])+Tableau2[Validité_5],MONTH(Tableau2[R2_5]),DAY(Tableau2[R2_5]))),\"\",(+DATE(YEAR(Tableau2[R2_5])+Tableau2[Validité_5],MONTH(Tableau2[R2_5]),DAY(Tableau2[R2_5]))))","v":""},null,null,{"$f":"IF(ISERROR(VLOOKUP(Tableau2[Habilitation_6],Tableau1[],Tableau1[Validité2],0)),\"\",VLOOKUP(Tableau2[Habilitation_6],Tableau1[],Tableau1[Validité2],0))","v":""},null,null,{"$f":"IF(ISERROR(+DATE(YEAR(Tableau2[Dernier Recyclage_6])+Tableau2[Validité_6],MONTH(Tableau2[Dernier Recyclage_6]),DAY(Tableau2[Dernier Recyclage_6]))),\"\",(+DATE(YEAR(Tableau2[Dernier Recyclage_6])+Tableau2[Validité_6],MONTH(Tableau2[Dernier Recyclage_6]),DAY(Tableau2[Dernier Recyclage_6]))))","v":""},{"$f":"IF(ISERROR(+DATE(YEAR(Tableau2[R1_6])+Tableau2[Validité_6],MONTH(Tableau2[R1_6]),DAY(Tableau2[R1_6]))),\"\",(+DATE(YEAR(Tableau2[R1_6])+Tableau2[Validité_6],MONTH(Tableau2[R1_6]),DAY(Tableau2[R1_6]))))","v":""},{"$f":"IF(ISERROR(+DATE(YEAR(Tableau2[R2_6])+Tableau2[Validité_6],MONTH(Tableau2[R2_6]),DAY(Tableau2[R2_6]))),\"\",(+DATE(YEAR(Tableau2[R2_6])+Tableau2[Validité_6],MONTH(Tableau2[R2_6]),DAY(Tableau2[R2_6]))))","v":""},null,null,{"$f":"IF(ISERROR(VLOOKUP(Tableau2[Habilitation_7],Tableau1[],Tableau1[Validité2],0)),\"\",VLOOKUP(Tableau2[Habilitation_7],Tableau1[],Tableau1[Validité2],0))","v":""},null,null,{"$f":"IF(ISERROR(+DATE(YEAR(Tableau2[Dernier Recyclage_7])+Tableau2[Validité_7],MONTH(Tableau2[Dernier Recyclage_7]),DAY(Tableau2[Dernier Recyclage_7]))),\"\",(+DATE(YEAR(Tableau2[Dernier Recyclage_7])+Tableau2[Validité_7],MONTH(Tableau2[Dernier Recyclage_7]),DAY(Tableau2[Dernier Recyclage_7]))))","v":""},{"$f":"IF(ISERROR(+DATE(YEAR(Tableau2[R1_7])+Tableau2[Validité_7],MONTH(Tableau2[R1_7]),DAY(Tableau2[R1_7]))),\"\",(+DATE(YEAR(Tableau2[R1_7])+Tableau2[Validité_7],MONTH(Tableau2[R1_7]),DAY(Tableau2[R1_7]))))","v":""},{"$f":"IF(ISERROR(+DATE(YEAR(Tableau2[R2_7])+Tableau2[Validité_7],MONTH(Tableau2[R2_7]),DAY(Tableau2[R2_7]))),\"\",(+DATE(YEAR(Tableau2[R2_7])+Tableau2[Validité_7],MONTH(Tableau2[R2_7]),DAY(Tableau2[R2_7]))))","v":""}]
["Hhh","HH","hhh",null,{"$f":"+IF(ISERROR(VLOOKUP(Tableau2[[#This Row],[Habilitation_1]],Tableau1[],Tableau1[Validité2],0)),\"\",VLOOKUP(Tableau2[[#This Row],[Habilitation_1]],Tableau1[],Tableau1[Validité2],0))","v":""},null,null,{"$f":"IF(ISERROR(+DATE(YEAR(Tableau2[Dernier Recyclage])+Tableau2[[#This Row],[Validité]],MONTH(Tableau2[Dernier Recyclage]),DAY(Tableau2[Dernier Recyclage]))),\"\",(+DATE(YEAR(Tableau2[Dernier Recyclage])+Tableau2[[#This Row],[Validité]],MONTH(Tableau2[Dernier Recyclage]),DAY(Tableau2[Dernier Recyclage]))))","v":""},{"$f":"IF(ISERROR(+DATE(YEAR(Tableau2[[#This Row],[R1]])+Tableau2[[#This Row],[Validité]],MONTH(Tableau2[[#This Row],[R1]]),DAY(Tableau2[[#This Row],[R1]]))),\"\",(+DATE(YEAR(Tableau2[[#This Row],[R1]])+Tableau2[[#This Row],[Validité]],MONTH(Tableau2[[#This Row],[R1]]),DAY(Tableau2[[#This Row],[R1]]))))","v":""},{"$f":"IF(ISERROR(+DATE(YEAR(Tableau2[[#This Row],[R2]])+Tableau2[[#This Row],[Validité]],MONTH(Tableau2[[#This Row],[R2]]),DAY(Tableau2[[#This Row],[R2]]))),\"\",(+DATE(YEAR(Tableau2[[#This Row],[R2]])+Tableau2[[#This Row],[Validité]],MONTH(Tableau2[[#This Row],[R2]]),DAY(Tableau2[[#This Row],[R2]]))))","v":""},null,null,{"$f":"IF(ISERROR(VLOOKUP(Tableau2[Habilitation_2],Tableau1[],Tableau1[Validité2],0)),\"\",VLOOKUP(Tableau2[Habilitation_2],Tableau1[],Tableau1[Validité2],0))","v":""},null,null,{"$f":"IF(ISERROR(+DATE(YEAR(Tableau2[Dernier Recyclage_2])+Tableau2[Validité_2],MONTH(Tableau2[Dernier Recyclage_2]),DAY(Tableau2[Dernier Recyclage_2]))),\"\",(+DATE(YEAR(Tableau2[Dernier Recyclage_2])+Tableau2[Validité_2],MONTH(Tableau2[Dernier Recyclage_2]),DAY(Tableau2[Dernier Recyclage_2]))))","v":""},{"$f":"IF(ISERROR(+DATE(YEAR(Tableau2[R1_2])+Tableau2[Validité_2],MONTH(Tableau2[R1_2]),DAY(Tableau2[R1_2]))),\"\",(+DATE(YEAR(Tableau2[R1_2])+Tableau2[Validité_2],MONTH(Tableau2[R1_2]),DAY(Tableau2[R1_2]))))","v":""},{"$f":"IF(ISERROR(+DATE(YEAR(Tableau2[R2_2])+Tableau2[Validité_2],MONTH(Tableau2[R2_2]),DAY(Tableau2[R2_2]))),\"\",(+DATE(YEAR(Tableau2[R2_2])+Tableau2[Validité_2],MONTH(Tableau2[R2_2]),DAY(Tableau2[R2_2]))))","v":""},null,null,{"$f":"IF(ISERROR(VLOOKUP(Tableau2[Habilitation_3],Tableau1[],Tableau1[Validité2],0)),\"\",VLOOKUP(Tableau2[Habilitation_3],Tableau1[],Tableau1[Validité2],0))","v":""},null,null,{"$f":"IF(ISERROR(+DATE(YEAR(Tableau2[Dernier Recyclage_3])+Tableau2[Validité_3],MONTH(Tableau2[Dernier Recyclage_3]),DAY(Tableau2[Dernier Recyclage_3]))),\"\",(+DATE(YEAR(Tableau2[Dernier Recyclage_3])+Tableau2[Validité_3],MONTH(Tableau2[Dernier Recyclage_3]),DAY(Tableau2[Dernier Recyclage_3]))))","v":""},{"$f":"IF(ISERROR(+DATE(YEAR(Tableau2[R1_3])+Tableau2[Validité_3],MONTH(Tableau2[R1_3]),DAY(Tableau2[R1_3]))),\"\",(+DATE(YEAR(Tableau2[R1_3])+Tableau2[Validité_3],MONTH(Tableau2[R1_3]),DAY(Tableau2[R1_3]))))","v":""},{"$f":"IF(ISERROR(+DATE(YEAR(Tableau2[R2_3])+Tableau2[Validité_3],MONTH(Tableau2[R2_3]),DAY(Tableau2[R2_3]))),\"\",(+DATE(YEAR(Tableau2[R2_3])+Tableau2[Validité_3],MONTH(Tableau2[R2_3]),DAY(Tableau2[R2_3]))))","v":""},null,null,{"$f":"IF(ISERROR(VLOOKUP(Tableau2[Habilitation_4],Tableau1[],Tableau1[Validité2],0)),\"\",VLOOKUP(Tableau2[Habilitation_4],Tableau1[],Tableau1[Validité2],0))","v":""},null,null,{"$f":"IF(ISERROR(+DATE(YEAR(Tableau2[Dernier Recyclage_4])+Tableau2[Validité_4],MONTH(Tableau2[Dernier Recyclage_4]),DAY(Tableau2[Dernier Recyclage_4]))),\"\",(+DATE(YEAR(Tableau2[Dernier Recyclage_4])+Tableau2[Validité_4],MONTH(Tableau2[Dernier Recyclage_4]),DAY(Tableau2[Dernier Recyclage_4]))))","v":""},{"$f":"IF(ISERROR(+DATE(YEAR(Tableau2[R1_4])+Tableau2[Validité_4],MONTH(Tableau2[R1_4]),DAY(Tableau2[R1_4]))),\"\",(+DATE(YEAR(Tableau2[R1_4])+Tableau2[Validité_4],MONTH(Tableau2[R1_4]),DAY(Tableau2[R1_4]))))","v":""},{"$f":"IF(ISERROR(+DATE(YEAR(Tableau2[R2_4])+Tableau2[Validité_4],MONTH(Tableau2[R2_4]),DAY(Tableau2[R2_4]))),\"\",(+DATE(YEAR(Tableau2[R2_4])+Tableau2[Validité_4],MONTH(Tableau2[R2_4]),DAY(Tableau2[R2_4]))))","v":""},null,null,{"$f":"IF(ISERROR(VLOOKUP(Tableau2[Habilitation_5],Tableau1[],Tableau1[Validité2],0)),\"\",VLOOKUP(Tableau2[Habilitation_5],Tableau1[],Tableau1[Validité2],0))","v":""},null,null,{"$f":"IF(ISERROR(+DATE(YEAR(Tableau2[Dernier Recyclage_5])+Tableau2[Validité_5],MONTH(Tableau2[Dernier Recyclage_5]),DAY(Tableau2[Dernier Recyclage_5]))),\"\",(+DATE(YEAR(Tableau2[Dernier Recyclage_5])+Tableau2[Validité_5],MONTH(Tableau2[Dernier Recyclage_5]),DAY(Tableau2[Dernier Recyclage_5]))))","v":""},{"$f":"IF(ISERROR(+DATE(YEAR(Tableau2[R1_5])+Tableau2[Validité_5],MONTH(Tableau2[R1_5]),DAY(Tableau2[R1_5]))),\"\",(+DATE(YEAR(Tableau2[R1_5])+Tableau2[Validité_5],MONTH(Tableau2[R1_5]),DAY(Tableau2[R1_5]))))","v":""},{"$f":"IF(ISERROR(+DATE(YEAR(Tableau2[R2_5])+Tableau2[Validité_5],MONTH(Tableau2[R2_5]),DAY(Tableau2[R2_5]))),\"\",(+DATE(YEAR(Tableau2[R2_5])+Tableau2[Validité_5],MONTH(Tableau2[R2_5]),DAY(Tableau2[R2_5]))))","v":""},null,null,{"$f":"IF(ISERROR(VLOOKUP(Tableau2[Habilitation_6],Tableau1[],Tableau1[Validité2],0)),\"\",VLOOKUP(Tableau2[Habilitation_6],Tableau1[],Tableau1[Validité2],0))","v":""},null,null,{"$f":"IF(ISERROR(+DATE(YEAR(Tableau2[Dernier Recyclage_6])+Tableau2[Validité_6],MONTH(Tableau2[Dernier Recyclage_6]),DAY(Tableau2[Dernier Recyclage_6]))),\"\",(+DATE(YEAR(Tableau2[Dernier Recyclage_6])+Tableau2[Validité_6],MONTH(Tableau2[Dernier Recyclage_6]),DAY(Tableau2[Dernier Recyclage_6]))))","v":""},{"$f":"IF(ISERROR(+DATE(YEAR(Tableau2[R1_6])+Tableau2[Validité_6],MONTH(Tableau2[R1_6]),DAY(Tableau2[R1_6]))),\"\",(+DATE(YEAR(Tableau2[R1_6])+Tableau2[Validité_6],MONTH(Tableau2[R1_6]),DAY(Tableau2[R1_6]))))","v":""},{"$f":"IF(ISERROR(+DATE(YEAR(Tableau2[R2_6])+Tableau2[Validité_6],MONTH(Tableau2[R2_6]),DAY(Tableau2[R2_6]))),\"\",(+DATE(YEAR(Tableau2[R2_6])+Tableau2[Validité_6],MONTH(Tableau2[R2_6]),DAY(Tableau2[R2_6]))))","v":""},null,null,{"$f":"IF(ISERROR(VLOOKUP(Tableau2[Habilitation_7],Tableau1[],Tableau1[Validité2],0)),\"\",VLOOKUP(Tableau2[Habilitation_7],Tableau1[],Tableau1[Validité2],0))","v":""},null,null,{"$f":"IF(ISERROR(+DATE(YEAR(Tableau2[Dernier Recyclage_7])+Tableau2[Validité_7],MONTH(Tableau2[Dernier Recyclage_7]),DAY(Tableau2[Dernier Recyclage_7]))),\"\",(+DATE(YEAR(Tableau2[Dernier Recyclage_7])+Tableau2[Validité_7],MONTH(Tableau2[Dernier Recyclage_7]),DAY(Tableau2[Dernier Recyclage_7]))))","v":""},{"$f":"IF(ISERROR(+DATE(YEAR(Tableau2[R1_7])+Tableau2[Validité_7],MONTH(Tableau2[R1_7]),DAY(Tableau2[R1_7]))),\"\",(+DATE(YEAR(Tableau2[R1_7])+Tableau2[Validité_7],MONTH(Tableau2[R1_7]),DAY(Tableau2[R1_7]))))","v":""},{"$f":"IF(ISERROR(+DATE(YEAR(Tableau2[R2_7])+Tableau2[Validité_7],MONTH(Tableau2[R2_7]),DAY(Tableau2[R2_7]))),\"\",(+DATE(YEAR(Tableau2[R2_7])+Tableau2[Validité_7],MONTH(Tableau2[R2_7]),DAY(Tableau2[R2_7]))))","v":""}]
["Iii","II","iii",null,{"$f":"+IF(ISERROR(VLOOKUP(Tableau2[[#This Row],[Habilitation_1]],Tableau1[],Tableau1[Validité2],0)),\"\",VLOOKUP(Tableau2[[#This Row],[Habilitation_1]],Tableau1[],Tableau1[Validité2],0))","v":""},null,null,{"$f":"IF(ISERROR(+DATE(YEAR(Tableau2[Dernier Recyclage])+Tableau2[[#This Row],[Validité]],MONTH(Tableau2[Dernier Recyclage]),DAY(Tableau2[Dernier Recyclage]))),\"\",(+DATE(YEAR(Tableau2[Dernier Recyclage])+Tableau2[[#This Row],[Validité]],MONTH(Tableau2[Dernier Recyclage]),DAY(Tableau2[Dernier Recyclage]))))","v":""},{"$f":"IF(ISERROR(+DATE(YEAR(Tableau2[[#This Row],[R1]])+Tableau2[[#This Row],[Validité]],MONTH(Tableau2[[#This Row],[R1]]),DAY(Tableau2[[#This Row],[R1]]))),\"\",(+DATE(YEAR(Tableau2[[#This Row],[R1]])+Tableau2[[#This Row],[Validité]],MONTH(Tableau2[[#This Row],[R1]]),DAY(Tableau2[[#This Row],[R1]]))))","v":""},{"$f":"IF(ISERROR(+DATE(YEAR(Tableau2[[#This Row],[R2]])+Tableau2[[#This Row],[Validité]],MONTH(Tableau2[[#This Row],[R2]]),DAY(Tableau2[[#This Row],[R2]]))),\"\",(+DATE(YEAR(Tableau2[[#This Row],[R2]])+Tableau2[[#This Row],[Validité]],MONTH(Tableau2[[#This Row],[R2]]),DAY(Tableau2[[#This Row],[R2]]))))","v":""},null,null,{"$f":"IF(ISERROR(VLOOKUP(Tableau2[Habilitation_2],Tableau1[],Tableau1[Validité2],0)),\"\",VLOOKUP(Tableau2[Habilitation_2],Tableau1[],Tableau1[Validité2],0))","v":""},null,null,{"$f":"IF(ISERROR(+DATE(YEAR(Tableau2[Dernier Recyclage_2])+Tableau2[Validité_2],MONTH(Tableau2[Dernier Recyclage_2]),DAY(Tableau2[Dernier Recyclage_2]))),\"\",(+DATE(YEAR(Tableau2[Dernier Recyclage_2])+Tableau2[Validité_2],MONTH(Tableau2[Dernier Recyclage_2]),DAY(Tableau2[Dernier Recyclage_2]))))","v":""},{"$f":"IF(ISERROR(+DATE(YEAR(Tableau2[R1_2])+Tableau2[Validité_2],MONTH(Tableau2[R1_2]),DAY(Tableau2[R1_2]))),\"\",(+DATE(YEAR(Tableau2[R1_2])+Tableau2[Validité_2],MONTH(Tableau2[R1_2]),DAY(Tableau2[R1_2]))))","v":""},{"$f":"IF(ISERROR(+DATE(YEAR(Tableau2[R2_2])+Tableau2[Validité_2],MONTH(Tableau2[R2_2]),DAY(Tableau2[R2_2]))),\"\",(+DATE(YEAR(Tableau2[R2_2])+Tableau2[Validité_2],MONTH(Tableau2[R2_2]),DAY(Tableau2[R2_2]))))","v":""},null,null,{"$f":"IF(ISERROR(VLOOKUP(Tableau2[Habilitation_3],Tableau1[],Tableau1[Validité2],0)),\"\",VLOOKUP(Tableau2[Habilitation_3],Tableau1[],Tableau1[Validité2],0))","v":""},null,null,{"$f":"IF(ISERROR(+DATE(YEAR(Tableau2[Dernier Recyclage_3])+Tableau2[Validité_3],MONTH(Tableau2[Dernier Recyclage_3]),DAY(Tableau2[Dernier Recyclage_3]))),\"\",(+DATE(YEAR(Tableau2[Dernier Recyclage_3])+Tableau2[Validité_3],MONTH(Tableau2[Dernier Recyclage_3]),DAY(Tableau2[Dernier Recyclage_3]))))","v":""},{"$f":"IF(ISERROR(+DATE(YEAR(Tableau2[R1_3])+Tableau2[Validité_3],MONTH(Tableau2[R1_3]),DAY(Tableau2[R1_3]))),\"\",(+DATE(YEAR(Tableau2[R1_3])+Tableau2[Validité_3],MONTH(Tableau2[R1_3]),DAY(Tableau2[R1_3]))))","v":""},{"$f":"IF(ISERROR(+DATE(YEAR(Tableau2[R2_3])+Tableau2[Validité_3],MONTH(Tableau2[R2_3]),DAY(Tableau2[R2_3]))),\"\",(+DATE(YEAR(Tableau2[R2_3])+Tableau2[Validité_3],MONTH(Tableau2[R2_3]),DAY(Tableau2[R2_3]))))","v":""},null,null,{"$f":"IF(ISERROR(VLOOKUP(Tableau2[Habilitation_4],Tableau1[],Tableau1[Validité2],0)),\"\",VLOOKUP(Tableau2[Habilitation_4],Tableau1[],Tableau1[Validité2],0))","v":""},null,null,{"$f":"IF(ISERROR(+DATE(YEAR(Tableau2[Dernier Recyclage_4])+Tableau2[Validité_4],MONTH(Tableau2[Dernier Recyclage_4]),DAY(Tableau2[Dernier Recyclage_4]))),\"\",(+DATE(YEAR(Tableau2[Dernier Recyclage_4])+Tableau2[Validité_4],MONTH(Tableau2[Dernier Recyclage_4]),DAY(Tableau2[Dernier Recyclage_4]))))","v":""},{"$f":"IF(ISERROR(+DATE(YEAR(Tableau2[R1_4])+Tableau2[Validité_4],MONTH(Tableau2[R1_4]),DAY(Tableau2[R1_4]))),\"\",(+DATE(YEAR(Tableau2[R1_4])+Tableau2[Validité_4],MONTH(Tableau2[R1_4]),DAY(Tableau2[R1_4]))))","v":""},{"$f":"IF(ISERROR(+DATE(YEAR(Tableau2[R2_4])+Tableau2[Validité_4],MONTH(Tableau2[R2_4]),DAY(Tableau2[R2_4]))),\"\",(+DATE(YEAR(Tableau2[R2_4])+Tableau2[Validité_4],MONTH(Tableau2[R2_4]),DAY(Tableau2[R2_4]))))","v":""},null,null,{"$f":"IF(ISERROR(VLOOKUP(Tableau2[Habilitation_5],Tableau1[],Tableau1[Validité2],0)),\"\",VLOOKUP(Tableau2[Habilitation_5],Tableau1[],Tableau1[Validité2],0))","v":""},null,null,{"$f":"IF(ISERROR(+DATE(YEAR(Tableau2[Dernier Recyclage_5])+Tableau2[Validité_5],MONTH(Tableau2[Dernier Recyclage_5]),DAY(Tableau2[Dernier Recyclage_5]))),\"\",(+DATE(YEAR(Tableau2[Dernier Recyclage_5])+Tableau2[Validité_5],MONTH(Tableau2[Dernier Recyclage_5]),DAY(Tableau2[Dernier Recyclage_5]))))","v":""},{"$f":"IF(ISERROR(+DATE(YEAR(Tableau2[R1_5])+Tableau2[Validité_5],MONTH(Tableau2[R1_5]),DAY(Tableau2[R1_5]))),\"\",(+DATE(YEAR(Tableau2[R1_5])+Tableau2[Validité_5],MONTH(Tableau2[R1_5]),DAY(Tableau2[R1_5]))))","v":""},{"$f":"IF(ISERROR(+DATE(YEAR(Tableau2[R2_5])+Tableau2[Validité_5],MONTH(Tableau2[R2_5]),DAY(Tableau2[R2_5]))),\"\",(+DATE(YEAR(Tableau2[R2_5])+Tableau2[Validité_5],MONTH(Tableau2[R2_5]),DAY(Tableau2[R2_5]))))","v":""},null,null,{"$f":"IF(ISERROR(VLOOKUP(Tableau2[Habilitation_6],Tableau1[],Tableau1[Validité2],0)),\"\",VLOOKUP(Tableau2[Habilitation_6],Tableau1[],Tableau1[Validité2],0))","v":""},null,null,{"$f":"IF(ISERROR(+DATE(YEAR(Tableau2[Dernier Recyclage_6])+Tableau2[Validité_6],MONTH(Tableau2[Dernier Recyclage_6]),DAY(Tableau2[Dernier Recyclage_6]))),\"\",(+DATE(YEAR(Tableau2[Dernier Recyclage_6])+Tableau2[Validité_6],MONTH(Tableau2[Dernier Recyclage_6]),DAY(Tableau2[Dernier Recyclage_6]))))","v":""},{"$f":"IF(ISERROR(+DATE(YEAR(Tableau2[R1_6])+Tableau2[Validité_6],MONTH(Tableau2[R1_6]),DAY(Tableau2[R1_6]))),\"\",(+DATE(YEAR(Tableau2[R1_6])+Tableau2[Validité_6],MONTH(Tableau2[R1_6]),DAY(Tableau2[R1_6]))))","v":""},{"$f":"IF(ISERROR(+DATE(YEAR(Tableau2[R2_6])+Tableau2[Validité_6],MONTH(Tableau2[R2_6]),DAY(Tableau2[R2_6]))),\"\",(+DATE(YEAR(Tableau2[R2_6])+Tableau2[Validité_6],MONTH(Tableau2[R2_6]),DAY(Tableau2[R2_6]))))","v":""},null,null,{"$f":"IF(ISERROR(VLOOKUP(Tableau2[Habilitation_7],Tableau1[],Tableau1[Validité2],0)),\"\",VLOOKUP(Tableau2[Habilitation_7],Tableau1[],Tableau1[Validité2],0))","v":""},null,null,{"$f":"IF(ISERROR(+DATE(YEAR(Tableau2[Dernier Recyclage_7])+Tableau2[Validité_7],MONTH(Tableau2[Dernier Recyclage_7]),DAY(Tableau2[Dernier Recyclage_7]))),\"\",(+DATE(YEAR(Tableau2[Dernier Recyclage_7])+Tableau2[Validité_7],MONTH(Tableau2[Dernier Recyclage_7]),DAY(Tableau2[Dernier Recyclage_7]))))","v":""},{"$f":"IF(ISERROR(+DATE(YEAR(Tableau2[R1_7])+Tableau2[Validité_7],MONTH(Tableau2[R1_7]),DAY(Tableau2[R1_7]))),\"\",(+DATE(YEAR(Tableau2[R1_7])+Tableau2[Validité_7],MONTH(Tableau2[R1_7]),DAY(Tableau2[R1_7]))))","v":""},{"$f":"IF(ISERROR(+DATE(YEAR(Tableau2[R2_7])+Tableau2[Validité_7],MONTH(Tableau2[R2_7]),DAY(Tableau2[R2_7]))),\"\",(+DATE(YEAR(Tableau2[R2_7])+Tableau2[Validité_7],MONTH(Tableau2[R2_7]),DAY(Tableau2[R2_7]))))","v":""}]
["Jjj","JJ","jjj",null,{"$f":"+IF(ISERROR(VLOOKUP(Tableau2[[#This Row],[Habilitation_1]],Tableau1[],Tableau1[Validité2],0)),\"\",VLOOKUP(Tableau2[[#This Row],[Habilitation_1]],Tableau1[],Tableau1[Validité2],0))","v":""},null,null,{"$f":"IF(ISERROR(+DATE(YEAR(Tableau2[Dernier Recyclage])+Tableau2[[#This Row],[Validité]],MONTH(Tableau2[Dernier Recyclage]),DAY(Tableau2[Dernier Recyclage]))),\"\",(+DATE(YEAR(Tableau2[Dernier Recyclage])+Tableau2[[#This Row],[Validité]],MONTH(Tableau2[Dernier Recyclage]),DAY(Tableau2[Dernier Recyclage]))))","v":""},{"$f":"IF(ISERROR(+DATE(YEAR(Tableau2[[#This Row],[R1]])+Tableau2[[#This Row],[Validité]],MONTH(Tableau2[[#This Row],[R1]]),DAY(Tableau2[[#This Row],[R1]]))),\"\",(+DATE(YEAR(Tableau2[[#This Row],[R1]])+Tableau2[[#This Row],[Validité]],MONTH(Tableau2[[#This Row],[R1]]),DAY(Tableau2[[#This Row],[R1]]))))","v":""},{"$f":"IF(ISERROR(+DATE(YEAR(Tableau2[[#This Row],[R2]])+Tableau2[[#This Row],[Validité]],MONTH(Tableau2[[#This Row],[R2]]),DAY(Tableau2[[#This Row],[R2]]))),\"\",(+DATE(YEAR(Tableau2[[#This Row],[R2]])+Tableau2[[#This Row],[Validité]],MONTH(Tableau2[[#This Row],[R2]]),DAY(Tableau2[[#This Row],[R2]]))))","v":""},null,null,{"$f":"IF(ISERROR(VLOOKUP(Tableau2[Habilitation_2],Tableau1[],Tableau1[Validité2],0)),\"\",VLOOKUP(Tableau2[Habilitation_2],Tableau1[],Tableau1[Validité2],0))","v":""},null,null,{"$f":"IF(ISERROR(+DATE(YEAR(Tableau2[Dernier Recyclage_2])+Tableau2[Validité_2],MONTH(Tableau2[Dernier Recyclage_2]),DAY(Tableau2[Dernier Recyclage_2]))),\"\",(+DATE(YEAR(Tableau2[Dernier Recyclage_2])+Tableau2[Validité_2],MONTH(Tableau2[Dernier Recyclage_2]),DAY(Tableau2[Dernier Recyclage_2]))))","v":""},{"$f":"IF(ISERROR(+DATE(YEAR(Tableau2[R1_2])+Tableau2[Validité_2],MONTH(Tableau2[R1_2]),DAY(Tableau2[R1_2]))),\"\",(+DATE(YEAR(Tableau2[R1_2])+Tableau2[Validité_2],MONTH(Tableau2[R1_2]),DAY(Tableau2[R1_2]))))","v":""},{"$f":"IF(ISERROR(+DATE(YEAR(Tableau2[R2_2])+Tableau2[Validité_2],MONTH(Tableau2[R2_2]),DAY(Tableau2[R2_2]))),\"\",(+DATE(YEAR(Tableau2[R2_2])+Tableau2[Validité_2],MONTH(Tableau2[R2_2]),DAY(Tableau2[R2_2]))))","v":""},null,null,{"$f":"IF(ISERROR(VLOOKUP(Tableau2[Habilitation_3],Tableau1[],Tableau1[Validité2],0)),\"\",VLOOKUP(Tableau2[Habilitation_3],Tableau1[],Tableau1[Validité2],0))","v":""},null,null,{"$f":"IF(ISERROR(+DATE(YEAR(Tableau2[Dernier Recyclage_3])+Tableau2[Validité_3],MONTH(Tableau2[Dernier Recyclage_3]),DAY(Tableau2[Dernier Recyclage_3]))),\"\",(+DATE(YEAR(Tableau2[Dernier Recyclage_3])+Tableau2[Validité_3],MONTH(Tableau2[Dernier Recyclage_3]),DAY(Tableau2[Dernier Recyclage_3]))))","v":""},{"$f":"IF(ISERROR(+DATE(YEAR(Tableau2[R1_3])+Tableau2[Validité_3],MONTH(Tableau2[R1_3]),DAY(Tableau2[R1_3]))),\"\",(+DATE(YEAR(Tableau2[R1_3])+Tableau2[Validité_3],MONTH(Tableau2[R1_3]),DAY(Tableau2[R1_3]))))","v":""},{"$f":"IF(ISERROR(+DATE(YEAR(Tableau2[R2_3])+Tableau2[Validité_3],MONTH(Tableau2[R2_3]),DAY(Tableau2[R2_3]))),\"\",(+DATE(YEAR(Tableau2[R2_3])+Tableau2[Validité_3],MONTH(Tableau2[R2_3]),DAY(Tableau2[R2_3]))))","v":""},null,null,{"$f":"IF(ISERROR(VLOOKUP(Tableau2[Habilitation_4],Tableau1[],Tableau1[Validité2],0)),\"\",VLOOKUP(Tableau2[Habilitation_4],Tableau1[],Tableau1[Validité2],0))","v":""},null,null,{"$f":"IF(ISERROR(+DATE(YEAR(Tableau2[Dernier Recyclage_4])+Tableau2[Validité_4],MONTH(Tableau2[Dernier Recyclage_4]),DAY(Tableau2[Dernier Recyclage_4]))),\"\",(+DATE(YEAR(Tableau2[Dernier Recyclage_4])+Tableau2[Validité_4],MONTH(Tableau2[Dernier Recyclage_4]),DAY(Tableau2[Dernier Recyclage_4]))))","v":""},{"$f":"IF(ISERROR(+DATE(YEAR(Tableau2[R1_4])+Tableau2[Validité_4],MONTH(Tableau2[R1_4]),DAY(Tableau2[R1_4]))),\"\",(+DATE(YEAR(Tableau2[R1_4])+Tableau2[Validité_4],MONTH(Tableau2[R1_4]),DAY(Tableau2[R1_4]))))","v":""},{"$f":"IF(ISERROR(+DATE(YEAR(Tableau2[R2_4])+Tableau2[Validité_4],MONTH(Tableau2[R2_4]),DAY(Tableau2[R2_4]))),\"\",(+DATE(YEAR(Tableau2[R2_4])+Tableau2[Validité_4],MONTH(Tableau2[R2_4]),DAY(Tableau2[R2_4]))))","v":""},null,null,{"$f":"IF(ISERROR(VLOOKUP(Tableau2[Habilitation_5],Tableau1[],Tableau1[Validité2],0)),\"\",VLOOKUP(Tableau2[Habilitation_5],Tableau1[],Tableau1[Validité2],0))","v":""},null,null,{"$f":"IF(ISERROR(+DATE(YEAR(Tableau2[Dernier Recyclage_5])+Tableau2[Validité_5],MONTH(Tableau2[Dernier Recyclage_5]),DAY(Tableau2[Dernier Recyclage_5]))),\"\",(+DATE(YEAR(Tableau2[Dernier Recyclage_5])+Tableau2[Validité_5],MONTH(Tableau2[Dernier Recyclage_5]),DAY(Tableau2[Dernier Recyclage_5]))))","v":""},{"$f":"IF(ISERROR(+DATE(YEAR(Tableau2[R1_5])+Tableau2[Validité_5],MONTH(Tableau2[R1_5]),DAY(Tableau2[R1_5]))),\"\",(+DATE(YEAR(Tableau2[R1_5])+Tableau2[Validité_5],MONTH(Tableau2[R1_5]),DAY(Tableau2[R1_5]))))","v":""},{"$f":"IF(ISERROR(+DATE(YEAR(Tableau2[R2_5])+Tableau2[Validité_5],MONTH(Tableau2[R2_5]),DAY(Tableau2[R2_5]))),\"\",(+DATE(YEAR(Tableau2[R2_5])+Tableau2[Validité_5],MONTH(Tableau2[R2_5]),DAY(Tableau2[R2_5]))))","v":""},null,null,{"$f":"IF(ISERROR(VLOOKUP(Tableau2[Habilitation_6],Tableau1[],Tableau1[Validité2],0)),\"\",VLOOKUP(Tableau2[Habilitation_6],Tableau1[],Tableau1[Validité2],0))","v":""},null,null,{"$f":"IF(ISERROR(+DATE(YEAR(Tableau2[Dernier Recyclage_6])+Tableau2[Validité_6],MONTH(Tableau2[Dernier Recyclage_6]),DAY(Tableau2[Dernier Recyclage_6]))),\"\",(+DATE(YEAR(Tableau2[Dernier Recyclage_6])+Tableau2[Validité_6],MONTH(Tableau2[Dernier Recyclage_6]),DAY(Tableau2[Dernier Recyclage_6]))))","v":""},{"$f":"IF(ISERROR(+DATE(YEAR(Tableau2[R1_6])+Tableau2[Validité_6],MONTH(Tableau2[R1_6]),DAY(Tableau2[R1_6]))),\"\",(+DATE(YEAR(Tableau2[R1_6])+Tableau2[Validité_6],MONTH(Tableau2[R1_6]),DAY(Tableau2[R1_6]))))","v":""},{"$f":"IF(ISERROR(+DATE(YEAR(Tableau2[R2_6])+Tableau2[Validité_6],MONTH(Tableau2[R2_6]),DAY(Tableau2[R2_6]))),\"\",(+DATE(YEAR(Tableau2[R2_6])+Tableau2[Validité_6],MONTH(Tableau2[R2_6]),DAY(Tableau2[R2_6]))))","v":""},null,null,{"$f":"IF(ISERROR(VLOOKUP(Tableau2[Habilitation_7],Tableau1[],Tableau1[Validité2],0)),\"\",VLOOKUP(Tableau2[Habilitation_7],Tableau1[],Tableau1[Validité2],0))","v":""},null,null,{"$f":"IF(ISERROR(+DATE(YEAR(Tableau2[Dernier Recyclage_7])+Tableau2[Validité_7],MONTH(Tableau2[Dernier Recyclage_7]),DAY(Tableau2[Dernier Recyclage_7]))),\"\",(+DATE(YEAR(Tableau2[Dernier Recyclage_7])+Tableau2[Validité_7],MONTH(Tableau2[Dernier Recyclage_7]),DAY(Tableau2[Dernier Recyclage_7]))))","v":""},{"$f":"IF(ISERROR(+DATE(YEAR(Tableau2[R1_7])+Tableau2[Validité_7],MONTH(Tableau2[R1_7]),DAY(Tableau2[R1_7]))),\"\",(+DATE(YEAR(Tableau2[R1_7])+Tableau2[Validité_7],MONTH(Tableau2[R1_7]),DAY(Tableau2[R1_7]))))","v":""},{"$f":"IF(ISERROR(+DATE(YEAR(Tableau2[R2_7])+Tableau2[Validité_7],MONTH(Tableau2[R2_7]),DAY(Tableau2[R2_7]))),\"\",(+DATE(YEAR(Tableau2[R2_7])+Tableau2[Validité_7],MONTH(Tableau2[R2_7]),DAY(Tableau2[R2_7]))))","v":""}]
["Kkk","KK","kkk",null,{"$f":"+IF(ISERROR(VLOOKUP(Tableau2[[#This Row],[Habilitation_1]],Tableau1[],Tableau1[Validité2],0)),\"\",VLOOKUP(Tableau2[[#This Row],[Habilitation_1]],Tableau1[],Tableau1[Validité2],0))","v":""},null,null,{"$f":"IF(ISERROR(+DATE(YEAR(Tableau2[Dernier Recyclage])+Tableau2[[#This Row],[Validité]],MONTH(Tableau2[Dernier Recyclage]),DAY(Tableau2[Dernier Recyclage]))),\"\",(+DATE(YEAR(Tableau2[Dernier Recyclage])+Tableau2[[#This Row],[Validité]],MONTH(Tableau2[Dernier Recyclage]),DAY(Tableau2[Dernier Recyclage]))))","v":""},{"$f":"IF(ISERROR(+DATE(YEAR(Tableau2[[#This Row],[R1]])+Tableau2[[#This Row],[Validité]],MONTH(Tableau2[[#This Row],[R1]]),DAY(Tableau2[[#This Row],[R1]]))),\"\",(+DATE(YEAR(Tableau2[[#This Row],[R1]])+Tableau2[[#This Row],[Validité]],MONTH(Tableau2[[#This Row],[R1]]),DAY(Tableau2[[#This Row],[R1]]))))","v":""},{"$f":"IF(ISERROR(+DATE(YEAR(Tableau2[[#This Row],[R2]])+Tableau2[[#This Row],[Validité]],MONTH(Tableau2[[#This Row],[R2]]),DAY(Tableau2[[#This Row],[R2]]))),\"\",(+DATE(YEAR(Tableau2[[#This Row],[R2]])+Tableau2[[#This Row],[Validité]],MONTH(Tableau2[[#This Row],[R2]]),DAY(Tableau2[[#This Row],[R2]]))))","v":""},null,null,{"$f":"IF(ISERROR(VLOOKUP(Tableau2[Habilitation_2],Tableau1[],Tableau1[Validité2],0)),\"\",VLOOKUP(Tableau2[Habilitation_2],Tableau1[],Tableau1[Validité2],0))","v":""},null,null,{"$f":"IF(ISERROR(+DATE(YEAR(Tableau2[Dernier Recyclage_2])+Tableau2[Validité_2],MONTH(Tableau2[Dernier Recyclage_2]),DAY(Tableau2[Dernier Recyclage_2]))),\"\",(+DATE(YEAR(Tableau2[Dernier Recyclage_2])+Tableau2[Validité_2],MONTH(Tableau2[Dernier Recyclage_2]),DAY(Tableau2[Dernier Recyclage_2]))))","v":""},{"$f":"IF(ISERROR(+DATE(YEAR(Tableau2[R1_2])+Tableau2[Validité_2],MONTH(Tableau2[R1_2]),DAY(Tableau2[R1_2]))),\"\",(+DATE(YEAR(Tableau2[R1_2])+Tableau2[Validité_2],MONTH(Tableau2[R1_2]),DAY(Tableau2[R1_2]))))","v":""},{"$f":"IF(ISERROR(+DATE(YEAR(Tableau2[R2_2])+Tableau2[Validité_2],MONTH(Tableau2[R2_2]),DAY(Tableau2[R2_2]))),\"\",(+DATE(YEAR(Tableau2[R2_2])+Tableau2[Validité_2],MONTH(Tableau2[R2_2]),DAY(Tableau2[R2_2]))))","v":""},null,null,{"$f":"IF(ISERROR(VLOOKUP(Tableau2[Habilitation_3],Tableau1[],Tableau1[Validité2],0)),\"\",VLOOKUP(Tableau2[Habilitation_3],Tableau1[],Tableau1[Validité2],0))","v":""},null,null,{"$f":"IF(ISERROR(+DATE(YEAR(Tableau2[Dernier Recyclage_3])+Tableau2[Validité_3],MONTH(Tableau2[Dernier Recyclage_3]),DAY(Tableau2[Dernier Recyclage_3]))),\"\",(+DATE(YEAR(Tableau2[Dernier Recyclage_3])+Tableau2[Validité_3],MONTH(Tableau2[Dernier Recyclage_3]),DAY(Tableau2[Dernier Recyclage_3]))))","v":""},{"$f":"IF(ISERROR(+DATE(YEAR(Tableau2[R1_3])+Tableau2[Validité_3],MONTH(Tableau2[R1_3]),DAY(Tableau2[R1_3]))),\"\",(+DATE(YEAR(Tableau2[R1_3])+Tableau2[Validité_3],MONTH(Tableau2[R1_3]),DAY(Tableau2[R1_3]))))","v":""},{"$f":"IF(ISERROR(+DATE(YEAR(Tableau2[R2_3])+Tableau2[Validité_3],MONTH(Tableau2[R2_3]),DAY(Tableau2[R2_3]))),\"\",(+DATE(YEAR(Tableau2[R2_3])+Tableau2[Validité_3],MONTH(Tableau2[R2_3]),DAY(Tableau2[R2_3]))))","v":""},null,null,{"$f":"IF(ISERROR(VLOOKUP(Tableau2[Habilitation_4],Tableau1[],Tableau1[Validité2],0)),\"\",VLOOKUP(Tableau2[Habilitation_4],Tableau1[],Tableau1[Validité2],0))","v":""},null,null,{"$f":"IF(ISERROR(+DATE(YEAR(Tableau2[Dernier Recyclage_4])+Tableau2[Validité_4],MONTH(Tableau2[Dernier Recyclage_4]),DAY(Tableau2[Dernier Recyclage_4]))),\"\",(+DATE(YEAR(Tableau2[Dernier Recyclage_4])+Tableau2[Validité_4],MONTH(Tableau2[Dernier Recyclage_4]),DAY(Tableau2[Dernier Recyclage_4]))))","v":""},{"$f":"IF(ISERROR(+DATE(YEAR(Tableau2[R1_4])+Tableau2[Validité_4],MONTH(Tableau2[R1_4]),DAY(Tableau2[R1_4]))),\"\",(+DATE(YEAR(Tableau2[R1_4])+Tableau2[Validité_4],MONTH(Tableau2[R1_4]),DAY(Tableau2[R1_4]))))","v":""},{"$f":"IF(ISERROR(+DATE(YEAR(Tableau2[R2_4])+Tableau2[Validité_4],MONTH(Tableau2[R2_4]),DAY(Tableau2[R2_4]))),\"\",(+DATE(YEAR(Tableau2[R2_4])+Tableau2[Validité_4],MONTH(Tableau2[R2_4]),DAY(Tableau2[R2_4]))))","v":""},null,null,{"$f":"IF(ISERROR(VLOOKUP(Tableau2[Habilitation_5],Tableau1[],Tableau1[Validité2],0)),\"\",VLOOKUP(Tableau2[Habilitation_5],Tableau1[],Tableau1[Validité2],0))","v":""},null,null,{"$f":"IF(ISERROR(+DATE(YEAR(Tableau2[Dernier Recyclage_5])+Tableau2[Validité_5],MONTH(Tableau2[Dernier Recyclage_5]),DAY(Tableau2[Dernier Recyclage_5]))),\"\",(+DATE(YEAR(Tableau2[Dernier Recyclage_5])+Tableau2[Validité_5],MONTH(Tableau2[Dernier Recyclage_5]),DAY(Tableau2[Dernier Recyclage_5]))))","v":""},{"$f":"IF(ISERROR(+DATE(YEAR(Tableau2[R1_5])+Tableau2[Validité_5],MONTH(Tableau2[R1_5]),DAY(Tableau2[R1_5]))),\"\",(+DATE(YEAR(Tableau2[R1_5])+Tableau2[Validité_5],MONTH(Tableau2[R1_5]),DAY(Tableau2[R1_5]))))","v":""},{"$f":"IF(ISERROR(+DATE(YEAR(Tableau2[R2_5])+Tableau2[Validité_5],MONTH(Tableau2[R2_5]),DAY(Tableau2[R2_5]))),\"\",(+DATE(YEAR(Tableau2[R2_5])+Tableau2[Validité_5],MONTH(Tableau2[R2_5]),DAY(Tableau2[R2_5]))))","v":""},null,null,{"$f":"IF(ISERROR(VLOOKUP(Tableau2[Habilitation_6],Tableau1[],Tableau1[Validité2],0)),\"\",VLOOKUP(Tableau2[Habilitation_6],Tableau1[],Tableau1[Validité2],0))","v":""},null,null,{"$f":"IF(ISERROR(+DATE(YEAR(Tableau2[Dernier Recyclage_6])+Tableau2[Validité_6],MONTH(Tableau2[Dernier Recyclage_6]),DAY(Tableau2[Dernier Recyclage_6]))),\"\",(+DATE(YEAR(Tableau2[Dernier Recyclage_6])+Tableau2[Validité_6],MONTH(Tableau2[Dernier Recyclage_6]),DAY(Tableau2[Dernier Recyclage_6]))))","v":""},{"$f":"IF(ISERROR(+DATE(YEAR(Tableau2[R1_6])+Tableau2[Validité_6],MONTH(Tableau2[R1_6]),DAY(Tableau2[R1_6]))),\"\",(+DATE(YEAR(Tableau2[R1_6])+Tableau2[Validité_6],MONTH(Tableau2[R1_6]),DAY(Tableau2[R1_6]))))","v":""},{"$f":"IF(ISERROR(+DATE(YEAR(Tableau2[R2_6])+Tableau2[Validité_6],MONTH(Tableau2[R2_6]),DAY(Tableau2[R2_6]))),\"\",(+DATE(YEAR(Tableau2[R2_6])+Tableau2[Validité_6],MONTH(Tableau2[R2_6]),DAY(Tableau2[R2_6]))))","v":""},null,null,{"$f":"IF(ISERROR(VLOOKUP(Tableau2[Habilitation_7],Tableau1[],Tableau1[Validité2],0)),\"\",VLOOKUP(Tableau2[Habilitation_7],Tableau1[],Tableau1[Validité2],0))","v":""},null,null,{"$f":"IF(ISERROR(+DATE(YEAR(Tableau2[Dernier Recyclage_7])+Tableau2[Validité_7],MONTH(Tableau2[Dernier Recyclage_7]),DAY(Tableau2[Dernier Recyclage_7]))),\"\",(+DATE(YEAR(Tableau2[Dernier Recyclage_7])+Tableau2[Validité_7],MONTH(Tableau2[Dernier Recyclage_7]),DAY(Tableau2[Dernier Recyclage_7]))))","v":""},{"$f":"IF(ISERROR(+DATE(YEAR(Tableau2[R1_7])+Tableau2[Validité_7],MONTH(Tableau2[R1_7]),DAY(Tableau2[R1_7]))),\"\",(+DATE(YEAR(Tableau2[R1_7])+Tableau2[Validité_7],MONTH(Tableau2[R1_7]),DAY(Tableau2[R1_7]))))","v":""},{"$f":"IF(ISERROR(+DATE(YEAR(Tableau2[R2_7])+Tableau2[Validité_7],MONTH(Tableau2[R2_7]),DAY(Tableau2[R2_7]))),\"\",(+DATE(YEAR(Tableau2[R2_7])+Tableau2[Validité_7],MONTH(Tableau2[R2_7]),DAY(Tableau2[R2_7]))))","v":""}]
["Lll","LL","lll",null,{"$f":"+IF(ISERROR(VLOOKUP(Tableau2[[#This Row],[Habilitation_1]],Tableau1[],Tableau1[Validité2],0)),\"\",VLOOKUP(Tableau2[[#This Row],[Habilitation_1]],Tableau1[],Tableau1[Validité2],0))","v":""},null,null,{"$f":"IF(ISERROR(+DATE(YEAR(Tableau2[Dernier Recyclage])+Tableau2[[#This Row],[Validité]],MONTH(Tableau2[Dernier Recyclage]),DAY(Tableau2[Dernier Recyclage]))),\"\",(+DATE(YEAR(Tableau2[Dernier Recyclage])+Tableau2[[#This Row],[Validité]],MONTH(Tableau2[Dernier Recyclage]),DAY(Tableau2[Dernier Recyclage]))))","v":""},{"$f":"IF(ISERROR(+DATE(YEAR(Tableau2[[#This Row],[R1]])+Tableau2[[#This Row],[Validité]],MONTH(Tableau2[[#This Row],[R1]]),DAY(Tableau2[[#This Row],[R1]]))),\"\",(+DATE(YEAR(Tableau2[[#This Row],[R1]])+Tableau2[[#This Row],[Validité]],MONTH(Tableau2[[#This Row],[R1]]),DAY(Tableau2[[#This Row],[R1]]))))","v":""},{"$f":"IF(ISERROR(+DATE(YEAR(Tableau2[[#This Row],[R2]])+Tableau2[[#This Row],[Validité]],MONTH(Tableau2[[#This Row],[R2]]),DAY(Tableau2[[#This Row],[R2]]))),\"\",(+DATE(YEAR(Tableau2[[#This Row],[R2]])+Tableau2[[#This Row],[Validité]],MONTH(Tableau2[[#This Row],[R2]]),DAY(Tableau2[[#This Row],[R2]]))))","v":""},null,null,{"$f":"IF(ISERROR(VLOOKUP(Tableau2[Habilitation_2],Tableau1[],Tableau1[Validité2],0)),\"\",VLOOKUP(Tableau2[Habilitation_2],Tableau1[],Tableau1[Validité2],0))","v":""},null,null,{"$f":"IF(ISERROR(+DATE(YEAR(Tableau2[Dernier Recyclage_2])+Tableau2[Validité_2],MONTH(Tableau2[Dernier Recyclage_2]),DAY(Tableau2[Dernier Recyclage_2]))),\"\",(+DATE(YEAR(Tableau2[Dernier Recyclage_2])+Tableau2[Validité_2],MONTH(Tableau2[Dernier Recyclage_2]),DAY(Tableau2[Dernier Recyclage_2]))))","v":""},{"$f":"IF(ISERROR(+DATE(YEAR(Tableau2[R1_2])+Tableau2[Validité_2],MONTH(Tableau2[R1_2]),DAY(Tableau2[R1_2]))),\"\",(+DATE(YEAR(Tableau2[R1_2])+Tableau2[Validité_2],MONTH(Tableau2[R1_2]),DAY(Tableau2[R1_2]))))","v":""},{"$f":"IF(ISERROR(+DATE(YEAR(Tableau2[R2_2])+Tableau2[Validité_2],MONTH(Tableau2[R2_2]),DAY(Tableau2[R2_2]))),\"\",(+DATE(YEAR(Tableau2[R2_2])+Tableau2[Validité_2],MONTH(Tableau2[R2_2]),DAY(Tableau2[R2_2]))))","v":""},null,null,{"$f":"IF(ISERROR(VLOOKUP(Tableau2[Habilitation_3],Tableau1[],Tableau1[Validité2],0)),\"\",VLOOKUP(Tableau2[Habilitation_3],Tableau1[],Tableau1[Validité2],0))","v":""},null,null,{"$f":"IF(ISERROR(+DATE(YEAR(Tableau2[Dernier Recyclage_3])+Tableau2[Validité_3],MONTH(Tableau2[Dernier Recyclage_3]),DAY(Tableau2[Dernier Recyclage_3]))),\"\",(+DATE(YEAR(Tableau2[Dernier Recyclage_3])+Tableau2[Validité_3],MONTH(Tableau2[Dernier Recyclage_3]),DAY(Tableau2[Dernier Recyclage_3]))))","v":""},{"$f":"IF(ISERROR(+DATE(YEAR(Tableau2[R1_3])+Tableau2[Validité_3],MONTH(Tableau2[R1_3]),DAY(Tableau2[R1_3]))),\"\",(+DATE(YEAR(Tableau2[R1_3])+Tableau2[Validité_3],MONTH(Tableau2[R1_3]),DAY(Tableau2[R1_3]))))","v":""},{"$f":"IF(ISERROR(+DATE(YEAR(Tableau2[R2_3])+Tableau2[Validité_3],MONTH(Tableau2[R2_3]),DAY(Tableau2[R2_3]))),\"\",(+DATE(YEAR(Tableau2[R2_3])+Tableau2[Validité_3],MONTH(Tableau2[R2_3]),DAY(Tableau2[R2_3]))))","v":""},null,null,{"$f":"IF(ISERROR(VLOOKUP(Tableau2[Habilitation_4],Tableau1[],Tableau1[Validité2],0)),\"\",VLOOKUP(Tableau2[Habilitation_4],Tableau1[],Tableau1[Validité2],0))","v":""},null,null,{"$f":"IF(ISERROR(+DATE(YEAR(Tableau2[Dernier Recyclage_4])+Tableau2[Validité_4],MONTH(Tableau2[Dernier Recyclage_4]),DAY(Tableau2[Dernier Recyclage_4]))),\"\",(+DATE(YEAR(Tableau2[Dernier Recyclage_4])+Tableau2[Validité_4],MONTH(Tableau2[Dernier Recyclage_4]),DAY(Tableau2[Dernier Recyclage_4]))))","v":""},{"$f":"IF(ISERROR(+DATE(YEAR(Tableau2[R1_4])+Tableau2[Validité_4],MONTH(Tableau2[R1_4]),DAY(Tableau2[R1_4]))),\"\",(+DATE(YEAR(Tableau2[R1_4])+Tableau2[Validité_4],MONTH(Tableau2[R1_4]),DAY(Tableau2[R1_4]))))","v":""},{"$f":"IF(ISERROR(+DATE(YEAR(Tableau2[R2_4])+Tableau2[Validité_4],MONTH(Tableau2[R2_4]),DAY(Tableau2[R2_4]))),\"\",(+DATE(YEAR(Tableau2[R2_4])+Tableau2[Validité_4],MONTH(Tableau2[R2_4]),DAY(Tableau2[R2_4]))))","v":""},null,null,{"$f":"IF(ISERROR(VLOOKUP(Tableau2[Habilitation_5],Tableau1[],Tableau1[Validité2],0)),\"\",VLOOKUP(Tableau2[Habilitation_5],Tableau1[],Tableau1[Validité2],0))","v":""},null,null,{"$f":"IF(ISERROR(+DATE(YEAR(Tableau2[Dernier Recyclage_5])+Tableau2[Validité_5],MONTH(Tableau2[Dernier Recyclage_5]),DAY(Tableau2[Dernier Recyclage_5]))),\"\",(+DATE(YEAR(Tableau2[Dernier Recyclage_5])+Tableau2[Validité_5],MONTH(Tableau2[Dernier Recyclage_5]),DAY(Tableau2[Dernier Recyclage_5]))))","v":""},{"$f":"IF(ISERROR(+DATE(YEAR(Tableau2[R1_5])+Tableau2[Validité_5],MONTH(Tableau2[R1_5]),DAY(Tableau2[R1_5]))),\"\",(+DATE(YEAR(Tableau2[R1_5])+Tableau2[Validité_5],MONTH(Tableau2[R1_5]),DAY(Tableau2[R1_5]))))","v":""},{"$f":"IF(ISERROR(+DATE(YEAR(Tableau2[R2_5])+Tableau2[Validité_5],MONTH(Tableau2[R2_5]),DAY(Tableau2[R2_5]))),\"\",(+DATE(YEAR(Tableau2[R2_5])+Tableau2[Validité_5],MONTH(Tableau2[R2_5]),DAY(Tableau2[R2_5]))))","v":""},null,null,{"$f":"IF(ISERROR(VLOOKUP(Tableau2[Habilitation_6],Tableau1[],Tableau1[Validité2],0)),\"\",VLOOKUP(Tableau2[Habilitation_6],Tableau1[],Tableau1[Validité2],0))","v":""},null,null,{"$f":"IF(ISERROR(+DATE(YEAR(Tableau2[Dernier Recyclage_6])+Tableau2[Validité_6],MONTH(Tableau2[Dernier Recyclage_6]),DAY(Tableau2[Dernier Recyclage_6]))),\"\",(+DATE(YEAR(Tableau2[Dernier Recyclage_6])+Tableau2[Validité_6],MONTH(Tableau2[Dernier Recyclage_6]),DAY(Tableau2[Dernier Recyclage_6]))))","v":""},{"$f":"IF(ISERROR(+DATE(YEAR(Tableau2[R1_6])+Tableau2[Validité_6],MONTH(Tableau2[R1_6]),DAY(Tableau2[R1_6]))),\"\",(+DATE(YEAR(Tableau2[R1_6])+Tableau2[Validité_6],MONTH(Tableau2[R1_6]),DAY(Tableau2[R1_6]))))","v":""},{"$f":"IF(ISERROR(+DATE(YEAR(Tableau2[R2_6])+Tableau2[Validité_6],MONTH(Tableau2[R2_6]),DAY(Tableau2[R2_6]))),\"\",(+DATE(YEAR(Tableau2[R2_6])+Tableau2[Validité_6],MONTH(Tableau2[R2_6]),DAY(Tableau2[R2_6]))))","v":""},null,null,{"$f":"IF(ISERROR(VLOOKUP(Tableau2[Habilitation_7],Tableau1[],Tableau1[Validité2],0)),\"\",VLOOKUP(Tableau2[Habilitation_7],Tableau1[],Tableau1[Validité2],0))","v":""},null,null,{"$f":"IF(ISERROR(+DATE(YEAR(Tableau2[Dernier Recyclage_7])+Tableau2[Validité_7],MONTH(Tableau2[Dernier Recyclage_7]),DAY(Tableau2[Dernier Recyclage_7]))),\"\",(+DATE(YEAR(Tableau2[Dernier Recyclage_7])+Tableau2[Validité_7],MONTH(Tableau2[Dernier Recyclage_7]),DAY(Tableau2[Dernier Recyclage_7]))))","v":""},{"$f":"IF(ISERROR(+DATE(YEAR(Tableau2[R1_7])+Tableau2[Validité_7],MONTH(Tableau2[R1_7]),DAY(Tableau2[R1_7]))),\"\",(+DATE(YEAR(Tableau2[R1_7])+Tableau2[Validité_7],MONTH(Tableau2[R1_7]),DAY(Tableau2[R1_7]))))","v":""},{"$f":"IF(ISERROR(+DATE(YEAR(Tableau2[R2_7])+Tableau2[Validité_7],MONTH(Tableau2[R2_7]),DAY(Tableau2[R2_7]))),\"\",(+DATE(YEAR(Tableau2[R2_7])+Tableau2[Validité_7],MONTH(Tableau2[R2_7]),DAY(Tableau2[R2_7]))))","v":""}]
["Mmm","MM","mmm",null,{"$f":"+IF(ISERROR(VLOOKUP(Tableau2[[#This Row],[Habilitation_1]],Tableau1[],Tableau1[Validité2],0)),\"\",VLOOKUP(Tableau2[[#This Row],[Habilitation_1]],Tableau1[],Tableau1[Validité2],0))","v":""},null,null,{"$f":"IF(ISERROR(+DATE(YEAR(Tableau2[Dernier Recyclage])+Tableau2[[#This Row],[Validité]],MONTH(Tableau2[Dernier Recyclage]),DAY(Tableau2[Dernier Recyclage]))),\"\",(+DATE(YEAR(Tableau2[Dernier Recyclage])+Tableau2[[#This Row],[Validité]],MONTH(Tableau2[Dernier Recyclage]),DAY(Tableau2[Dernier Recyclage]))))","v":""},{"$f":"IF(ISERROR(+DATE(YEAR(Tableau2[[#This Row],[R1]])+Tableau2[[#This Row],[Validité]],MONTH(Tableau2[[#This Row],[R1]]),DAY(Tableau2[[#This Row],[R1]]))),\"\",(+DATE(YEAR(Tableau2[[#This Row],[R1]])+Tableau2[[#This Row],[Validité]],MONTH(Tableau2[[#This Row],[R1]]),DAY(Tableau2[[#This Row],[R1]]))))","v":""},{"$f":"IF(ISERROR(+DATE(YEAR(Tableau2[[#This Row],[R2]])+Tableau2[[#This Row],[Validité]],MONTH(Tableau2[[#This Row],[R2]]),DAY(Tableau2[[#This Row],[R2]]))),\"\",(+DATE(YEAR(Tableau2[[#This Row],[R2]])+Tableau2[[#This Row],[Validité]],MONTH(Tableau2[[#This Row],[R2]]),DAY(Tableau2[[#This Row],[R2]]))))","v":""},null,null,{"$f":"IF(ISERROR(VLOOKUP(Tableau2[Habilitation_2],Tableau1[],Tableau1[Validité2],0)),\"\",VLOOKUP(Tableau2[Habilitation_2],Tableau1[],Tableau1[Validité2],0))","v":""},null,null,{"$f":"IF(ISERROR(+DATE(YEAR(Tableau2[Dernier Recyclage_2])+Tableau2[Validité_2],MONTH(Tableau2[Dernier Recyclage_2]),DAY(Tableau2[Dernier Recyclage_2]))),\"\",(+DATE(YEAR(Tableau2[Dernier Recyclage_2])+Tableau2[Validité_2],MONTH(Tableau2[Dernier Recyclage_2]),DAY(Tableau2[Dernier Recyclage_2]))))","v":""},{"$f":"IF(ISERROR(+DATE(YEAR(Tableau2[R1_2])+Tableau2[Validité_2],MONTH(Tableau2[R1_2]),DAY(Tableau2[R1_2]))),\"\",(+DATE(YEAR(Tableau2[R1_2])+Tableau2[Validité_2],MONTH(Tableau2[R1_2]),DAY(Tableau2[R1_2]))))","v":""},{"$f":"IF(ISERROR(+DATE(YEAR(Tableau2[R2_2])+Tableau2[Validité_2],MONTH(Tableau2[R2_2]),DAY(Tableau2[R2_2]))),\"\",(+DATE(YEAR(Tableau2[R2_2])+Tableau2[Validité_2],MONTH(Tableau2[R2_2]),DAY(Tableau2[R2_2]))))","v":""},null,null,{"$f":"IF(ISERROR(VLOOKUP(Tableau2[Habilitation_3],Tableau1[],Tableau1[Validité2],0)),\"\",VLOOKUP(Tableau2[Habilitation_3],Tableau1[],Tableau1[Validité2],0))","v":""},null,null,{"$f":"IF(ISERROR(+DATE(YEAR(Tableau2[Dernier Recyclage_3])+Tableau2[Validité_3],MONTH(Tableau2[Dernier Recyclage_3]),DAY(Tableau2[Dernier Recyclage_3]))),\"\",(+DATE(YEAR(Tableau2[Dernier Recyclage_3])+Tableau2[Validité_3],MONTH(Tableau2[Dernier Recyclage_3]),DAY(Tableau2[Dernier Recyclage_3]))))","v":""},{"$f":"IF(ISERROR(+DATE(YEAR(Tableau2[R1_3])+Tableau2[Validité_3],MONTH(Tableau2[R1_3]),DAY(Tableau2[R1_3]))),\"\",(+DATE(YEAR(Tableau2[R1_3])+Tableau2[Validité_3],MONTH(Tableau2[R1_3]),DAY(Tableau2[R1_3]))))","v":""},{"$f":"IF(ISERROR(+DATE(YEAR(Tableau2[R2_3])+Tableau2[Validité_3],MONTH(Tableau2[R2_3]),DAY(Tableau2[R2_3]))),\"\",(+DATE(YEAR(Tableau2[R2_3])+Tableau2[Validité_3],MONTH(Tableau2[R2_3]),DAY(Tableau2[R2_3]))))","v":""},null,null,{"$f":"IF(ISERROR(VLOOKUP(Tableau2[Habilitation_4],Tableau1[],Tableau1[Validité2],0)),\"\",VLOOKUP(Tableau2[Habilitation_4],Tableau1[],Tableau1[Validité2],0))","v":""},null,null,{"$f":"IF(ISERROR(+DATE(YEAR(Tableau2[Dernier Recyclage_4])+Tableau2[Validité_4],MONTH(Tableau2[Dernier Recyclage_4]),DAY(Tableau2[Dernier Recyclage_4]))),\"\",(+DATE(YEAR(Tableau2[Dernier Recyclage_4])+Tableau2[Validité_4],MONTH(Tableau2[Dernier Recyclage_4]),DAY(Tableau2[Dernier Recyclage_4]))))","v":""},{"$f":"IF(ISERROR(+DATE(YEAR(Tableau2[R1_4])+Tableau2[Validité_4],MONTH(Tableau2[R1_4]),DAY(Tableau2[R1_4]))),\"\",(+DATE(YEAR(Tableau2[R1_4])+Tableau2[Validité_4],MONTH(Tableau2[R1_4]),DAY(Tableau2[R1_4]))))","v":""},{"$f":"IF(ISERROR(+DATE(YEAR(Tableau2[R2_4])+Tableau2[Validité_4],MONTH(Tableau2[R2_4]),DAY(Tableau2[R2_4]))),\"\",(+DATE(YEAR(Tableau2[R2_4])+Tableau2[Validité_4],MONTH(Tableau2[R2_4]),DAY(Tableau2[R2_4]))))","v":""},null,null,{"$f":"IF(ISERROR(VLOOKUP(Tableau2[Habilitation_5],Tableau1[],Tableau1[Validité2],0)),\"\",VLOOKUP(Tableau2[Habilitation_5],Tableau1[],Tableau1[Validité2],0))","v":""},null,null,{"$f":"IF(ISERROR(+DATE(YEAR(Tableau2[Dernier Recyclage_5])+Tableau2[Validité_5],MONTH(Tableau2[Dernier Recyclage_5]),DAY(Tableau2[Dernier Recyclage_5]))),\"\",(+DATE(YEAR(Tableau2[Dernier Recyclage_5])+Tableau2[Validité_5],MONTH(Tableau2[Dernier Recyclage_5]),DAY(Tableau2[Dernier Recyclage_5]))))","v":""},{"$f":"IF(ISERROR(+DATE(YEAR(Tableau2[R1_5])+Tableau2[Validité_5],MONTH(Tableau2[R1_5]),DAY(Tableau2[R1_5]))),\"\",(+DATE(YEAR(Tableau2[R1_5])+Tableau2[Validité_5],MONTH(Tableau2[R1_5]),DAY(Tableau2[R1_5]))))","v":""},{"$f":"IF(ISERROR(+DATE(YEAR(Tableau2[R2_5])+Tableau2[Validité_5],MONTH(Tableau2[R2_5]),DAY(Tableau2[R2_5]))),\"\",(+DATE(YEAR(Tableau2[R2_5])+Tableau2[Validité_5],MONTH(Tableau2[R2_5]),DAY(Tableau2[R2_5]))))","v":""},null,null,{"$f":"IF(ISERROR(VLOOKUP(Tableau2[Habilitation_6],Tableau1[],Tableau1[Validité2],0)),\"\",VLOOKUP(Tableau2[Habilitation_6],Tableau1[],Tableau1[Validité2],0))","v":""},null,null,{"$f":"IF(ISERROR(+DATE(YEAR(Tableau2[Dernier Recyclage_6])+Tableau2[Validité_6],MONTH(Tableau2[Dernier Recyclage_6]),DAY(Tableau2[Dernier Recyclage_6]))),\"\",(+DATE(YEAR(Tableau2[Dernier Recyclage_6])+Tableau2[Validité_6],MONTH(Tableau2[Dernier Recyclage_6]),DAY(Tableau2[Dernier Recyclage_6]))))","v":""},{"$f":"IF(ISERROR(+DATE(YEAR(Tableau2[R1_6])+Tableau2[Validité_6],MONTH(Tableau2[R1_6]),DAY(Tableau2[R1_6]))),\"\",(+DATE(YEAR(Tableau2[R1_6])+Tableau2[Validité_6],MONTH(Tableau2[R1_6]),DAY(Tableau2[R1_6]))))","v":""},{"$f":"IF(ISERROR(+DATE(YEAR(Tableau2[R2_6])+Tableau2[Validité_6],MONTH(Tableau2[R2_6]),DAY(Tableau2[R2_6]))),\"\",(+DATE(YEAR(Tableau2[R2_6])+Tableau2[Validité_6],MONTH(Tableau2[R2_6]),DAY(Tableau2[R2_6]))))","v":""},null,null,{"$f":"IF(ISERROR(VLOOKUP(Tableau2[Habilitation_7],Tableau1[],Tableau1[Validité2],0)),\"\",VLOOKUP(Tableau2[Habilitation_7],Tableau1[],Tableau1[Validité2],0))","v":""},null,null,{"$f":"IF(ISERROR(+DATE(YEAR(Tableau2[Dernier Recyclage_7])+Tableau2[Validité_7],MONTH(Tableau2[Dernier Recyclage_7]),DAY(Tableau2[Dernier Recyclage_7]))),\"\",(+DATE(YEAR(Tableau2[Dernier Recyclage_7])+Tableau2[Validité_7],MONTH(Tableau2[Dernier Recyclage_7]),DAY(Tableau2[Dernier Recyclage_7]))))","v":""},{"$f":"IF(ISERROR(+DATE(YEAR(Tableau2[R1_7])+Tableau2[Validité_7],MONTH(Tableau2[R1_7]),DAY(Tableau2[R1_7]))),\"\",(+DATE(YEAR(Tableau2[R1_7])+Tableau2[Validité_7],MONTH(Tableau2[R1_7]),DAY(Tableau2[R1_7]))))","v":""},{"$f":"IF(ISERROR(+DATE(YEAR(Tableau2[R2_7])+Tableau2[Validité_7],MONTH(Tableau2[R2_7]),DAY(Tableau2[R2_7]))),\"\",(+DATE(YEAR(Tableau2[R2_7])+Tableau2[Validité_7],MONTH(Tableau2[R2_7]),DAY(Tableau2[R2_7]))))","v":""}]
["Nnn","NN","nnn",null,{"$f":"+IF(ISERROR(VLOOKUP(Tableau2[[#This Row],[Habilitation_1]],Tableau1[],Tableau1[Validité2],0)),\"\",VLOOKUP(Tableau2[[#This Row],[Habilitation_1]],Tableau1[],Tableau1[Validité2],0))","v":""},null,null,{"$f":"IF(ISERROR(+DATE(YEAR(Tableau2[Dernier Recyclage])+Tableau2[[#This Row],[Validité]],MONTH(Tableau2[Dernier Recyclage]),DAY(Tableau2[Dernier Recyclage]))),\"\",(+DATE(YEAR(Tableau2[Dernier Recyclage])+Tableau2[[#This Row],[Validité]],MONTH(Tableau2[Dernier Recyclage]),DAY(Tableau2[Dernier Recyclage]))))","v":""},{"$f":"IF(ISERROR(+DATE(YEAR(Tableau2[[#This Row],[R1]])+Tableau2[[#This Row],[Validité]],MONTH(Tableau2[[#This Row],[R1]]),DAY(Tableau2[[#This Row],[R1]]))),\"\",(+DATE(YEAR(Tableau2[[#This Row],[R1]])+Tableau2[[#This Row],[Validité]],MONTH(Tableau2[[#This Row],[R1]]),DAY(Tableau2[[#This Row],[R1]]))))","v":""},{"$f":"IF(ISERROR(+DATE(YEAR(Tableau2[[#This Row],[R2]])+Tableau2[[#This Row],[Validité]],MONTH(Tableau2[[#This Row],[R2]]),DAY(Tableau2[[#This Row],[R2]]))),\"\",(+DATE(YEAR(Tableau2[[#This Row],[R2]])+Tableau2[[#This Row],[Validité]],MONTH(Tableau2[[#This Row],[R2]]),DAY(Tableau2[[#This Row],[R2]]))))","v":""},null,null,{"$f":"IF(ISERROR(VLOOKUP(Tableau2[Habilitation_2],Tableau1[],Tableau1[Validité2],0)),\"\",VLOOKUP(Tableau2[Habilitation_2],Tableau1[],Tableau1[Validité2],0))","v":""},null,null,{"$f":"IF(ISERROR(+DATE(YEAR(Tableau2[Dernier Recyclage_2])+Tableau2[Validité_2],MONTH(Tableau2[Dernier Recyclage_2]),DAY(Tableau2[Dernier Recyclage_2]))),\"\",(+DATE(YEAR(Tableau2[Dernier Recyclage_2])+Tableau2[Validité_2],MONTH(Tableau2[Dernier Recyclage_2]),DAY(Tableau2[Dernier Recyclage_2]))))","v":""},{"$f":"IF(ISERROR(+DATE(YEAR(Tableau2[R1_2])+Tableau2[Validité_2],MONTH(Tableau2[R1_2]),DAY(Tableau2[R1_2]))),\"\",(+DATE(YEAR(Tableau2[R1_2])+Tableau2[Validité_2],MONTH(Tableau2[R1_2]),DAY(Tableau2[R1_2]))))","v":""},{"$f":"IF(ISERROR(+DATE(YEAR(Tableau2[R2_2])+Tableau2[Validité_2],MONTH(Tableau2[R2_2]),DAY(Tableau2[R2_2]))),\"\",(+DATE(YEAR(Tableau2[R2_2])+Tableau2[Validité_2],MONTH(Tableau2[R2_2]),DAY(Tableau2[R2_2]))))","v":""},null,null,{"$f":"IF(ISERROR(VLOOKUP(Tableau2[Habilitation_3],Tableau1[],Tableau1[Validité2],0)),\"\",VLOOKUP(Tableau2[Habilitation_3],Tableau1[],Tableau1[Validité2],0))","v":""},null,null,{"$f":"IF(ISERROR(+DATE(YEAR(Tableau2[Dernier Recyclage_3])+Tableau2[Validité_3],MONTH(Tableau2[Dernier Recyclage_3]),DAY(Tableau2[Dernier Recyclage_3]))),\"\",(+DATE(YEAR(Tableau2[Dernier Recyclage_3])+Tableau2[Validité_3],MONTH(Tableau2[Dernier Recyclage_3]),DAY(Tableau2[Dernier Recyclage_3]))))","v":""},{"$f":"IF(ISERROR(+DATE(YEAR(Tableau2[R1_3])+Tableau2[Validité_3],MONTH(Tableau2[R1_3]),DAY(Tableau2[R1_3]))),\"\",(+DATE(YEAR(Tableau2[R1_3])+Tableau2[Validité_3],MONTH(Tableau2[R1_3]),DAY(Tableau2[R1_3]))))","v":""},{"$f":"IF(ISERROR(+DATE(YEAR(Tableau2[R2_3])+Tableau2[Validité_3],MONTH(Tableau2[R2_3]),DAY(Tableau2[R2_3]))),\"\",(+DATE(YEAR(Tableau2[R2_3])+Tableau2[Validité_3],MONTH(Tableau2[R2_3]),DAY(Tableau2[R2_3]))))","v":""},null,null,{"$f":"IF(ISERROR(VLOOKUP(Tableau2[Habilitation_4],Tableau1[],Tableau1[Validité2],0)),\"\",VLOOKUP(Tableau2[Habilitation_4],Tableau1[],Tableau1[Validité2],0))","v":""},null,null,{"$f":"IF(ISERROR(+DATE(YEAR(Tableau2[Dernier Recyclage_4])+Tableau2[Validité_4],MONTH(Tableau2[Dernier Recyclage_4]),DAY(Tableau2[Dernier Recyclage_4]))),\"\",(+DATE(YEAR(Tableau2[Dernier Recyclage_4])+Tableau2[Validité_4],MONTH(Tableau2[Dernier Recyclage_4]),DAY(Tableau2[Dernier Recyclage_4]))))","v":""},{"$f":"IF(ISERROR(+DATE(YEAR(Tableau2[R1_4])+Tableau2[Validité_4],MONTH(Tableau2[R1_4]),DAY(Tableau2[R1_4]))),\"\",(+DATE(YEAR(Tableau2[R1_4])+Tableau2[Validité_4],MONTH(Tableau2[R1_4]),DAY(Tableau2[R1_4]))))","v":""},{"$f":"IF(ISERROR(+DATE(YEAR(Tableau2[R2_4])+Tableau2[Validité_4],MONTH(Tableau2[R2_4]),DAY(Tableau2[R2_4]))),\"\",(+DATE(YEAR(Tableau2[R2_4])+Tableau2[Validité_4],MONTH(Tableau2[R2_4]),DAY(Tableau2[R2_4]))))","v":""},null,null,{"$f":"IF(ISERROR(VLOOKUP(Tableau2[Habilitation_5],Tableau1[],Tableau1[Validité2],0)),\"\",VLOOKUP(Tableau2[Habilitation_5],Tableau1[],Tableau1[Validité2],0))","v":""},null,null,{"$f":"IF(ISERROR(+DATE(YEAR(Tableau2[Dernier Recyclage_5])+Tableau2[Validité_5],MONTH(Tableau2[Dernier Recyclage_5]),DAY(Tableau2[Dernier Recyclage_5]))),\"\",(+DATE(YEAR(Tableau2[Dernier Recyclage_5])+Tableau2[Validité_5],MONTH(Tableau2[Dernier Recyclage_5]),DAY(Tableau2[Dernier Recyclage_5]))))","v":""},{"$f":"IF(ISERROR(+DATE(YEAR(Tableau2[R1_5])+Tableau2[Validité_5],MONTH(Tableau2[R1_5]),DAY(Tableau2[R1_5]))),\"\",(+DATE(YEAR(Tableau2[R1_5])+Tableau2[Validité_5],MONTH(Tableau2[R1_5]),DAY(Tableau2[R1_5]))))","v":""},{"$f":"IF(ISERROR(+DATE(YEAR(Tableau2[R2_5])+Tableau2[Validité_5],MONTH(Tableau2[R2_5]),DAY(Tableau2[R2_5]))),\"\",(+DATE(YEAR(Tableau2[R2_5])+Tableau2[Validité_5],MONTH(Tableau2[R2_5]),DAY(Tableau2[R2_5]))))","v":""},null,null,{"$f":"IF(ISERROR(VLOOKUP(Tableau2[Habilitation_6],Tableau1[],Tableau1[Validité2],0)),\"\",VLOOKUP(Tableau2[Habilitation_6],Tableau1[],Tableau1[Validité2],0))","v":""},null,null,{"$f":"IF(ISERROR(+DATE(YEAR(Tableau2[Dernier Recyclage_6])+Tableau2[Validité_6],MONTH(Tableau2[Dernier Recyclage_6]),DAY(Tableau2[Dernier Recyclage_6]))),\"\",(+DATE(YEAR(Tableau2[Dernier Recyclage_6])+Tableau2[Validité_6],MONTH(Tableau2[Dernier Recyclage_6]),DAY(Tableau2[Dernier Recyclage_6]))))","v":""},{"$f":"IF(ISERROR(+DATE(YEAR(Tableau2[R1_6])+Tableau2[Validité_6],MONTH(Tableau2[R1_6]),DAY(Tableau2[R1_6]))),\"\",(+DATE(YEAR(Tableau2[R1_6])+Tableau2[Validité_6],MONTH(Tableau2[R1_6]),DAY(Tableau2[R1_6]))))","v":""},{"$f":"IF(ISERROR(+DATE(YEAR(Tableau2[R2_6])+Tableau2[Validité_6],MONTH(Tableau2[R2_6]),DAY(Tableau2[R2_6]))),\"\",(+DATE(YEAR(Tableau2[R2_6])+Tableau2[Validité_6],MONTH(Tableau2[R2_6]),DAY(Tableau2[R2_6]))))","v":""},null,null,{"$f":"IF(ISERROR(VLOOKUP(Tableau2[Habilitation_7],Tableau1[],Tableau1[Validité2],0)),\"\",VLOOKUP(Tableau2[Habilitation_7],Tableau1[],Tableau1[Validité2],0))","v":""},null,null,{"$f":"IF(ISERROR(+DATE(YEAR(Tableau2[Dernier Recyclage_7])+Tableau2[Validité_7],MONTH(Tableau2[Dernier Recyclage_7]),DAY(Tableau2[Dernier Recyclage_7]))),\"\",(+DATE(YEAR(Tableau2[Dernier Recyclage_7])+Tableau2[Validité_7],MONTH(Tableau2[Dernier Recyclage_7]),DAY(Tableau2[Dernier Recyclage_7]))))","v":""},{"$f":"IF(ISERROR(+DATE(YEAR(Tableau2[R1_7])+Tableau2[Validité_7],MONTH(Tableau2[R1_7]),DAY(Tableau2[R1_7]))),\"\",(+DATE(YEAR(Tableau2[R1_7])+Tableau2[Validité_7],MONTH(Tableau2[R1_7]),DAY(Tableau2[R1_7]))))","v":""},{"$f":"IF(ISERROR(+DATE(YEAR(Tableau2[R2_7])+Tableau2[Validité_7],MONTH(Tableau2[R2_7]),DAY(Tableau2[R2_7]))),\"\",(+DATE(YEAR(Tableau2[R2_7])+Tableau2[Validité_7],MONTH(Tableau2[R2_7]),DAY(Tableau2[R2_7]))))","v":""}]
["Ooo","OO","ooo",null,{"$f":"+IF(ISERROR(VLOOKUP(Tableau2[[#This Row],[Habilitation_1]],Tableau1[],Tableau1[Validité2],0)),\"\",VLOOKUP(Tableau2[[#This Row],[Habilitation_1]],Tableau1[],Tableau1[Validité2],0))","v":""},null,null,{"$f":"IF(ISERROR(+DATE(YEAR(Tableau2[Dernier Recyclage])+Tableau2[[#This Row],[Validité]],MONTH(Tableau2[Dernier Recyclage]),DAY(Tableau2[Dernier Recyclage]))),\"\",(+DATE(YEAR(Tableau2[Dernier Recyclage])+Tableau2[[#This Row],[Validité]],MONTH(Tableau2[Dernier Recyclage]),DAY(Tableau2[Dernier Recyclage]))))","v":""},{"$f":"IF(ISERROR(+DATE(YEAR(Tableau2[[#This Row],[R1]])+Tableau2[[#This Row],[Validité]],MONTH(Tableau2[[#This Row],[R1]]),DAY(Tableau2[[#This Row],[R1]]))),\"\",(+DATE(YEAR(Tableau2[[#This Row],[R1]])+Tableau2[[#This Row],[Validité]],MONTH(Tableau2[[#This Row],[R1]]),DAY(Tableau2[[#This Row],[R1]]))))","v":""},{"$f":"IF(ISERROR(+DATE(YEAR(Tableau2[[#This Row],[R2]])+Tableau2[[#This Row],[Validité]],MONTH(Tableau2[[#This Row],[R2]]),DAY(Tableau2[[#This Row],[R2]]))),\"\",(+DATE(YEAR(Tableau2[[#This Row],[R2]])+Tableau2[[#This Row],[Validité]],MONTH(Tableau2[[#This Row],[R2]]),DAY(Tableau2[[#This Row],[R2]]))))","v":""},null,null,{"$f":"IF(ISERROR(VLOOKUP(Tableau2[Habilitation_2],Tableau1[],Tableau1[Validité2],0)),\"\",VLOOKUP(Tableau2[Habilitation_2],Tableau1[],Tableau1[Validité2],0))","v":""},null,null,{"$f":"IF(ISERROR(+DATE(YEAR(Tableau2[Dernier Recyclage_2])+Tableau2[Validité_2],MONTH(Tableau2[Dernier Recyclage_2]),DAY(Tableau2[Dernier Recyclage_2]))),\"\",(+DATE(YEAR(Tableau2[Dernier Recyclage_2])+Tableau2[Validité_2],MONTH(Tableau2[Dernier Recyclage_2]),DAY(Tableau2[Dernier Recyclage_2]))))","v":""},{"$f":"IF(ISERROR(+DATE(YEAR(Tableau2[R1_2])+Tableau2[Validité_2],MONTH(Tableau2[R1_2]),DAY(Tableau2[R1_2]))),\"\",(+DATE(YEAR(Tableau2[R1_2])+Tableau2[Validité_2],MONTH(Tableau2[R1_2]),DAY(Tableau2[R1_2]))))","v":""},{"$f":"IF(ISERROR(+DATE(YEAR(Tableau2[R2_2])+Tableau2[Validité_2],MONTH(Tableau2[R2_2]),DAY(Tableau2[R2_2]))),\"\",(+DATE(YEAR(Tableau2[R2_2])+Tableau2[Validité_2],MONTH(Tableau2[R2_2]),DAY(Tableau2[R2_2]))))","v":""},null,null,{"$f":"IF(ISERROR(VLOOKUP(Tableau2[Habilitation_3],Tableau1[],Tableau1[Validité2],0)),\"\",VLOOKUP(Tableau2[Habilitation_3],Tableau1[],Tableau1[Validité2],0))","v":""},null,null,{"$f":"IF(ISERROR(+DATE(YEAR(Tableau2[Dernier Recyclage_3])+Tableau2[Validité_3],MONTH(Tableau2[Dernier Recyclage_3]),DAY(Tableau2[Dernier Recyclage_3]))),\"\",(+DATE(YEAR(Tableau2[Dernier Recyclage_3])+Tableau2[Validité_3],MONTH(Tableau2[Dernier Recyclage_3]),DAY(Tableau2[Dernier Recyclage_3]))))","v":""},{"$f":"IF(ISERROR(+DATE(YEAR(Tableau2[R1_3])+Tableau2[Validité_3],MONTH(Tableau2[R1_3]),DAY(Tableau2[R1_3]))),\"\",(+DATE(YEAR(Tableau2[R1_3])+Tableau2[Validité_3],MONTH(Tableau2[R1_3]),DAY(Tableau2[R1_3]))))","v":""},{"$f":"IF(ISERROR(+DATE(YEAR(Tableau2[R2_3])+Tableau2[Validité_3],MONTH(Tableau2[R2_3]),DAY(Tableau2[R2_3]))),\"\",(+DATE(YEAR(Tableau2[R2_3])+Tableau2[Validité_3],MONTH(Tableau2[R2_3]),DAY(Tableau2[R2_3]))))","v":""},null,null,{"$f":"IF(ISERROR(VLOOKUP(Tableau2[Habilitation_4],Tableau1[],Tableau1[Validité2],0)),\"\",VLOOKUP(Tableau2[Habilitation_4],Tableau1[],Tableau1[Validité2],0))","v":""},null,null,{"$f":"IF(ISERROR(+DATE(YEAR(Tableau2[Dernier Recyclage_4])+Tableau2[Validité_4],MONTH(Tableau2[Dernier Recyclage_4]),DAY(Tableau2[Dernier Recyclage_4]))),\"\",(+DATE(YEAR(Tableau2[Dernier Recyclage_4])+Tableau2[Validité_4],MONTH(Tableau2[Dernier Recyclage_4]),DAY(Tableau2[Dernier Recyclage_4]))))","v":""},{"$f":"IF(ISERROR(+DATE(YEAR(Tableau2[R1_4])+Tableau2[Validité_4],MONTH(Tableau2[R1_4]),DAY(Tableau2[R1_4]))),\"\",(+DATE(YEAR(Tableau2[R1_4])+Tableau2[Validité_4],MONTH(Tableau2[R1_4]),DAY(Tableau2[R1_4]))))","v":""},{"$f":"IF(ISERROR(+DATE(YEAR(Tableau2[R2_4])+Tableau2[Validité_4],MONTH(Tableau2[R2_4]),DAY(Tableau2[R2_4]))),\"\",(+DATE(YEAR(Tableau2[R2_4])+Tableau2[Validité_4],MONTH(Tableau2[R2_4]),DAY(Tableau2[R2_4]))))","v":""},null,null,{"$f":"IF(ISERROR(VLOOKUP(Tableau2[Habilitation_5],Tableau1[],Tableau1[Validité2],0)),\"\",VLOOKUP(Tableau2[Habilitation_5],Tableau1[],Tableau1[Validité2],0))","v":""},null,null,{"$f":"IF(ISERROR(+DATE(YEAR(Tableau2[Dernier Recyclage_5])+Tableau2[Validité_5],MONTH(Tableau2[Dernier Recyclage_5]),DAY(Tableau2[Dernier Recyclage_5]))),\"\",(+DATE(YEAR(Tableau2[Dernier Recyclage_5])+Tableau2[Validité_5],MONTH(Tableau2[Dernier Recyclage_5]),DAY(Tableau2[Dernier Recyclage_5]))))","v":""},{"$f":"IF(ISERROR(+DATE(YEAR(Tableau2[R1_5])+Tableau2[Validité_5],MONTH(Tableau2[R1_5]),DAY(Tableau2[R1_5]))),\"\",(+DATE(YEAR(Tableau2[R1_5])+Tableau2[Validité_5],MONTH(Tableau2[R1_5]),DAY(Tableau2[R1_5]))))","v":""},{"$f":"IF(ISERROR(+DATE(YEAR(Tableau2[R2_5])+Tableau2[Validité_5],MONTH(Tableau2[R2_5]),DAY(Tableau2[R2_5]))),\"\",(+DATE(YEAR(Tableau2[R2_5])+Tableau2[Validité_5],MONTH(Tableau2[R2_5]),DAY(Tableau2[R2_5]))))","v":""},null,null,{"$f":"IF(ISERROR(VLOOKUP(Tableau2[Habilitation_6],Tableau1[],Tableau1[Validité2],0)),\"\",VLOOKUP(Tableau2[Habilitation_6],Tableau1[],Tableau1[Validité2],0))","v":""},null,null,{"$f":"IF(ISERROR(+DATE(YEAR(Tableau2[Dernier Recyclage_6])+Tableau2[Validité_6],MONTH(Tableau2[Dernier Recyclage_6]),DAY(Tableau2[Dernier Recyclage_6]))),\"\",(+DATE(YEAR(Tableau2[Dernier Recyclage_6])+Tableau2[Validité_6],MONTH(Tableau2[Dernier Recyclage_6]),DAY(Tableau2[Dernier Recyclage_6]))))","v":""},{"$f":"IF(ISERROR(+DATE(YEAR(Tableau2[R1_6])+Tableau2[Validité_6],MONTH(Tableau2[R1_6]),DAY(Tableau2[R1_6]))),\"\",(+DATE(YEAR(Tableau2[R1_6])+Tableau2[Validité_6],MONTH(Tableau2[R1_6]),DAY(Tableau2[R1_6]))))","v":""},{"$f":"IF(ISERROR(+DATE(YEAR(Tableau2[R2_6])+Tableau2[Validité_6],MONTH(Tableau2[R2_6]),DAY(Tableau2[R2_6]))),\"\",(+DATE(YEAR(Tableau2[R2_6])+Tableau2[Validité_6],MONTH(Tableau2[R2_6]),DAY(Tableau2[R2_6]))))","v":""},null,null,{"$f":"IF(ISERROR(VLOOKUP(Tableau2[Habilitation_7],Tableau1[],Tableau1[Validité2],0)),\"\",VLOOKUP(Tableau2[Habilitation_7],Tableau1[],Tableau1[Validité2],0))","v":""},null,null,{"$f":"IF(ISERROR(+DATE(YEAR(Tableau2[Dernier Recyclage_7])+Tableau2[Validité_7],MONTH(Tableau2[Dernier Recyclage_7]),DAY(Tableau2[Dernier Recyclage_7]))),\"\",(+DATE(YEAR(Tableau2[Dernier Recyclage_7])+Tableau2[Validité_7],MONTH(Tableau2[Dernier Recyclage_7]),DAY(Tableau2[Dernier Recyclage_7]))))","v":""},{"$f":"IF(ISERROR(+DATE(YEAR(Tableau2[R1_7])+Tableau2[Validité_7],MONTH(Tableau2[R1_7]),DAY(Tableau2[R1_7]))),\"\",(+DATE(YEAR(Tableau2[R1_7])+Tableau2[Validité_7],MONTH(Tableau2[R1_7]),DAY(Tableau2[R1_7]))))","v":""},{"$f":"IF(ISERROR(+DATE(YEAR(Tableau2[R2_7])+Tableau2[Validité_7],MONTH(Tableau2[R2_7]),DAY(Tableau2[R2_7]))),\"\",(+DATE(YEAR(Tableau2[R2_7])+Tableau2[Validité_7],MONTH(Tableau2[R2_7]),DAY(Tableau2[R2_7]))))","v":""}]
["Ppp","PP","ppp",null,{"$f":"+IF(ISERROR(VLOOKUP(Tableau2[[#This Row],[Habilitation_1]],Tableau1[],Tableau1[Validité2],0)),\"\",VLOOKUP(Tableau2[[#This Row],[Habilitation_1]],Tableau1[],Tableau1[Validité2],0))","v":""},null,null,{"$f":"IF(ISERROR(+DATE(YEAR(Tableau2[Dernier Recyclage])+Tableau2[[#This Row],[Validité]],MONTH(Tableau2[Dernier Recyclage]),DAY(Tableau2[Dernier Recyclage]))),\"\",(+DATE(YEAR(Tableau2[Dernier Recyclage])+Tableau2[[#This Row],[Validité]],MONTH(Tableau2[Dernier Recyclage]),DAY(Tableau2[Dernier Recyclage]))))","v":""},{"$f":"IF(ISERROR(+DATE(YEAR(Tableau2[[#This Row],[R1]])+Tableau2[[#This Row],[Validité]],MONTH(Tableau2[[#This Row],[R1]]),DAY(Tableau2[[#This Row],[R1]]))),\"\",(+DATE(YEAR(Tableau2[[#This Row],[R1]])+Tableau2[[#This Row],[Validité]],MONTH(Tableau2[[#This Row],[R1]]),DAY(Tableau2[[#This Row],[R1]]))))","v":""},{"$f":"IF(ISERROR(+DATE(YEAR(Tableau2[[#This Row],[R2]])+Tableau2[[#This Row],[Validité]],MONTH(Tableau2[[#This Row],[R2]]),DAY(Tableau2[[#This Row],[R2]]))),\"\",(+DATE(YEAR(Tableau2[[#This Row],[R2]])+Tableau2[[#This Row],[Validité]],MONTH(Tableau2[[#This Row],[R2]]),DAY(Tableau2[[#This Row],[R2]]))))","v":""},null,null,{"$f":"IF(ISERROR(VLOOKUP(Tableau2[Habilitation_2],Tableau1[],Tableau1[Validité2],0)),\"\",VLOOKUP(Tableau2[Habilitation_2],Tableau1[],Tableau1[Validité2],0))","v":""},null,null,{"$f":"IF(ISERROR(+DATE(YEAR(Tableau2[Dernier Recyclage_2])+Tableau2[Validité_2],MONTH(Tableau2[Dernier Recyclage_2]),DAY(Tableau2[Dernier Recyclage_2]))),\"\",(+DATE(YEAR(Tableau2[Dernier Recyclage_2])+Tableau2[Validité_2],MONTH(Tableau2[Dernier Recyclage_2]),DAY(Tableau2[Dernier Recyclage_2]))))","v":""},{"$f":"IF(ISERROR(+DATE(YEAR(Tableau2[R1_2])+Tableau2[Validité_2],MONTH(Tableau2[R1_2]),DAY(Tableau2[R1_2]))),\"\",(+DATE(YEAR(Tableau2[R1_2])+Tableau2[Validité_2],MONTH(Tableau2[R1_2]),DAY(Tableau2[R1_2]))))","v":""},{"$f":"IF(ISERROR(+DATE(YEAR(Tableau2[R2_2])+Tableau2[Validité_2],MONTH(Tableau2[R2_2]),DAY(Tableau2[R2_2]))),\"\",(+DATE(YEAR(Tableau2[R2_2])+Tableau2[Validité_2],MONTH(Tableau2[R2_2]),DAY(Tableau2[R2_2]))))","v":""},null,null,{"$f":"IF(ISERROR(VLOOKUP(Tableau2[Habilitation_3],Tableau1[],Tableau1[Validité2],0)),\"\",VLOOKUP(Tableau2[Habilitation_3],Tableau1[],Tableau1[Validité2],0))","v":""},null,null,{"$f":"IF(ISERROR(+DATE(YEAR(Tableau2[Dernier Recyclage_3])+Tableau2[Validité_3],MONTH(Tableau2[Dernier Recyclage_3]),DAY(Tableau2[Dernier Recyclage_3]))),\"\",(+DATE(YEAR(Tableau2[Dernier Recyclage_3])+Tableau2[Validité_3],MONTH(Tableau2[Dernier Recyclage_3]),DAY(Tableau2[Dernier Recyclage_3]))))","v":""},{"$f":"IF(ISERROR(+DATE(YEAR(Tableau2[R1_3])+Tableau2[Validité_3],MONTH(Tableau2[R1_3]),DAY(Tableau2[R1_3]))),\"\",(+DATE(YEAR(Tableau2[R1_3])+Tableau2[Validité_3],MONTH(Tableau2[R1_3]),DAY(Tableau2[R1_3]))))","v":""},{"$f":"IF(ISERROR(+DATE(YEAR(Tableau2[R2_3])+Tableau2[Validité_3],MONTH(Tableau2[R2_3]),DAY(Tableau2[R2_3]))),\"\",(+DATE(YEAR(Tableau2[R2_3])+Tableau2[Validité_3],MONTH(Tableau2[R2_3]),DAY(Tableau2[R2_3]))))","v":""},null,null,{"$f":"IF(ISERROR(VLOOKUP(Tableau2[Habilitation_4],Tableau1[],Tableau1[Validité2],0)),\"\",VLOOKUP(Tableau2[Habilitation_4],Tableau1[],Tableau1[Validité2],0))","v":""},null,null,{"$f":"IF(ISERROR(+DATE(YEAR(Tableau2[Dernier Recyclage_4])+Tableau2[Validité_4],MONTH(Tableau2[Dernier Recyclage_4]),DAY(Tableau2[Dernier Recyclage_4]))),\"\",(+DATE(YEAR(Tableau2[Dernier Recyclage_4])+Tableau2[Validité_4],MONTH(Tableau2[Dernier Recyclage_4]),DAY(Tableau2[Dernier Recyclage_4]))))","v":""},{"$f":"IF(ISERROR(+DATE(YEAR(Tableau2[R1_4])+Tableau2[Validité_4],MONTH(Tableau2[R1_4]),DAY(Tableau2[R1_4]))),\"\",(+DATE(YEAR(Tableau2[R1_4])+Tableau2[Validité_4],MONTH(Tableau2[R1_4]),DAY(Tableau2[R1_4]))))","v":""},{"$f":"IF(ISERROR(+DATE(YEAR(Tableau2[R2_4])+Tableau2[Validité_4],MONTH(Tableau2[R2_4]),DAY(Tableau2[R2_4]))),\"\",(+DATE(YEAR(Tableau2[R2_4])+Tableau2[Validité_4],MONTH(Tableau2[R2_4]),DAY(Tableau2[R2_4]))))","v":""},null,null,{"$f":"IF(ISERROR(VLOOKUP(Tableau2[Habilitation_5],Tableau1[],Tableau1[Validité2],0)),\"\",VLOOKUP(Tableau2[Habilitation_5],Tableau1[],Tableau1[Validité2],0))","v":""},null,null,{"$f":"IF(ISERROR(+DATE(YEAR(Tableau2[Dernier Recyclage_5])+Tableau2[Validité_5],MONTH(Tableau2[Dernier Recyclage_5]),DAY(Tableau2[Dernier Recyclage_5]))),\"\",(+DATE(YEAR(Tableau2[Dernier Recyclage_5])+Tableau2[Validité_5],MONTH(Tableau2[Dernier Recyclage_5]),DAY(Tableau2[Dernier Recyclage_5]))))","v":""},{"$f":"IF(ISERROR(+DATE(YEAR(Tableau2[R1_5])+Tableau2[Validité_5],MONTH(Tableau2[R1_5]),DAY(Tableau2[R1_5]))),\"\",(+DATE(YEAR(Tableau2[R1_5])+Tableau2[Validité_5],MONTH(Tableau2[R1_5]),DAY(Tableau2[R1_5]))))","v":""},{"$f":"IF(ISERROR(+DATE(YEAR(Tableau2[R2_5])+Tableau2[Validité_5],MONTH(Tableau2[R2_5]),DAY(Tableau2[R2_5]))),\"\",(+DATE(YEAR(Tableau2[R2_5])+Tableau2[Validité_5],MONTH(Tableau2[R2_5]),DAY(Tableau2[R2_5]))))","v":""},null,null,{"$f":"IF(ISERROR(VLOOKUP(Tableau2[Habilitation_6],Tableau1[],Tableau1[Validité2],0)),\"\",VLOOKUP(Tableau2[Habilitation_6],Tableau1[],Tableau1[Validité2],0))","v":""},null,null,{"$f":"IF(ISERROR(+DATE(YEAR(Tableau2[Dernier Recyclage_6])+Tableau2[Validité_6],MONTH(Tableau2[Dernier Recyclage_6]),DAY(Tableau2[Dernier Recyclage_6]))),\"\",(+DATE(YEAR(Tableau2[Dernier Recyclage_6])+Tableau2[Validité_6],MONTH(Tableau2[Dernier Recyclage_6]),DAY(Tableau2[Dernier Recyclage_6]))))","v":""},{"$f":"IF(ISERROR(+DATE(YEAR(Tableau2[R1_6])+Tableau2[Validité_6],MONTH(Tableau2[R1_6]),DAY(Tableau2[R1_6]))),\"\",(+DATE(YEAR(Tableau2[R1_6])+Tableau2[Validité_6],MONTH(Tableau2[R1_6]),DAY(Tableau2[R1_6]))))","v":""},{"$f":"IF(ISERROR(+DATE(YEAR(Tableau2[R2_6])+Tableau2[Validité_6],MONTH(Tableau2[R2_6]),DAY(Tableau2[R2_6]))),\"\",(+DATE(YEAR(Tableau2[R2_6])+Tableau2[Validité_6],MONTH(Tableau2[R2_6]),DAY(Tableau2[R2_6]))))","v":""},null,null,{"$f":"IF(ISERROR(VLOOKUP(Tableau2[Habilitation_7],Tableau1[],Tableau1[Validité2],0)),\"\",VLOOKUP(Tableau2[Habilitation_7],Tableau1[],Tableau1[Validité2],0))","v":""},null,null,{"$f":"IF(ISERROR(+DATE(YEAR(Tableau2[Dernier Recyclage_7])+Tableau2[Validité_7],MONTH(Tableau2[Dernier Recyclage_7]),DAY(Tableau2[Dernier Recyclage_7]))),\"\",(+DATE(YEAR(Tableau2[Dernier Recyclage_7])+Tableau2[Validité_7],MONTH(Tableau2[Dernier Recyclage_7]),DAY(Tableau2[Dernier Recyclage_7]))))","v":""},{"$f":"IF(ISERROR(+DATE(YEAR(Tableau2[R1_7])+Tableau2[Validité_7],MONTH(Tableau2[R1_7]),DAY(Tableau2[R1_7]))),\"\",(+DATE(YEAR(Tableau2[R1_7])+Tableau2[Validité_7],MONTH(Tableau2[R1_7]),DAY(Tableau2[R1_7]))))","v":""},{"$f":"IF(ISERROR(+DATE(YEAR(Tableau2[R2_7])+Tableau2[Validité_7],MONTH(Tableau2[R2_7]),DAY(Tableau2[R2_7]))),\"\",(+DATE(YEAR(Tableau2[R2_7])+Tableau2[Validité_7],MONTH(Tableau2[R2_7]),DAY(Tableau2[R2_7]))))","v":""}]
["Qqq","QQ","qqq",null,{"$f":"+IF(ISERROR(VLOOKUP(Tableau2[[#This Row],[Habilitation_1]],Tableau1[],Tableau1[Validité2],0)),\"\",VLOOKUP(Tableau2[[#This Row],[Habilitation_1]],Tableau1[],Tableau1[Validité2],0))","v":""},null,null,{"$f":"IF(ISERROR(+DATE(YEAR(Tableau2[Dernier Recyclage])+Tableau2[[#This Row],[Validité]],MONTH(Tableau2[Dernier Recyclage]),DAY(Tableau2[Dernier Recyclage]))),\"\",(+DATE(YEAR(Tableau2[Dernier Recyclage])+Tableau2[[#This Row],[Validité]],MONTH(Tableau2[Dernier Recyclage]),DAY(Tableau2[Dernier Recyclage]))))","v":""},{"$f":"IF(ISERROR(+DATE(YEAR(Tableau2[[#This Row],[R1]])+Tableau2[[#This Row],[Validité]],MONTH(Tableau2[[#This Row],[R1]]),DAY(Tableau2[[#This Row],[R1]]))),\"\",(+DATE(YEAR(Tableau2[[#This Row],[R1]])+Tableau2[[#This Row],[Validité]],MONTH(Tableau2[[#This Row],[R1]]),DAY(Tableau2[[#This Row],[R1]]))))","v":""},{"$f":"IF(ISERROR(+DATE(YEAR(Tableau2[[#This Row],[R2]])+Tableau2[[#This Row],[Validité]],MONTH(Tableau2[[#This Row],[R2]]),DAY(Tableau2[[#This Row],[R2]]))),\"\",(+DATE(YEAR(Tableau2[[#This Row],[R2]])+Tableau2[[#This Row],[Validité]],MONTH(Tableau2[[#This Row],[R2]]),DAY(Tableau2[[#This Row],[R2]]))))","v":""},null,null,{"$f":"IF(ISERROR(VLOOKUP(Tableau2[Habilitation_2],Tableau1[],Tableau1[Validité2],0)),\"\",VLOOKUP(Tableau2[Habilitation_2],Tableau1[],Tableau1[Validité2],0))","v":""},null,null,{"$f":"IF(ISERROR(+DATE(YEAR(Tableau2[Dernier Recyclage_2])+Tableau2[Validité_2],MONTH(Tableau2[Dernier Recyclage_2]),DAY(Tableau2[Dernier Recyclage_2]))),\"\",(+DATE(YEAR(Tableau2[Dernier Recyclage_2])+Tableau2[Validité_2],MONTH(Tableau2[Dernier Recyclage_2]),DAY(Tableau2[Dernier Recyclage_2]))))","v":""},{"$f":"IF(ISERROR(+DATE(YEAR(Tableau2[R1_2])+Tableau2[Validité_2],MONTH(Tableau2[R1_2]),DAY(Tableau2[R1_2]))),\"\",(+DATE(YEAR(Tableau2[R1_2])+Tableau2[Validité_2],MONTH(Tableau2[R1_2]),DAY(Tableau2[R1_2]))))","v":""},{"$f":"IF(ISERROR(+DATE(YEAR(Tableau2[R2_2])+Tableau2[Validité_2],MONTH(Tableau2[R2_2]),DAY(Tableau2[R2_2]))),\"\",(+DATE(YEAR(Tableau2[R2_2])+Tableau2[Validité_2],MONTH(Tableau2[R2_2]),DAY(Tableau2[R2_2]))))","v":""},null,null,{"$f":"IF(ISERROR(VLOOKUP(Tableau2[Habilitation_3],Tableau1[],Tableau1[Validité2],0)),\"\",VLOOKUP(Tableau2[Habilitation_3],Tableau1[],Tableau1[Validité2],0))","v":""},null,null,{"$f":"IF(ISERROR(+DATE(YEAR(Tableau2[Dernier Recyclage_3])+Tableau2[Validité_3],MONTH(Tableau2[Dernier Recyclage_3]),DAY(Tableau2[Dernier Recyclage_3]))),\"\",(+DATE(YEAR(Tableau2[Dernier Recyclage_3])+Tableau2[Validité_3],MONTH(Tableau2[Dernier Recyclage_3]),DAY(Tableau2[Dernier Recyclage_3]))))","v":""},{"$f":"IF(ISERROR(+DATE(YEAR(Tableau2[R1_3])+Tableau2[Validité_3],MONTH(Tableau2[R1_3]),DAY(Tableau2[R1_3]))),\"\",(+DATE(YEAR(Tableau2[R1_3])+Tableau2[Validité_3],MONTH(Tableau2[R1_3]),DAY(Tableau2[R1_3]))))","v":""},{"$f":"IF(ISERROR(+DATE(YEAR(Tableau2[R2_3])+Tableau2[Validité_3],MONTH(Tableau2[R2_3]),DAY(Tableau2[R2_3]))),\"\",(+DATE(YEAR(Tableau2[R2_3])+Tableau2[Validité_3],MONTH(Tableau2[R2_3]),DAY(Tableau2[R2_3]))))","v":""},null,null,{"$f":"IF(ISERROR(VLOOKUP(Tableau2[Habilitation_4],Tableau1[],Tableau1[Validité2],0)),\"\",VLOOKUP(Tableau2[Habilitation_4],Tableau1[],Tableau1[Validité2],0))","v":""},null,null,{"$f":"IF(ISERROR(+DATE(YEAR(Tableau2[Dernier Recyclage_4])+Tableau2[Validité_4],MONTH(Tableau2[Dernier Recyclage_4]),DAY(Tableau2[Dernier Recyclage_4]))),\"\",(+DATE(YEAR(Tableau2[Dernier Recyclage_4])+Tableau2[Validité_4],MONTH(Tableau2[Dernier Recyclage_4]),DAY(Tableau2[Dernier Recyclage_4]))))","v":""},{"$f":"IF(ISERROR(+DATE(YEAR(Tableau2[R1_4])+Tableau2[Validité_4],MONTH(Tableau2[R1_4]),DAY(Tableau2[R1_4]))),\"\",(+DATE(YEAR(Tableau2[R1_4])+Tableau2[Validité_4],MONTH(Tableau2[R1_4]),DAY(Tableau2[R1_4]))))","v":""},{"$f":"IF(ISERROR(+DATE(YEAR(Tableau2[R2_4])+Tableau2[Validité_4],MONTH(Tableau2[R2_4]),DAY(Tableau2[R2_4]))),\"\",(+DATE(YEAR(Tableau2[R2_4])+Tableau2[Validité_4],MONTH(Tableau2[R2_4]),DAY(Tableau2[R2_4]))))","v":""},null,null,{"$f":"IF(ISERROR(VLOOKUP(Tableau2[Habilitation_5],Tableau1[],Tableau1[Validité2],0)),\"\",VLOOKUP(Tableau2[Habilitation_5],Tableau1[],Tableau1[Validité2],0))","v":""},null,null,{"$f":"IF(ISERROR(+DATE(YEAR(Tableau2[Dernier Recyclage_5])+Tableau2[Validité_5],MONTH(Tableau2[Dernier Recyclage_5]),DAY(Tableau2[Dernier Recyclage_5]))),\"\",(+DATE(YEAR(Tableau2[Dernier Recyclage_5])+Tableau2[Validité_5],MONTH(Tableau2[Dernier Recyclage_5]),DAY(Tableau2[Dernier Recyclage_5]))))","v":""},{"$f":"IF(ISERROR(+DATE(YEAR(Tableau2[R1_5])+Tableau2[Validité_5],MONTH(Tableau2[R1_5]),DAY(Tableau2[R1_5]))),\"\",(+DATE(YEAR(Tableau2[R1_5])+Tableau2[Validité_5],MONTH(Tableau2[R1_5]),DAY(Tableau2[R1_5]))))","v":""},{"$f":"IF(ISERROR(+DATE(YEAR(Tableau2[R2_5])+Tableau2[Validité_5],MONTH(Tableau2[R2_5]),DAY(Tableau2[R2_5]))),\"\",(+DATE(YEAR(Tableau2[R2_5])+Tableau2[Validité_5],MONTH(Tableau2[R2_5]),DAY(Tableau2[R2_5]))))","v":""},null,null,{"$f":"IF(ISERROR(VLOOKUP(Tableau2[Habilitation_6],Tableau1[],Tableau1[Validité2],0)),\"\",VLOOKUP(Tableau2[Habilitation_6],Tableau1[],Tableau1[Validité2],0))","v":""},null,null,{"$f":"IF(ISERROR(+DATE(YEAR(Tableau2[Dernier Recyclage_6])+Tableau2[Validité_6],MONTH(Tableau2[Dernier Recyclage_6]),DAY(Tableau2[Dernier Recyclage_6]))),\"\",(+DATE(YEAR(Tableau2[Dernier Recyclage_6])+Tableau2[Validité_6],MONTH(Tableau2[Dernier Recyclage_6]),DAY(Tableau2[Dernier Recyclage_6]))))","v":""},{"$f":"IF(ISERROR(+DATE(YEAR(Tableau2[R1_6])+Tableau2[Validité_6],MONTH(Tableau2[R1_6]),DAY(Tableau2[R1_6]))),\"\",(+DATE(YEAR(Tableau2[R1_6])+Tableau2[Validité_6],MONTH(Tableau2[R1_6]),DAY(Tableau2[R1_6]))))","v":""},{"$f":"IF(ISERROR(+DATE(YEAR(Tableau2[R2_6])+Tableau2[Validité_6],MONTH(Tableau2[R2_6]),DAY(Tableau2[R2_6]))),\"\",(+DATE(YEAR(Tableau2[R2_6])+Tableau2[Validité_6],MONTH(Tableau2[R2_6]),DAY(Tableau2[R2_6]))))","v":""},null,null,{"$f":"IF(ISERROR(VLOOKUP(Tableau2[Habilitation_7],Tableau1[],Tableau1[Validité2],0)),\"\",VLOOKUP(Tableau2[Habilitation_7],Tableau1[],Tableau1[Validité2],0))","v":""},null,null,{"$f":"IF(ISERROR(+DATE(YEAR(Tableau2[Dernier Recyclage_7])+Tableau2[Validité_7],MONTH(Tableau2[Dernier Recyclage_7]),DAY(Tableau2[Dernier Recyclage_7]))),\"\",(+DATE(YEAR(Tableau2[Dernier Recyclage_7])+Tableau2[Validité_7],MONTH(Tableau2[Dernier Recyclage_7]),DAY(Tableau2[Dernier Recyclage_7]))))","v":""},{"$f":"IF(ISERROR(+DATE(YEAR(Tableau2[R1_7])+Tableau2[Validité_7],MONTH(Tableau2[R1_7]),DAY(Tableau2[R1_7]))),\"\",(+DATE(YEAR(Tableau2[R1_7])+Tableau2[Validité_7],MONTH(Tableau2[R1_7]),DAY(Tableau2[R1_7]))))","v":""},{"$f":"IF(ISERROR(+DATE(YEAR(Tableau2[R2_7])+Tableau2[Validité_7],MONTH(Tableau2[R2_7]),DAY(Tableau2[R2_7]))),\"\",(+DATE(YEAR(Tableau2[R2_7])+Tableau2[Validité_7],MONTH(Tableau2[R2_7]),DAY(Tableau2[R2_7]))))","v":""}]
["Rrr","RR","rrr",null,{"$f":"+IF(ISERROR(VLOOKUP(Tableau2[[#This Row],[Habilitation_1]],Tableau1[],Tableau1[Validité2],0)),\"\",VLOOKUP(Tableau2[[#This Row],[Habilitation_1]],Tableau1[],Tableau1[Validité2],0))","v":""},null,null,{"$f":"IF(ISERROR(+DATE(YEAR(Tableau2[Dernier Recyclage])+Tableau2[[#This Row],[Validité]],MONTH(Tableau2[Dernier Recyclage]),DAY(Tableau2[Dernier Recyclage]))),\"\",(+DATE(YEAR(Tableau2[Dernier Recyclage])+Tableau2[[#This Row],[Validité]],MONTH(Tableau2[Dernier Recyclage]),DAY(Tableau2[Dernier Recyclage]))))","v":""},{"$f":"IF(ISERROR(+DATE(YEAR(Tableau2[[#This Row],[R1]])+Tableau2[[#This Row],[Validité]],MONTH(Tableau2[[#This Row],[R1]]),DAY(Tableau2[[#This Row],[R1]]))),\"\",(+DATE(YEAR(Tableau2[[#This Row],[R1]])+Tableau2[[#This Row],[Validité]],MONTH(Tableau2[[#This Row],[R1]]),DAY(Tableau2[[#This Row],[R1]]))))","v":""},{"$f":"IF(ISERROR(+DATE(YEAR(Tableau2[[#This Row],[R2]])+Tableau2[[#This Row],[Validité]],MONTH(Tableau2[[#This Row],[R2]]),DAY(Tableau2[[#This Row],[R2]]))),\"\",(+DATE(YEAR(Tableau2[[#This Row],[R2]])+Tableau2[[#This Row],[Validité]],MONTH(Tableau2[[#This Row],[R2]]),DAY(Tableau2[[#This Row],[R2]]))))","v":""},null,null,{"$f":"IF(ISERROR(VLOOKUP(Tableau2[Habilitation_2],Tableau1[],Tableau1[Validité2],0)),\"\",VLOOKUP(Tableau2[Habilitation_2],Tableau1[],Tableau1[Validité2],0))","v":""},null,null,{"$f":"IF(ISERROR(+DATE(YEAR(Tableau2[Dernier Recyclage_2])+Tableau2[Validité_2],MONTH(Tableau2[Dernier Recyclage_2]),DAY(Tableau2[Dernier Recyclage_2]))),\"\",(+DATE(YEAR(Tableau2[Dernier Recyclage_2])+Tableau2[Validité_2],MONTH(Tableau2[Dernier Recyclage_2]),DAY(Tableau2[Dernier Recyclage_2]))))","v":""},{"$f":"IF(ISERROR(+DATE(YEAR(Tableau2[R1_2])+Tableau2[Validité_2],MONTH(Tableau2[R1_2]),DAY(Tableau2[R1_2]))),\"\",(+DATE(YEAR(Tableau2[R1_2])+Tableau2[Validité_2],MONTH(Tableau2[R1_2]),DAY(Tableau2[R1_2]))))","v":""},{"$f":"IF(ISERROR(+DATE(YEAR(Tableau2[R2_2])+Tableau2[Validité_2],MONTH(Tableau2[R2_2]),DAY(Tableau2[R2_2]))),\"\",(+DATE(YEAR(Tableau2[R2_2])+Tableau2[Validité_2],MONTH(Tableau2[R2_2]),DAY(Tableau2[R2_2]))))","v":""},null,null,{"$f":"IF(ISERROR(VLOOKUP(Tableau2[Habilitation_3],Tableau1[],Tableau1[Validité2],0)),\"\",VLOOKUP(Tableau2[Habilitation_3],Tableau1[],Tableau1[Validité2],0))","v":""},null,null,{"$f":"IF(ISERROR(+DATE(YEAR(Tableau2[Dernier Recyclage_3])+Tableau2[Validité_3],MONTH(Tableau2[Dernier Recyclage_3]),DAY(Tableau2[Dernier Recyclage_3]))),\"\",(+DATE(YEAR(Tableau2[Dernier Recyclage_3])+Tableau2[Validité_3],MONTH(Tableau2[Dernier Recyclage_3]),DAY(Tableau2[Dernier Recyclage_3]))))","v":""},{"$f":"IF(ISERROR(+DATE(YEAR(Tableau2[R1_3])+Tableau2[Validité_3],MONTH(Tableau2[R1_3]),DAY(Tableau2[R1_3]))),\"\",(+DATE(YEAR(Tableau2[R1_3])+Tableau2[Validité_3],MONTH(Tableau2[R1_3]),DAY(Tableau2[R1_3]))))","v":""},{"$f":"IF(ISERROR(+DATE(YEAR(Tableau2[R2_3])+Tableau2[Validité_3],MONTH(Tableau2[R2_3]),DAY(Tableau2[R2_3]))),\"\",(+DATE(YEAR(Tableau2[R2_3])+Tableau2[Validité_3],MONTH(Tableau2[R2_3]),DAY(Tableau2[R2_3]))))","v":""},null,null,{"$f":"IF(ISERROR(VLOOKUP(Tableau2[Habilitation_4],Tableau1[],Tableau1[Validité2],0)),\"\",VLOOKUP(Tableau2[Habilitation_4],Tableau1[],Tableau1[Validité2],0))","v":""},null,null,{"$f":"IF(ISERROR(+DATE(YEAR(Tableau2[Dernier Recyclage_4])+Tableau2[Validité_4],MONTH(Tableau2[Dernier Recyclage_4]),DAY(Tableau2[Dernier Recyclage_4]))),\"\",(+DATE(YEAR(Tableau2[Dernier Recyclage_4])+Tableau2[Validité_4],MONTH(Tableau2[Dernier Recyclage_4]),DAY(Tableau2[Dernier Recyclage_4]))))","v":""},{"$f":"IF(ISERROR(+DATE(YEAR(Tableau2[R1_4])+Tableau2[Validité_4],MONTH(Tableau2[R1_4]),DAY(Tableau2[R1_4]))),\"\",(+DATE(YEAR(Tableau2[R1_4])+Tableau2[Validité_4],MONTH(Tableau2[R1_4]),DAY(Tableau2[R1_4]))))","v":""},{"$f":"IF(ISERROR(+DATE(YEAR(Tableau2[R2_4])+Tableau2[Validité_4],MONTH(Tableau2[R2_4]),DAY(Tableau2[R2_4]))),\"\",(+DATE(YEAR(Tableau2[R2_4])+Tableau2[Validité_4],MONTH(Tableau2[R2_4]),DAY(Tableau2[R2_4]))))","v":""},null,null,{"$f":"IF(ISERROR(VLOOKUP(Tableau2[Habilitation_5],Tableau1[],Tableau1[Validité2],0)),\"\",VLOOKUP(Tableau2[Habilitation_5],Tableau1[],Tableau1[Validité2],0))","v":""},null,null,{"$f":"IF(ISERROR(+DATE(YEAR(Tableau2[Dernier Recyclage_5])+Tableau2[Validité_5],MONTH(Tableau2[Dernier Recyclage_5]),DAY(Tableau2[Dernier Recyclage_5]))),\"\",(+DATE(YEAR(Tableau2[Dernier Recyclage_5])+Tableau2[Validité_5],MONTH(Tableau2[Dernier Recyclage_5]),DAY(Tableau2[Dernier Recyclage_5]))))","v":""},{"$f":"IF(ISERROR(+DATE(YEAR(Tableau2[R1_5])+Tableau2[Validité_5],MONTH(Tableau2[R1_5]),DAY(Tableau2[R1_5]))),\"\",(+DATE(YEAR(Tableau2[R1_5])+Tableau2[Validité_5],MONTH(Tableau2[R1_5]),DAY(Tableau2[R1_5]))))","v":""},{"$f":"IF(ISERROR(+DATE(YEAR(Tableau2[R2_5])+Tableau2[Validité_5],MONTH(Tableau2[R2_5]),DAY(Tableau2[R2_5]))),\"\",(+DATE(YEAR(Tableau2[R2_5])+Tableau2[Validité_5],MONTH(Tableau2[R2_5]),DAY(Tableau2[R2_5]))))","v":""},null,null,{"$f":"IF(ISERROR(VLOOKUP(Tableau2[Habilitation_6],Tableau1[],Tableau1[Validité2],0)),\"\",VLOOKUP(Tableau2[Habilitation_6],Tableau1[],Tableau1[Validité2],0))","v":""},null,null,{"$f":"IF(ISERROR(+DATE(YEAR(Tableau2[Dernier Recyclage_6])+Tableau2[Validité_6],MONTH(Tableau2[Dernier Recyclage_6]),DAY(Tableau2[Dernier Recyclage_6]))),\"\",(+DATE(YEAR(Tableau2[Dernier Recyclage_6])+Tableau2[Validité_6],MONTH(Tableau2[Dernier Recyclage_6]),DAY(Tableau2[Dernier Recyclage_6]))))","v":""},{"$f":"IF(ISERROR(+DATE(YEAR(Tableau2[R1_6])+Tableau2[Validité_6],MONTH(Tableau2[R1_6]),DAY(Tableau2[R1_6]))),\"\",(+DATE(YEAR(Tableau2[R1_6])+Tableau2[Validité_6],MONTH(Tableau2[R1_6]),DAY(Tableau2[R1_6]))))","v":""},{"$f":"IF(ISERROR(+DATE(YEAR(Tableau2[R2_6])+Tableau2[Validité_6],MONTH(Tableau2[R2_6]),DAY(Tableau2[R2_6]))),\"\",(+DATE(YEAR(Tableau2[R2_6])+Tableau2[Validité_6],MONTH(Tableau2[R2_6]),DAY(Tableau2[R2_6]))))","v":""},null,null,{"$f":"IF(ISERROR(VLOOKUP(Tableau2[Habilitation_7],Tableau1[],Tableau1[Validité2],0)),\"\",VLOOKUP(Tableau2[Habilitation_7],Tableau1[],Tableau1[Validité2],0))","v":""},null,null,{"$f":"IF(ISERROR(+DATE(YEAR(Tableau2[Dernier Recyclage_7])+Tableau2[Validité_7],MONTH(Tableau2[Dernier Recyclage_7]),DAY(Tableau2[Dernier Recyclage_7]))),\"\",(+DATE(YEAR(Tableau2[Dernier Recyclage_7])+Tableau2[Validité_7],MONTH(Tableau2[Dernier Recyclage_7]),DAY(Tableau2[Dernier Recyclage_7]))))","v":""},{"$f":"IF(ISERROR(+DATE(YEAR(Tableau2[R1_7])+Tableau2[Validité_7],MONTH(Tableau2[R1_7]),DAY(Tableau2[R1_7]))),\"\",(+DATE(YEAR(Tableau2[R1_7])+Tableau2[Validité_7],MONTH(Tableau2[R1_7]),DAY(Tableau2[R1_7]))))","v":""},{"$f":"IF(ISERROR(+DATE(YEAR(Tableau2[R2_7])+Tableau2[Validité_7],MONTH(Tableau2[R2_7]),DAY(Tableau2[R2_7]))),\"\",(+DATE(YEAR(Tableau2[R2_7])+Tableau2[Validité_7],MONTH(Tableau2[R2_7]),DAY(Tableau2[R2_7]))))","v":""}]

{"sheet":"Feuil5","index":2,"n_rows":67,"n_cols":9,"rows_kept":67,"cut":false,"hidden":true,"merged":[]}
[null,null,null,null,null,null,null,null,1]
[null,null,null,null,null,null,null,null,3]
[null,null,null,null,null,null,null,null,4]
[null,null,null,null,null,null,null,null,1]
[null,null,null,null,null,null,null,null,2]
[null,null,null,null,null,null,null,null,2.5]
[null,null,null,null,null,null,null,null,0.5]
[null,null,null,null,null,null,null,null,3]
[null,null,null,null,null,null,null,null,2]
[null,null,null,null,null,null,null,null,3]
[null,null,null,null,null,null,null,null,2]
[null,null,null,null,null,null,null,null,1]
[null,null,null,null,null,null,null,null,3]
[null,null,null,null,null,null,null,null,3]
[null,null,null,null,null,null,null,null,4]
[null,null,null,null,null,null,null,null,2]
[null,null,null,null,null,null,null,null,2]
[null,null,null,null,null,null,null,null,3]
[null,null,null,null,null,null,null,null,3]
[null,null,null,null,null,null,null,null,2]
[null,null,null,null,null,null,null,null,3]
[null,null,null,null,null,null,null,null,3]
[null,null,null,null,null,null,null,null,4]
[null,null,null,null,null,null,null,null,3]
[null,null,null,null,null,null,null,null,3]
[null,null,null,null,null,null,null,null,4]
[null,null,null,null,null,null,null,null,4]
[null,null,null,null,null,null,null,null,2]
[null,null,null,null,null,null,null,null,2]
[null,null,null,null,null,null,null,null,3]
[null,null,null,null,null,null,null,null,2]
[null,null,null,null,null,null,null,null,2]
[null,null,null,null,null,null,null,null,3]
[null,null,null,null,null,null,null,null,3]
[null,null,null,null,null,null,null,null,2]
[null,null,null,null,null,null,null,null,1]
[null,null,null,null,null,null,null,null,1]
[null,null,null,null,null,null,null,null,1]
[null,null,null,null,null,null,null,null,1]
[null,null,null,null,null,null,null,null,2]
[null,null,null,null,null,null,null,null,2]
[null,null,null,null,null,null,null,null,1]
[null,null,null,null,null,null,null,null,3]
[null,null,null,null,null,null,null,null,1]
[null,null,null,null,null,null,null,null,2]
[null,null,null,null,null,null,null,null,1]
[null,null,null,null,null,null,null,null,1]
[null,null,null,null,null,null,null,null,2]
[null,null,null,null,null,null,null,null,3]
[]
[null,null,null,null,null,null,null,null,2]
[null,null,null,null,null,null,null,null,1]
[null,null,null,null,null,null,null,null,5]
[null,null,null,null,null,null,null,null,1]
[null,null,null,null,null,null,null,null,0.5]
[null,null,null,null,null,null,null,null,0.5]
[null,null,null,null,null,null,null,null,1]
[null,null,null,null,null,null,null,null,3]
[null,null,null,null,null,null,null,null,1.5]
[null,null,null,null,null,null,null,null,3]
[null,null,null,null,null,null,null,null,1]
[null,null,null,null,null,null,null,null,10]
[null,null,null,null,null,null,null,null,3]
[null,null,null,null,null,null,null,null,3]
[null,null,null,null,null,null,null,null,1]
[null,null,null,null,null,null,null,null,4.5]
[null,null,null,null,null,null,null,null,2]